{"text_format":"1","workbook":"xlsx","n_sheets":16,"sheets":["spis ark","1_wniosek","harm_pożyczki es","Wniosek _1","1","2","2_zał_H_zabezp","3_Zał_F_dane fin i zał_klient","4","5","3a_projekcje_klient ","3_Zał_F_TISE","7","4_założenia KO","5_projekcje","10"],"not_rendered":{"charts":0,"images":6,"macros":1,"external_links":0,"defined_names":10,"comments":0,"pivot_tables":0},"unopened":[],"bounds":{"document_bytes":16777216,"sheet_cells":100000,"rows_first":2000,"rows_last":500,"rows_between":2000,"halvings":0,"cell_chars":16384,"cell_head_chars":4096},"cells_cut":0,"cells_raw":0,"read":"whole","date_system":"1900"}

{"sheet":"spis ark","index":0,"n_rows":13,"n_cols":4,"rows_kept":13,"cut":false,"hidden":true,"merged":[]}
["nr  arkusza","tematyka","uwagi"]
[1,"wniosek"]
[2,"załącznik B","oswiadczenie  o MSP"]
[3,"załącznik  H zabezpieczenia","do uzgodnienia"]
[4,"załącznik oświadczenie o wykluczeniu","oświadczenie że nie podlega wykluczeniu z ubiegania się o dofinansowanie na podst art. 207 Ustawy o finansach pulicznych"]
[5,"założenia i przepływy z nowego przedsięwzięcia"]
[6,"sprawozdanie uproszczone"]
[7,"założenia do projekcji z dotychczasowej działalności i przepływy łączne"]
[3,"załącznik F z  danymi historycznymi i założeniami do projekcji finansowej"]
[4,"założenia KO do wstawiania przez TISE"]
[5,"projekcje i wskaźniki"]
[6,"Karta oceny wnioskodawcy"]
[10,"lista załączników dostarczonych",null,"czy kompletna "]

{"sheet":"1_wniosek","index":1,"n_rows":265,"n_cols":29,"rows_kept":265,"cut":false,"hidden":false,"merged":[[5,12,6,13],[75,2,75,8],[199,2,199,3],[200,2,200,3],[156,2,156,3],[111,2,111,8],[113,2,113,8],[115,2,115,8],[116,2,116,8],[117,2,117,8],[107,2,107,8],[96,2,96,8],[97,2,97,7],[90,5,90,8],[5,4,5,10],[6,4,6,10],[39,2,39,8],[40,2,40,4],[9,2,9,10],[118,2,119,8],[114,2,114,8],[112,2,112,8],[184,9,185,9],[10,2,10,10],[262,2,262,3],[261,5,261,10],[262,5,262,10],[183,2,183,13],[184,13,185,13],[201,2,201,3],[197,2,197,3],[260,2,260,3],[261,2,261,3],[256,2,256,3],[256,5,256,8],[228,2,228,8],[206,2,206,3],[205,2,205,3],[203,2,203,3],[202,2,202,3],[193,2,193,3],[184,2,186,3],[204,2,204,3],[210,2,210,7],[212,2,212,7],[213,2,213,7],[211,2,211,8],[229,2,229,8],[153,2,153,3],[159,2,159,3],[121,2,121,13],[175,2,175,3],[176,2,176,3],[177,2,177,3],[173,2,174,3],[184,12,185,12],[184,11,185,11],[157,2,157,3],[158,2,158,3],[168,2,168,3],[169,2,169,3],[163,2,163,13],[180,2,180,4],[180,5,180,13],[171,2,171,13],[172,2,172,13],[173,4,173,7],[11,2,11,10],[12,2,12,10],[13,2,13,10],[14,2,14,10],[8,5,8,7],[33,2,33,3],[34,2,34,3],[5,2,5,3],[6,2,6,3],[8,2,8,3],[18,2,18,3],[28,2,28,3],[18,4,18,10],[21,2,21,10],[22,4,22,10],[23,4,23,10],[35,2,35,3],[41,2,41,4],[41,5,41,8],[36,4,36,10],[37,4,37,10],[38,4,38,10],[74,2,74,8],[43,5,43,8],[42,5,42,8],[43,2,43,4],[47,2,61,10],[46,2,46,10],[71,2,71,3],[72,2,72,3],[73,2,73,3],[44,2,44,4],[44,5,44,8],[45,5,45,8],[45,2,45,4],[64,2,64,9],[65,2,65,9],[66,2,66,9],[67,2,67,9],[40,5,40,8],[213,8,213,10],[226,2,226,8],[225,2,225,8],[227,2,227,8],[184,10,185,10],[259,5,259,10],[36,2,36,3],[37,2,37,3],[24,4,24,10],[25,4,25,10],[26,4,26,10],[27,4,27,10],[28,4,28,10],[98,2,98,7],[99,2,99,7],[29,2,29,10],[30,4,30,10],[31,4,31,10],[32,2,32,10],[33,4,33,10],[34,4,34,10],[35,4,35,10],[95,2,95,8],[94,2,94,8],[257,2,259,3],[230,2,230,8],[221,2,221,12],[222,2,222,12],[223,2,223,12],[216,2,216,12],[217,2,217,12],[215,2,215,12],[218,2,218,12],[219,2,219,12],[220,2,220,12],[83,2,85,8],[78,2,78,8],[89,2,89,4],[38,2,38,3],[260,5,260,10],[139,2,152,2],[122,3,124,3],[125,2,137,2],[124,4,124,7],[110,2,110,8],[122,4,122,7],[122,2,124,2],[188,2,188,3],[190,2,190,3],[196,2,196,3],[184,4,184,7],[252,2,252,13],[253,2,253,13],[100,3,100,8],[104,2,104,8],[105,2,105,8],[106,2,106,8],[257,5,257,10],[258,5,258,10],[90,2,90,4],[76,6,76,7],[80,2,81,2],[88,2,88,8],[1,2,1,14],[3,2,3,10],[2,2,2,10],[191,2,191,3],[251,2,251,13],[240,2,240,3],[239,2,239,3],[241,2,241,3],[243,2,243,3],[244,2,244,3],[245,2,245,3],[246,2,246,3],[249,2,249,13],[250,2,250,13],[178,2,178,3],[89,5,89,6],[89,7,89,8],[69,2,69,8],[70,2,70,8],[82,2,82,8]]}
[]
[]
[null,null,"Wniosek o pożyczkę w ramach Projektu Systemowego "]
[null,null,"„Wsparcie inżynierii finansowej na rzecz rozwoju ekonomii społecznej”"]
[null,null,"Wzór wniosku o pożyczkę w ramach Projektu Systemowego „Wsparcie inżynierii finansowanej na rzecz rozwoju ekonomii społecznej”"]
[null,null,"Tytuł przedsięwzięcia ",null," ",null,null,null,null,null,null,null,"proszę wypełniać wyłącznie białe pola"]
[null,null,"Nazwa Wnioskodawcy",null," "]
[]
[null,null,"Wnioskowana kwota pożyczki w PLN",null,null,"Wartość stopy redyskonta na dzień składania wniosku",null,null,null,"Data złożenia wniosku / format : RRRR-MM-DD/",null,null,null,null,null,null,null,null,"oprocentowanie wnioskowanej pożyczki / wypełnia pracownik TISE/",{"$f":"I9/2","v":0}]
[null,null,"Nazwa Programu Operacyjnego:"]
[null,null,"PROGRAM OPERACYJNY KAPITAŁ LUDZKI"]
[null,null,"Numer i nazwa Osi Priorytetowej:"]
[null,null,"OŚ PRIORYTETOWA 1 – Zatrudnienie i integracja społeczna"]
[null,null,"Numer i nazwa Działania w ramach Osi Priorytetowej:"]
[null,null,"Działanie 1.4 – Wsparcie inżynierii finansowej na rzecz rozwoju ekonomii społecznej"]
[]
[]
[null,null,"Sekcja A. Informacje o Wnioskodawcy"]
[null,null,null,null,null,null,null,null,null,null,null,null,null,null,null,null,null,null,1," Spółdzielnia pracy;","tak",null,null,"czy spełnia kryterium",{"$f":"IFERROR((VLOOKUP(E19,T19:U24,2,FALSE)),\"tak\")","v":"tak"}]
[null,null,null,null,null,null,null,null,null,null,null,null,null,null,null,null,null,null,null,"Spółdzielnia inwalidów i niewidomych;","tak"]
[null,null,null,null,null,null,null,null,null,null,null,null,null,null,null,null,null,null,null,"Osoba prawna lub jednostka organizacyjna działające na podstawie przepisów o stosunku Państwa do Kościoła Katolickiego w Rzeczypospolitej Polskiej, o stosunku Państwa do innych kościołów i związków wyznaniowych oraz o gwarancjach wolności sumienia i wyznania, jeżeli ich cele statutowe obejmują prowadzenie działalności pożytku publicznego;","tak","-        Organizacja pozarządowa lub podmiot wymieniony w art. 3 ust. 3 ustawy z dnia 24 kwietnia 2003 r. o pożytku publicznym i wolontariacie (Dz. U. z dnia 29 maja 2003 r. z późn. zm.), tj.: "]
[null,null,"A.2. Dane teleadresowe siedziby Wnioskodawcy:",null,null,null,null,null,null,null,null,null,null,null,null,null,null,null,2,"Spółdzielnia socjalna;","tak"]
[null,null,"A.2.1. Miejscowość:",null," ",null,null,null,null,null,null,null,null,null,null,null,null,null,3,"Spółka akcyjna lub spółka z ograniczoną odpowiedzialnością lub klub sportowy, będący spółką działającą na podstawie przepisów ustawy z dnia 25 czerwca 2010 r. o sporcie (Dz. U. Nr 127, poz. 857, z późn. zm.2), która nie działa w celu osiągnięcia zysku oraz przeznacza całość dochodu na realizację celów statutowych oraz nie przeznaczają zysku do podziału między swoich udziałowców, akcjonariuszy i pracowników.","tak"]
[null,null,"A.2.2. Kod:",null," ",null,null,null,null,null,null,null,null,null,null,null,null,null,4,null,"nie"]
[null,null,"A.2.3. Ulica:",null," ",null,null,null,null,null,null,null,null,null,null,null,null,null,5,"Organizacja pozarządowa","tak"]
[null,null,"A.2.4. Nr budynku/lokalu:",null," ",null,null,null,null,null,null,null,null,null,null,null,null,null,6,null,"tak"]
[null,null,"A.2.5. Numer telefonu:",null," ",null,null,null,null,null,null,null,null,null,null,null,null,null,null,null,"tak"]
[null,null,"A.2.6. Numer faksu:",null," "]
[null,null,"A.2.7. Adres poczty elektronicznej:",null," "]
[null,null,"A.3. Dane osoby lub osób prawnie upoważnionych do reprezentowania Wnioskodawcy:"]
[null,null,"A.3.1. Imię i nazwisko:",null," "]
[null,null,"A.3.2. Stanowisko:",null," "]
[null,null,"A.4. Dane personalne osoby upoważnionej do kontaktu w sprawach przedsięwzięcia :"]
[null,null,"A.4.1. Imię i nazwisko:",null," "]
[null,null,"A.4.2. Stanowisko:",null," "]
[null,null,"A.4.3. Nazwa Instytucji:",null," "]
[null,null,"A.4.4. Numer telefonu:",null," "]
[null,null,"A.4.5. Numer faksu",null," "]
[null,null,"A.4.6. Adres poczty elektronicznej:",null," "]
[null,null,"A.5. Dane rejestrowe Wnioskodawcy:"]
[null,null,"A.5.1. Numer KRS/CEIDG",null,null," "]
[null,null,"A.5.2. Numer Identyfikacji Podatkowej:",null,null," "]
[null,null,"A.5.3. REGON:",null,null," "]
[null,null,"A.5.4. PKD działalności (prosimy wymienić wszystkie występujące w dokumencie rejestrowym)",null,null,"Zgodnie z zał A"]
[null,null,"A.5.5. Wielkość przedsiębiorstwa – zgodnie z Załącznikiem I do Rozporządzenia Komisji (WE) nr 800/2008 z dnia 6 sierpnia 2008 r. (Dz. Urz. UE L 214 z 09.08.2008 r.)",null,null,"Załącznik B",null,null,null,"czy spełnia kryterium","tak"]
[null,null,"A.5.6. Data wpisu do rejestru przedsiębiorców / format:RRRR-MM-DD/",null,null,null,null,null,null,"czy spełnia kryterium",{"$f":"IF(U72>365,\"tak\",\"nie\")","v":"nie"}]
[null,null,"A.5.7. Charakterystyka działalności Wnioskodawcy (historia, główny przedmiot działalności, podstawowe produkty i usługi oferowane na rynku, udział sprzedaży tych produktów i usług w całości przychodów ze sprzedaży):"]
[]
[]
[]
[]
[null,null,null,null,null,null,null,null,null,null,null,null,null,null,null,null,null,null,null,"2013-03-31"]
[null,null,null,null,null,null,null,null,null,null,null,null,null,null,null,null,null,null,null,"2013-04-30"]
[null,null,null,null,null,null,null,null,null,null,null,null,null,null,null,null,null,null,null,"2013-05-31"]
[null,null,null,null,null,null,null,null,null,null,null,null,null,null,null,null,null,null,null,"2013-06-30"]
[null,null,null,null,null,null,null,null,null,null,null,null,null,null,null,null,null,null,null,"2014-01-31"]
[null,null,null,null,null,null,null,null,null,null,null,null,null,null,null,null,null,null,null,"2014-02-28"]
[null,null,null,null,null,null,null,null,null,null,null,null,null,null,null,null,null,null,null,"2014-03-31"]
[null,null,null,null,null,null,null,null,null,null,null,null,null,null,null,null,null,null,null,"2014-04-30"]
[null,null,null,null,null,null,null,null,null,null,null,null,null,null,null,null,null,null,null,"2014-05-31"]
[null,null,null,null,null,null,null,null,null,null,null,null,null,null,null,null,null,null,null,"2014-06-30"]
[null,null,null,null,null,null,null,null,null,null,null,null,null,null,null,null,null,null,null,"2014-07-31"]
[null,null,null,null,null,null,null,null,null,null,null,null,null,null,null,null,null,null,null,"2014-08-31"]
[null,null,"Sekcja B. Informacje  o przedsięwzięciu"]
[null,null,"B.1. Adres lokalizacji przedsięwzięcia : "]
[null,null," "]
[null,null,"B.2. Przeznaczenie pożyczki /cel/ :"]
[null,null," "]
[]
[null,null,"B.3. Informacje finansowe:"]
[null,null,"B.3.1. Planowane  wydatki na  realizację przedsięwzięcia:"]
[null,null,"B.3.1.1.Wydatki całkowite (w PLN)",null,null,null,null,null,null,null,null,null,null,null,null,null,null,null,null,"tak",{"$f":"K9-F46","v":0}]
[null,null,"B.3.1.2.Wydatki kwalifikowalne (kwota brutto w PLN)",null,{"$f":"E72-E74","v":0},null,null,null,null,null,null,null,null,null,null,null,null,null,null,"nie",null,null,null,"czy spełnia kryterium",null,{"$f":"IF(E9<=E73,\"tak\",\"nie\")","v":"tak"}]
[null,null,"B.3.1.3. Wydatki niekwalifikowalne (w PLN)",null,0]
[]
[null,null,"B.3.2.Proponowane parametry pożyczki"]
[null,null,"B.3.2.1. Przewwidywana data wypłaty","2014-08-31","B.3.2.2. Okres karencji w spłacie kapitału (nie dłużej niż 6 miesięcy)",0,"B.3.2.3. Okres finansowania  pożyczki w miesiącach/razem z karencją/",null,0]
[]
[null,null,"B.4. Proponowany sposób spłaty pożyczki /wybierz a ,b lu c/",null,null,null,null,null,null,null,null,null,null,null,null,null,null,"czy spełnia kryt poz"]
[null,null,"a)Jednorazowo, do dnia "," ","Raty/zaznaczyć \"x\"/",null,null,null,null,null,null,null,null,null,null,null,null,{"$f":"IF(F77<=6,1,0)","v":1},{"$f":"IF(I77<=60,1,0)","v":1},{"$f":"IF(E9<=100000,1,0)","v":1},{"$f":"IF((R80+S80+T80)=3,\"tak\",\"nie\")","v":"tak"}]
[null,null,"b)W ratach równych","miesięcznych"," "]
[null,null,null,"trzymiesięcznych"," "]
[null,null,"c)W następujących kwotach i terminach:"]
[null,null," "]
[]
[]
[]
[]
[null,null,"B.5. Prawne formy zabezpieczenia wierzytelności"]
[null,null,"Obowiązkowa forma prawna zabezpieczenia spłaty pożyczki:",null,null,"Weksel “in blanco” wraz z deklaracja wekslową",null,"Tak",null,null,null,null,null,null,null,null,null,null,null,"miesięczne"]
[null,null,"Dodatkowe proponowane formy  zabezpieczenia spłaty pożyczki :",null,null,"nie",null,null,null,null,null,null,null,null,null,null,null,null,null,null,"tak, wg załącznika H"]
[null,null,null,null,null,null,null,null,null,null,null,null,null,null,null,null,null,null,null,null,"nie"]
[null,null,"str. 2"]
[]
[null,null,"B.6. Opis przedsięwzięcia – cel i zakres, tj.:"]
[null,null,"czego dotyczy przedsięwzięcie (np. zakup maszyn i urządzeń, wartości niematerialnych i prawnych, remontów budynków, działań zmierzających do wprowadzenia nowych produktów lub usług),"]
[null,null," "]
[null,null,"czy przedsięwzięcie jest zgodne z profilem prowadzonej lub przyszłej działalności ",null,null,null,null,null,"tak"]
[null,null,"czy zapewnia komplementarność technologiczną z istniejącym wyposażeniem, parkiem maszynowym itd.,",null,null,null,null,null,"tak"]
[null,null,"czy przedsięwzięcie będzie realizowane na terenie lub w budynkach, których Wnioskodawca jest właścicielem lub ma prawo do dysponowania nimi,",null,null,null,null,null,"tak"]
[null,null,"jeśli nie to opissz jaki jest, będzie tytuł korzystania z budynku/terenu"," "]
[null,null,"czy w wyniku realizacji przedsięwzięcia powstaną nowe miejsca pracy / wypełnienie pola nieobligatoryjne/",null,null,null,null,null,"nie"]
[null,null,"jeśli tak to ile łącznie",null,null,"kobiet",null,"mężczyzn",{"$f":"D103-G103","v":0}]
[null,null,"czy w wyniku realizacji przedsięwzięcia zostaną zatrudnione osoby bezrobotne,",null,null,null,null,null,"nie"]
[null,null,"krótki opis rynku sprzedaży i zaopatrzenia: jaka jest konkurencja?  jaki jest potencjał dostawców usług? podstawa kalkulacji przychodów z działalności gospodarczej"]
[null,null," "]
[null,null,"krótki opis perspektywy działalności Wnioskodawcy w planowanym okresie spłaty pożyczki:"]
[null,null," "]
[]
[]
[null,null,"B.7. Zasoby techniczne i przygotowanie do realizacji przedsięwzięcia, tj.:"]
[null,null,null,null,null,null,null,null,null,"tak",null,null,null,null,null,null,null,null,null,null,"tak"]
[]
[null,null,"w przypadku prac budowlanych i modernizacyjnych – czy Wnioskodawca posiada pozwolenie na budowę, a jeśli nie – jaki jest termin złożenia wniosku oraz przewidywany termin uzyskania pozwolenia,",null,null,null,null,null,null,null,null,null,null,null,null,null,null,null,null,null,"nie",null,null,"tak, w załączeniu"]
[null,null," "]
[null,null,"czy zostały już podjęte jakieś działania w celu realizacji przedsięwzięcia (podpisanie wstępnych umów z wykonawcami, projekt budowlany, szczegółowy kosztorys, uzyskanie niezbędnych pozwoleń, realizacja określonego etapu przedsięwzięcia itp.),",null,null,null,null,null,null,null,null,null,null,null,null,null,null,null,null,null,"tak, w załączeniu"]
[null,null," ",null,null,null,null,null,null,null,null,null,null,null,null,null,null,null,null,null,"nie"]
[null,null,"czy wymagane są inne zasoby techniczne niezbędne do realizacji przedsięwzięcia:",null,null,null,null,null,null,null,null,null,null,null,null,null,null,null,null,null,"tak,opis",null,null,"tak,opis"]
[null,null," ",null,null,null,null,null,null,null,null,null,null,null,null,null,null,null,null,null,"nie"]
[]
[]
[null,null,"B.8.  Wydatki  inwestycyjne  i koszty w układzie kwartalnym i rocznym/związane z przedsięwzięciem - w okresie realizacji /(brutto w PLN):"]
[null,null,"Działania ","Wydatki/ koszty","Rok pierwszy  przedsięwzięcia w ujęciu kwartalnym",null,null,null,2014,"Rok 2","Rok 3","Rok 4","Rok 5","Rok 6",null,null,null,null,null,null,null,null,{"$f":"I123","v":2014}]
[null,null,null,null,"Kwartał 1","Kwartał 2","Kwartał 3","Kwartał 4","Razem ",{"$f":"I123+1","v":2015},{"$f":"J124+1","v":2016},{"$f":"K124+1","v":2017},2018,2019,null,null,null,null,null,null,null,null,{"$f":"N124","v":2019},null,null,null,null,"Kwartał 1",90]
[null,null,null,null,{"$f":"I123","v":2014},null,null,null,null,null,null,null,null,null,null,null,null,null,null,null,null,null,null,null,null,null,null,"Kwartał 2",180]
[null,null,"Działanie1","Wydatki inwestycyjne, np.",null,null,null,null,{"$f":"SUM(E126:H126)","v":0},null,null,null,null,null,null,null,null,null,null,null,null,null,{"$f":"SUM(I126:N126)","v":0},null,null,null,null,"Kwartał 3",270]
[null,null,null,"remont ogrodu",null,null,null,0,0,null,null,null,null,null,null,null,null,null,null,null,null,null,0,null,null,null,null,"Kwartał 4",360]
[null,null,null,"zakup maszyny",null,null,null,0,0,null,null,null,null,null,null,null,null,null,null,null,null,null,0,null,null,null,null,"nie dotyczy",0]
[null,null,null," ",null,null,null,null,0,null,null,null,null,null,null,null,null,null,null,null,null,null,0]
[null,null,null," ",null,null,null,null,0,null,null,null,null,null,null,null,null,null,null,null,null,null,0]
[null,null,null," ",null,null,null,null,0,null,null,null,null,null,null,null,null,null,null,null,null,null,0]
[null,null,null,"Razem wydatki inwestycyjne",{"$f":"SUM(E126:E131)","v":0},{"$f":"SUM(F126:F131)","v":0},{"$f":"SUM(G126:G131)","v":0},{"$f":"SUM(H126:H131)","v":0},0,{"$f":"SUM(J126:J131)","v":0},{"$f":"SUM(K126:K131)","v":0},{"$f":"SUM(L126:L131)","v":0},{"$f":"SUM(M126:M131)","v":0},{"$f":"SUM(N126:N131)","v":0},null,null,null,null,null,null,null,null,0]
[null,null,null,"Inne wydatki zaliczone jako koszty,np.:",null,null,null,null,0,null,null,null,null,null,null,null,null,null,null,null,null,null,0]
[null,null,null," koszty eksploatacyjne - np. czynsz,zużycie materiałów i energii, transport ,podatki , opłaty, inne",null,null,null,0,0,null,null,null,null,null,null,null,null,null,null,null,null,null,0]
[null,null,null,"wynagrodzenia z narzutami",null,null,null,0,null,null,null,null,null,null,null,null,null,null,null,null,null,null,0]
[null,null,null," ",null,null,null,null,null,null,null,null,null,null,null,null,null,null,null,null,null,null,0]
[null,null,null," ",null,null,null,null,null,null,null,null,null,null,null,null,null,null,null,null,null,null,0]
[null,null,null," ",null,null,null,null,{"$f":"SUM(E138:H138)","v":0},null,null,null,null,null,null,null,null,null,null,null,null,null,0]
[null,null,null,"Razem inne wydatki",{"$f":"SUM(E133:E138)","v":0},{"$f":"SUM(F133:F138)","v":0},{"$f":"SUM(G133:G138)","v":0},{"$f":"SUM(H133:H138)","v":0},0,{"$f":"SUM(J133:J138)","v":0},{"$f":"SUM(K133:K138)","v":0},{"$f":"SUM(L133:L138)","v":0},{"$f":"SUM(M133:M138)","v":0},{"$f":"SUM(N133:N138)","v":0},null,null,null,null,null,null,null,null,0]
[null,null,"Działanie 2","Wydatki inwestycyjne, np.",null,null,null,null,0,null,null,null,null,null,null,null,null,null,null,null,null,null,0]
[null,null,null,"zakup samochodu",null,null,null,null,0,null,null,null,null,null,null,null,null,null,null,null,null,null,0]
[null,null,null,"zakup maszyny",null,null,null,null,0,null,null,null,null,null,null,null,null,null,null,null,null,null,0]
[null,null,null,null,null,null,null,null,0,null,null,null,null,null,null,null,null,null,null,null,null,null,0]
[null,null,null,null,null,null,null,null,0,null,null,null,null,null,null,null,null,null,null,null,null,null,0]
[null,null,null,null,null,null,null,null,0,null,null,null,null,null,null,null,null,null,null,null,null,null,0]
[null,null,null,"Razem wydatki inwestycyjne",{"$f":"SUM(E140:E145)","v":0},{"$f":"SUM(F140:F145)","v":0},{"$f":"SUM(G140:G145)","v":0},{"$f":"SUM(H140:H145)","v":0},0,{"$f":"SUM(J140:J145)","v":0},{"$f":"SUM(K140:K145)","v":0},{"$f":"SUM(L140:L145)","v":0},{"$f":"SUM(M140:M145)","v":0},{"$f":"SUM(N140:N145)","v":0},null,null,null,null,null,null,null,null,0]
[null,null,null,"Inne wydatki zaliczone jako koszty,np.:",null,null,null,null,0,null,null,null,null,null,null,null,null,null,null,null,null,null,0]
[null,null,null," koszty eksploatacyjne - np. czynsz,zużycie materiałów i energii, transport ,podatki , opłaty, inne",null,null,null,0,0,null,null,null,null,null,null,null,null,null,null,null,null,null,0]
[null,null,null,"wynagrodzenia z narzutami",null,null,null,null,0,null,null,null,null,null,null,null,null,null,null,null,null,null,0]
[null,null,null,null,null,null,null,null,null,null,null,null,null,null,null,null,null,null,null,null,null,null,0]
[null,null,null,null,null,null,null,null,{"$f":"SUM(E151:H151)","v":0},null,null,null,null,null,null,null,null,null,null,null,null,null,0]
[null,null,null,null,null,null,null,null,{"$f":"SUM(E152:H152)","v":0},null,null,null,null,null,null,null,null,null,null,null,null,null,0]
[null,null,null,"Razem inne wydatki",{"$f":"SUM(E147:E152)","v":0},{"$f":"SUM(F147:F152)","v":0},{"$f":"SUM(G147:G152)","v":0},{"$f":"SUM(H147:H152)","v":0},{"$f":"SUM(E153:H153)","v":0},{"$f":"SUM(J147:J152)","v":0},{"$f":"SUM(K147:K152)","v":0},{"$f":"SUM(L147:L152)","v":0},{"$f":"SUM(M147:M152)","v":0},{"$f":"SUM(N147:N152)","v":0},null,null,null,null,null,null,null,null,0]
[null,null,"Razem wydatki i wydatki zaliczone jako koszty -  wszystkich działań",null,{"$f":"E153+E146+E139+E132","v":0},{"$f":"F153+F146+F139+F132","v":0},{"$f":"G153+G146+G139+G132","v":0},{"$f":"H153+H146+H139+H132","v":0},{"$f":"SUM(E154:H154)","v":0},{"$f":"J153+J146+J139+J132","v":0},{"$f":"K153+K146+K139+K132","v":0},{"$f":"L153+L146+L139+L132","v":0},{"$f":"M153+M146+M139+M132","v":0},{"$f":"N153+N146+N139+N132","v":0},null,null,null,null,null,null,null,null,0]
[null,null," "]
[null,null,"B.9.  Struktura finansowania planowanych działąń(w PLN)"]
[null,null,"Okresy",null,{"$f":"E124","v":"Kwartał 1"},"Kwartał 2","Kwartał 3","Kwartał 4","Razem ",2015,2016,2017,2018,2019,null,null,null,null,null,null,null,null,"Razem           "]
[null,null,"Źródła finansowania przedsięwzięcia  razem/ wartość wypłacanych środków w okresie/, z tego",null,{"$f":"E159+E161+E162","v":0},0,0,0,0,0,0,0,0,0,null,null,null,null,null,null,null,null,{"$f":"SUM(I158:N158)","v":0}]
[null,null,"środki własne planowane przez  wnioskodawcę",null,null,null,null,0,{"$f":"SUM(E159:H159)","v":0},null,null,null,null,null,null,null,null,null,null,null,null,null,{"$f":"SUM(I159:N159)","v":0}]
[null,null,"Roboczy_środki własne wnioskodawcy możliwe do wydatkowania na projekt",null,{"$f":"IF(E154>0,IF(AND((E154-E161-E162)>0,'5_projekcje'!E128>0),E154-E161-E162,0),0)","v":0},{"$f":"IF(F154>0,IF(AND((F154-F161-F162)>0,'5_projekcje'!F128>0),F154-F161-F162,'5_projekcje'!E128),0)","v":0},{"$f":"IF(G154>0,IF(AND((G154-G161-G162)>0,'5_projekcje'!G128>0),G154-G161-G162,'5_projekcje'!F128),0)","v":0},{"$f":"IF(H154>0,IF(AND((H154-H161-H162)>0,'5_projekcje'!H128>0),H154-H161-H162,'5_projekcje'!G128),0)","v":0},{"$f":"SUM(E160:H160)","v":0},null,{"$f":"IF(K154>0,IF(AND((K154-K161-K162)>0,'5_projekcje'!K128>0),K154-K161-K162,'5_projekcje'!J128),0)","v":0},{"$f":"IF(L154>0,IF(AND((L154-L161-L162)>0,'5_projekcje'!L128>0),L154-L161-L162,'5_projekcje'!K128),0)","v":0},{"$f":"IF(M154>0,IF(AND((M154-M161-M162)>0,'5_projekcje'!M128>0),M154-M161-M162,'5_projekcje'!L128),0)","v":0},{"$f":"IF(N154>0,IF(AND((N154-N161-N162)>0,'5_projekcje'!N128>0),N154-N161-N162,'5_projekcje'!M128),0)","v":0},null,null,null,null,null,null,null,null,{"$f":"SUM(I160:N160)","v":0},null,null,null,"CO TO JEST? 2"]
[null,null,"wnioskowana pożyczka ",null,null,null,null,0,{"$f":"SUM(E161:H161)","v":0},null,null,null,null,null,null,null,null,null,null,null,null,null,{"$f":"SUM(I161:N161)","v":0}]
[null,null,"\"Inne\"(suma carakterystyki źródeł \"inne\"  poz poniżej)",null,{"$f":"E165+E166+E167+E168","v":0},{"$f":"F165+F166+F167+F168","v":0},{"$f":"G165+G166+G167+G168","v":0},{"$f":"H165+H166+H167+H168","v":0},{"$f":"SUM(E162:H162)","v":0},{"$f":"J165+J166+J167+J168","v":0},{"$f":"K165+K166+K167+K168","v":0},{"$f":"L165+L166+L167+L168","v":0},{"$f":"M165+M166+M167+M168","v":0},{"$f":"N165+N166+N167+N168","v":0},null,null,null,null,null,null,null,null,{"$f":"SUM(I162:N162)","v":0}]
[]
[null,null,"Charakterystyka źródeł finansowania kosztów przedsięwzięcia wykazanych w wierszu „Inne” ( w PLN):",null,null,null,null,null,null,null,null,null,null,null,null,null,null,"przenosić nazwy okresów "]
[null,null,"nazwa kredytu ","oprocentowanie roczne",null,null,null,null,{"$f":"SUM(E165:H165)","v":0}]
[null,null,"kredyt 1",0,null,null,null,0,{"$f":"SUM(E166:H166)","v":0},null,null,null,null,null,null,null,null,null,null,null,null,null,{"$f":"SUM(I166:N166)","v":0}]
[null,null,"kredyt 2",null,null,null,null,null,{"$f":"SUM(E167:H167)","v":0},null,null,null,null,null,null,null,null,null,null,null,null,null,{"$f":"SUM(I167:M167)","v":0}]
[null,null," ",null,null,null,null,null,{"$f":"SUM(E168:H168)","v":0},null,null,null,null,null,null,null,null,null,null,null,null,null,{"$f":"SUM(I168:M168)","v":0}]
[null,null,"Różnica :żródła finansowania -wydatki i koszty   - w każdym okresie",null,{"$f":"E158-E154","v":0},0,0,0,0,0,0,0,0,0]
[null,null,"Różnica :żródła finansowania -wydatki i koszty   - skumulowana",null,{"$f":"E169","v":0},{"$f":"E170+F169","v":0},0,0,{"$f":"H170","v":0},0,0,0,0,0]
[]
[null,null,"B.10. Prognoza sprzedaży z tytułu realizacji przedsięwzięcia netto  w PLN : "]
[null,null,"Należy przedstawić wartość sprzedaży podstawowych produktów i usług jakie będą oferowane na rynku bezpośrednio w wyniku realizacji projektu (dotyczy również przedsięwzięć , gdzie w wyniku ich realizacji zwiększy się wyłącznie wartość sprzedaży – w takim przypadku należy rozpatrywać wzrost sprzedaży)."]
[null,null,"Produkt lub usługa",null,"Rok pierwszy w ujęciu kwartalnym ",null,null,null,{"$f":"I157","v":"Razem "},2015,2016,2017,2018,2019,null,null,null,null,null,null,null,null,"dodać"]
[null,null,null,null,{"$f":"E157","v":"Kwartał 1"},{"$f":"F157","v":"Kwartał 2"},{"$f":"G157","v":"Kwartał 3"},{"$f":"H157","v":"Kwartał 4"},{"$f":"I123","v":2014},"Rok 2","Rok 3","Rok 4","Rok 5","Rok 6"]
[null,null," ",null,null,null,null,null,{"$f":"SUM(E176:H176)","v":0}]
[null,null," "]
[null,null," "]
[null,null," "]
[null,null,"Razem",null,{"$f":"SUM(E176:E179)","v":0},0,0,0,0,0,0,0,0,0]
[null,null,"Należy przedstawić, na jakiej podstawie cena i prognozowana wielkość sprzedaży zostały skalkulowane:"]
[]
[null,null,"str 3"]
[null,null,"B.11. Realizacja / prognoza przychodów i kosztów  wnioskodawcy  netto w PLN"]
[null,null,"Okresy",null,"Rok pierwszy w ujęciu kwartalnym",null,null,null,{"$f":"I174","v":"Razem "},2015,2016,2017,2018,2019]
[null,null,null,null,{"$f":"E175","v":"Kwartał 1"},{"$f":"F175","v":"Kwartał 2"},{"$f":"G175","v":"Kwartał 3"},{"$f":"H175","v":"Kwartał 4"},null,null,null,null,null,null,null,null,null,null,"prognoza",1]
[null,null,null,null,"prognoza","prognoza","prognoza","prognoza",{"$f":"I175","v":2014},"Rok 2","Rok 3","Rok 4","Rok 5","Rok 6",null,null,null,null,"realizacja",2]
[null,null,"I. Przychody ogółem (II+III+IV+V), z tego",null,{"$f":"E189+E192+E193+E194","v":0},0,0,0,0,0,0,0,0,0]
[null,null,"II. Przychody  z działalności gospodarczej , ze sprzedaży produktów, usług i towarów ogółem, z tego:",null,{"$f":"SUM(E190:E191)","v":0},0,0,0,0,0,0,0,0,0]
[null,null,"z wnioskowanego przedsięwzięcia",null,{"$f":"E180","v":0},{"$f":"F180","v":0},{"$f":"G180","v":0},{"$f":"H180","v":0},{"$f":"SUM(E190:H190)","v":0},{"$f":"J180","v":0},{"$f":"K180","v":0},{"$f":"L180","v":0},{"$f":"M180","v":0},{"$f":"N180","v":0}]
[null,null,"z dotychczasowej działalności",null,null,null,null,null,{"$f":"SUM(E191:H191)","v":0}]
[null,null,"III. Pozostałe przychody operacyjne  - razem",null,null,null,null,0,{"$f":"SUM(E192:H192)","v":0}]
[null,null,"IV. Przychody finansowe",null,null,null,null,null,{"$f":"SUM(E193:H193)","v":0}]
[null,null," V. Przychody z działalności  statutowej",null,null,null,null,null,{"$f":"SUM(E194:H194)","v":0}]
[null,null,null,null,"kw 1","kw2","kw 3","kw 4","rok 1 razem","rok 2","rok 3","rok 4","rok 5","rok 5"]
[null,null,"Koszty ogółem/VI+VII+pkt B8/",null,{"$f":"E207+E197+E153+E139","v":0},{"$f":"F207+F197+F153+F139","v":0},{"$f":"G207+G197+G153+G139","v":0},{"$f":"H207+H197+H153+H139","v":0},{"$f":"SUM(E196:H196)","v":0},{"$f":"J207+J197+J153+J139","v":0},{"$f":"K207+K197+K153+K139","v":0},{"$f":"L207+L197+L153+L139","v":0},{"$f":"M207+M197+M153+M139","v":0},{"$f":"N207+N197+N153+N139","v":0}]
[null,null,"VI. Koszty działalności gospodarczej ogółem , w tym:",null,{"$f":"E203+E204+E205+E206","v":0},{"$f":"F203+F204+F205+F206","v":0},{"$f":"G203+G204+G205+G206","v":0},{"$f":"H203+H204+H205+H206","v":0},{"$f":"SUM(E197:H197)","v":0},{"$f":"J203+J204+J205+J206","v":0},{"$f":"K203+K204+K205+K206","v":0},{"$f":"L203+L204+L205+L206","v":0},{"$f":"M203+M204+M205+M206","v":0},{"$f":"N203+N204+N205+N206","v":0},null,null,null,null,null,"podział kosztów"]
[null,null,"a) amortyzacja z dotychczasowych aktywów",null,null,null,null,null,{"$f":"SUM(E198:H198)","v":0},null,null,null,null,null,null,null,null,null,null,"amortyzacja z dot aktywów",null,null,null,"średnia amortyzacja  dla zakupionych aktywówm trwałych w %"]
[null,null,"amortyzacja z planowanego przedsięwzięcia",null,{"$f":"$X$199*(E132+E146)/4","v":0},{"$f":"E199+($X$199*(F132+F146)/4)","v":0},{"$f":"F199+($X$199*(G132+G146)/4)","v":0},0,{"$f":"SUM(E199:H199)","v":0},{"$f":"I199+(J132+J146)*$X$199","v":0},{"$f":"J199+(K132+K146)*$X$199","v":0},{"$f":"K199+(L132+L146)*$X$199","v":0},0,{"$f":"M199+(N132+N146)*$X$199","v":0},null,"ukryć",null,null,null,"koszty ekspl /czynsz energia transport",null,null,null,0.15]
[null,null,"b)  koszty eksploatacyjne - np. czynsz,zużycie materiałów i energii, transport ,podatki , opłaty, inne",null,null,null,null,0,{"$f":"SUM(E200:H200)","v":0},null,null,null,null,null,null,null,null,null,null,"wynagrodzenia z narzutami"]
[null,null,"c) wynagrodzenia z narzutami",null,null,null,null,0,0]
[null,null,"d) koszt sprzedanych towarów , materiałów , usług",null,null,null,null,null,0]
[null,null,"Razem koszty działalności  operacyjnej (a+b+c+d)",null,{"$f":"SUM(E198:E202)","v":0},{"$f":"SUM(F198:F202)","v":0},{"$f":"SUM(G198:G202)","v":0},{"$f":"SUM(H198:H202)","v":0},0,{"$f":"SUM(J198:J202)","v":0},{"$f":"SUM(K198:K202)","v":0},{"$f":"SUM(L198:L202)","v":0},{"$f":"SUM(M198:M202)","v":0},{"$f":"SUM(N198:N202)","v":0}]
[null,null,"Koszty finansowe dotyczące dotychczasowych  kredytów , pożyczek",null,null,null,null,null,0,null,null,null,null,null,null,null,null,null,null,"inne"]
[null,null,"koszty finansowe dotyczące kredytów, pożyczek na planowane  przedsięwzięcie",null,{"$f":"'3_Zał_F_TISE'!E50+'3_Zał_F_TISE'!E51+'3_Zał_F_TISE'!E52","v":0},{"$f":"'3_Zał_F_TISE'!F50+'3_Zał_F_TISE'!F51+'3_Zał_F_TISE'!F52","v":0},{"$f":"'3_Zał_F_TISE'!G50+'3_Zał_F_TISE'!G51+'3_Zał_F_TISE'!G52","v":0},{"$f":"'3_Zał_F_TISE'!H50+'3_Zał_F_TISE'!H51+'3_Zał_F_TISE'!H52","v":0},0,{"$f":"'3_Zał_F_TISE'!J50+'3_Zał_F_TISE'!J51+'3_Zał_F_TISE'!J52","v":0},{"$f":"'3_Zał_F_TISE'!K50+'3_Zał_F_TISE'!K51+'3_Zał_F_TISE'!K52","v":0},{"$f":"'3_Zał_F_TISE'!L50+'3_Zał_F_TISE'!L51+'3_Zał_F_TISE'!L52","v":0},{"$f":"'3_Zał_F_TISE'!M50+'3_Zał_F_TISE'!M51+'3_Zał_F_TISE'!M52","v":0},{"$f":"'3_Zał_F_TISE'!N50+'3_Zał_F_TISE'!N51+'3_Zał_F_TISE'!N52","v":0},null,null,null,null,null,"razem koszty dział operacyjnej"]
[null,null,"Pozostałe koszty operacyjne ",null,null,null,null,null,0,null,null,null,null,null,null,null,null,null,null,"pozostałe koszty operacyjne"]
[null,null,"VII. Koszty realizacji zadań statutowych",null,null,null,null,null,0,null,null,null,null,null,null,null,null,null,null,"koszt z dział statutowej"]
[]
[]
[null,null,"Sekcja C. Usługi doradztwa"]
[null,null,"C.1. Czy Wnioskodawca planuje skorzystanie z bezpłatnych usług doradztwa świadczonych przez …",null,null,null,null,null,"Nie",null,null,null,null,null,null,null,null,null,null,"Nie"]
[null,null,"Jeżeli tak:",null,null,null,null,null,null,null,null,null,null,null,null,null,null,null,null,"Tak"]
[null,null,"C.2. Ile godzin usług doradczych planuje wykorzystać Wnioskodawca",null,null,null,null,null,0,null,null,null,null,null,null,null,null,null,null,"Zarządzanie  finansami"]
[null,null,"C.3. Z jakiego zakresu usług doradczych planuje skorzystać Wnioskodawca",null,null,null,null,null,null,null,null,null,null,null,null,null,null,null,null,"Rachunkowość"]
[null,null,"Sekcja D. Deklaracje i oświadczenia Wnioskodawcy",null,null,null,null,null,null,null,null,null,null,null,null,null,null,null,null,"Zarządzanie zasobami ludzkimi"]
[null,null,"Oświadczam, że:",null,null,null,null,null,null,null,null,null,null,"Tak/Nie",null,null,null,null,null,"Prawo"]
[null,null,"Wszystkie informacje podane w niniejszym wniosku i załącznikach do wniosku są prawdziwe i zgodne ze stanem faktycznym i prawnym, co potwierdzam własnoręcznym podpisem.",null,null,null,null,null,null,null,null,null,null,"Tak",null,null,null,null,null,"Marketing"]
[null,null,"Nie ciąży na mnie obowiązek zwrotu kwoty stanowiącej równowartość uzyskanej pomocy publicznej, co do której Komisja Europejska wydała decyzję o obowiązku zwrotu pomocy.",null,null,null,null,null,null,null,null,null,null,"Tak"]
[null,null,"Jestem świadomy odpowiedzialności karnej wynikającej z art. 297 § 1 ustawy z dnia 6 czerwca 1997r. Kodeks Karny (Dz. U. z 1997 r., Nr 88, poz. 553 z późn. zm.) za składanie nierzetelnych oświadczeń, o których mowa w art. 297 § 1 ustawy oraz możliwości utraty pomocy finansowej jeśli miały one wpływ na jej przyznanie lub udzielenie.",null,null,null,null,null,null,null,null,null,null,"Tak",null,null,null,null,null,"Nie"]
[null,null,"Projekt będzie realizowany zgodnie z ustawą z dnia 29 stycznia 2004 r. Prawo zamówień publicznych (tekst jednolity Dz. U. z 2010 r. nr 113, poz. 759 z późn. zm.). W sytuacji wyłączenia Projektu spod stosowania ustawy PZP, zobowiązuję się do ponoszenia wydatków z należytą starannością (celowo, rzetelnie, racjonalnie i oszczędnie).",null,null,null,null,null,null,null,null,null,null,"Tak",null,null,null,null,null,"Tak"]
[null,null,"W przypadku pozytywnego rozpatrzenia niniejszego wniosku o pożyczkę na realizację przedsięwzięcia, nie naruszę zasady zakazu podwójnego finansowania, oznaczającej niedozwolone sfinansowanie całkowite lub częściowe danego wydatku dwa razy ze środków publicznych (wspólnotowych lub krajowych).",null,null,null,null,null,null,null,null,null,null,"Tak"]
[null,null,"Deklaruję zabezpieczenie, a następnie poniesienie w całości udziału własnego na pokrycie wydatków związanych z realizacją przedsięwzięcia.",null,null,null,null,null,null,null,null,null,null,"Tak"]
[null,null,"Zgodnie z Rozporządzeniem Rady Ministrów z dnia 29 marca 2010 r. w sprawie zakresu informacji przedstawianych przez podmiot ubiegający się o pomoc de minimis (Dz. U. z 2010 r. Nr 53, poz. 311) oraz Rozporządzeniem Ministra Rozwoju Regionalnego z dnia 20 października 2010 r. zmieniającym Rozporządzenie w sprawie udzielania pomocy publicznej w ramach PO KL (Dz. U. z 2011 r. Nr 233, poz. 1383), oświadczam, że w okresie 3 lat budżetowych poprzedzających złożenie wniosku o pożyczkę, uzyskałem pomoc de minimis o wartości: …………….. PLN.",null,null,null,null,null,null,null,null,null,null,"Tak"]
[null,null,"Wnioskodawca przeznacza co najmniej 10% zysku lub nadwyżki bilansowej na działalność pożytku publicznego (w przypadku spółdzielni socjalnych na działalność określoną w art. 2 ust 3 ustawy o spółdzielniach socjalnych).",null,null,null,null,null,null,null,null,null,null,"Tak"]
[null,null,"Sekcja E. Dokumenty pozwalające ocenić sytuację finansową Wnioskodawcy"]
[null,null,"Do Wniosku dołączam następujące dokumenty finansowe:",null,null,null,null,null,null,"Tak/Nie"]
[null,null,"Sprawozdania roczne / bilans i rachunek zysków i strat za ostatnie 3 lata, wraz z raportem i opinią biegłego rewidenta za ostatni lub poprzedni rok – o ile przepisy dotyczące rachunkowości nakładają na Inwestora obowiązek sporządzania takiego raportu (jeśli Inwestor prowadzi działalność krócej niż 3 lata – zobowiązany jest dostarczyć dokumentację finansową za okres działalności)",null,null,null,null,null,null,"Tak"]
[null,null,"Sprawozdania kwartalne za ostatni okres (tj. od początku roku do kwartału poprzedzającego złożenie wniosku)",null,null,null,null,null,null,"Tak"]
[null,null,"Sprawozdania roczne z przepływu środków pieniężnych",null,null,null,null,null,null,"Tak",null,null,null,null,null,null,null,null,null,"Tak"]
[null,null,"Zestawienie należności i zobowiązań bilansowych  oraz pozycji pozabilansowych",null,null,null,null,null,null,"Tak, wg załącznika",null,null,null,null,null,null,null,null,null,"Nie"]
[null,null,"Zaświadczenia z Urzędu Skarbowego i Zakładu Ubezpieczeń Społecznych o niezaleganiu w płatnościach zobowiązań nie starsze niż 3 miesiące",null,null,null,null,null,null,"Tak",null,null,null,null,null,null,null,null,null,"Tak, wg załącznika"]
[]
[null,null,"Sekcja F. Pozostałe załączniki"]
[null,null,"Do Wniosku dołączam dokumenty rejestrowe:",null,"Tak/Nie"]
[null,null,"Statut / umowa podmiotu",null,"Tak"]
[null,null,"NIP",null,"Tak"]
[null,null,"REGON",null,"Tak"]
[]
[null,null,"Do Wniosku dołączam następujące załączniki:",null,"Tak/Nie"]
[null,null,"Załącznik A – zestawienie kodów PKD (jeśli jest ich więcej niż 10)",null,"Tak"]
[null,null,"Załącznik B – oświadczenie Zarządu dotyczące potwierdzenia, że podmiot spełnia kryteria mikro i małych przedsiębiorstw",null,"Tak"]
[null,null,"Załącznik C – oświadczenie o przetwarzaniu danych osobowych",null,"Tak"]
[null,null,"Załącznik D – zakres danych osobowych",null,"Tak"]
[null,null,"Załącznik E – formularz informacji przedstawianych przy ubieganiu się o pomoc de minimis",null,"Tak"]
[null,null,"Załącznik F – arkusz excel  - dane finansowe i  założenia do projekcji finansowej",null,"Tak"]
[null,null,"Załącznik G - oświadczenie  o  niepodleganiu wykluczeniu",null,"Tak"]
[null,null,"Załącznik H Proponowane zabezpieczenia",null,"Tak"]
[]
[null,null,"Sekcja G. Informacje dla Wnioskodawcy"]
[null,null,"Niniejszy wniosek nie jest ofertą i nie zobowiązuje ani Towarzystwa Inwestycji Społeczno-Ekonomicznych SA, ani Wnioskodawcy do zawarcia umowy Pożyczki. Towarzystwo Inwestycji Społeczno-Ekonomicznych SA zatrzymuje oryginał wniosku wraz z załącznikami do wniosku oraz kopie wszystkich dołączonych do wniosku dokumentów – nawet, jeśli Pożyczka nie zostanie udzielona."]
[null,null,"Towarzystwo Inwestycji Społeczno-Ekonomicznych SA, jako administrator danych osobowych, w rozumieniu przepisów Ustawy o ochronie danych osobowych informuje, że w jego zbiorze danych będą przetwarzane dane osobowe osób reprezentujących Wnioskodawcę w celu wykonywania czynności, których Wnioskodawca będzie stroną. Osobom tym przysługuje prawo wglądu do swoich danych i prawo ich poprawienia."]
[null,null,"Towarzystwo Inwestycji Społeczno-Ekonomicznych SA informuje, że dane osobowe osób reprezentujących Wnioskodawcę mogą zostać przekazane do:"]
[null,null,"1. systemu BANKOWY REJESTR, którego Administratorem danych jest Związek Banków Polskich z siedzibą w Warszawie, ul. Kruczkowskiego 8, działający na podstawie przepisów ustawy z dnia 29 sierpnia 1997 r. Prawo bankowe (Dz. U. z 2002 r. Nr 72, poz. 665 z późn. zm.),"]
[null,null,"2. zbioru danych osobowych „Kredytobiorcy”, którego administratorem danych jest Biuro Informacji Kredytowej S.A. z siedzibą w Warszawie."]
[]
[]
[null,null,"Pieczęcie i podpisy Reprezentantów Wnioskodawcy",null,null,"Zajmowane stanowiska"]
[null,null,null,null,null," "]
[null,null,null,null,null," "]
[null,null,null,null,null," "]
[null,null,"…………………………………………….…",null,null,"………………………………………………"]
[null,null,"Imię i nazwisko*",null,null,"Data"]
[null,null,"(*w przypadku braku pieczęci imiennej reprezentantów Wnioskodawcy należy wypełnić z użyciem liter drukowanych)",null,null," "]
[]
[null,null,null," „Projekt jest współfinansowany ze środków Unii Europejskiej w ramach Europejskiego Funduszu Społecznego”."]

{"sheet":"harm_pożyczki es","index":2,"n_rows":108,"n_cols":33,"rows_kept":108,"cut":false,"hidden":true,"merged":[[1,14,1,15],[2,2,2,3],[2,17,2,18],[2,29,2,31]]}
[null,null,null,null,null,"Harmonogram annuitetowy",null,null,null,null,null,null,null,null,null,null,null,null,null,null,"Harmonogram tradycyjny"]
[null,null,null,null,null,null,null,null,null,null,null,null,null,null,"Założenia kredytu"]
[null,null,"Formuły pomocnicze",null,null,"numer okresu","dat końca okresu",null,"stała kwota płatności /pmt/","rata kapitału  kredytu w danym okresie         /ppmt/","rata odsetkowa w danym okresie           /ipmt/","odsetki do zapłaty narastająco  /cumipmt lub splac.ods/","kwota kredytu pozostałego do spłaty /pv/",null,"oprocentowanie roczne",{"$f":"'1_wniosek'!T9","v":0},null,"Formuły pomocnicze",null,null,"numer okresu","dat końca okresu",null,"rata kapitału kredytu w danym okresie        ","spłaty rat kred narastająco","rata odsetkowa w danym okresie          ","odsetki do zapłaty narastająco","kwota kredytu pozostałego do spłaty na koniec okresu",null,"Formuły pomocnicze"]
[null,null,{"$f":"P8","v":0},0,null,0,{"$f":"P6","v":"2014-08-31"},null,null,null,null,null,{"$f":"PV($P$7,C4,$I$5,0,0)*-1","v":{"$error":"#NUM!"}},null,"liczba miesięcy",{"$f":"'1_wniosek'!I77","v":0},null,{"$f":"P8","v":0},0,null,0,{"$f":"P6","v":"2014-08-31"},null,null,null,null,null,{"$f":"P5","v":0},null,"oprocentowanie","liczba okresów","data"]
[null,null,{"$f":"IF(C4-1>=0,C4-1,0)","v":0},{"$f":"IF(C4>0,D4+1,0)","v":0},null,{"$f":"IF(D5=0,\"\",D5)","v":""},{"$f":"IF(D5=0,\"\",EOMONTH(G4,$AF$8))","v":""},null,{"$f":"PMT(P7,P8,-$P$5,,0)","v":{"$error":"#NUM!"}},{"$f":"IF(I5=\"\",\"\",(PPMT($P$7,D5,$P$8,-$P$5)))","v":{"$error":"#NUM!"}},{"$f":"IPMT($P$7,F5,$P$8,-$P$5)","v":{"$error":"#VALUE!"}},{"$f":"CUMIPMT($P$7,$P$8,$P$5,1,F5,0)*-1","v":{"$error":"#VALUE!"}},{"$f":"IF(F5>0,M4-J5,\"\")","v":{"$error":"#NUM!"}},null,"kwota kredytu",{"$f":"'1_wniosek'!E9","v":0},null,{"$f":"IF(R4-1>=0,R4-1,0)","v":0},{"$f":"IF(R4>0,S4+1,0)","v":0},null,1,{"$f":"IF(S5=0,\"\",EOMONTH(V4,$AF$8))","v":""},null,{"$f":"IF(AND(S5<=$P$9,S5>0),0,IF(S5=0,\"\",$AF$10))","v":""},{"$f":"IF(AND(S5>$P$9,S5>0),(S5-$P$9)*$AF$10,0)","v":0},{"$f":"IF(S5=0,\"\",AB4*$P$7)","v":""},{"$f":"Z5","v":""},{"$f":"IF(AND(S5<$P$9,S5>0),$AB$4,IF(S5>0,$AB$4-(S5-$P$9)*$AF$10,\"\"))","v":""},null,{"$f":"IF(P11=1,P3/12,0)","v":0},{"$f":"IF($P11=1,$P$4,0)","v":0}]
[null,null,0,{"$f":"IF(C5>0,D5+1,0)","v":0},null,{"$f":"IF(D6=0,\"\",D6)","v":""},{"$f":"IF(D6=0,\"\",EOMONTH(G5,$AF$8))","v":""},null,{"$f":"IF(D6=0,\"\",I5)","v":""},{"$f":"IF(I6=\"\",\"\",(PPMT($P$7,D6,$P$8,-$P$5)))","v":""},{"$f":"IF(J6=\"\",\"\",(IPMT($P$7,D6,$P$8,-$P$5)))","v":""},{"$f":"IF(K6=\"\",\"\",(CUMIPMT($P$7,$P$8,$P$5,1,F6,0)*-1))","v":""},{"$f":"IF(F6>0,M5-J6,\"\")","v":{"$error":"#NUM!"}},null,"data udostępnienia kredytu",{"$f":"'1_wniosek'!D77","v":"2014-08-31"},null,0,{"$f":"IF(R5>0,S5+1,0)","v":0},null,{"$f":"IF(S6=0,\"\",S6)","v":""},{"$f":"IF(S6=0,\"\",EOMONTH(V5,$AF$8))","v":""},null,"",{"$f":"IF(AND(S6>$P$9,S6>0),(S6-$P$9)*$AF$10,0)","v":0},{"$f":"IF(S6=0,\"\",AB5*$P$7)","v":""},{"$f":"IF(S6=0,\"\",AA5+Z6)","v":""},{"$f":"IF(AND(S6<$P$9,S6>0),$AB$4,IF(S6>0,$AB$4-(S6-$P$9)*$AF$10,\"\"))","v":""},null,{"$f":"IF(P12=1,P3/4,0)","v":0},{"$f":"IF($P12=1,$P$4/3,0)","v":0}]
[null,null,0,0,null,"","",null,{"$f":"IF(D7=0,\"\",I6)","v":""},"","",{"$f":"IF(K7=\"\",\"\",(CUMIPMT($P$7,$P$8,$P$5,1,F7,0)*-1))","v":""},{"$error":"#NUM!"},null,"oprocentowanie w okresie",{"$f":"MAX(AD5:AD7)","v":0},null,0,0,null,{"$f":"IF(S7=0,\"\",S7)","v":""},"",null,"",0,"",{"$f":"IF(S7=0,\"\",AA6+Z7)","v":""},"",null,{"$f":"IF(P13=1,P3,0)","v":0},{"$f":"IF($P13=1,$P$4/12,0)","v":0}]
[null,null,0,0,null,"","",null,"","",{"$f":"IF(J8=\"\",\"\",(IPMT($P$7,D8,$P$8,-$P$5)))","v":""},"",{"$f":"IF(D8>0,M7-J8,\"\")","v":""},null,"liczba okresów",{"$f":"MAX(AE5:AE7)","v":0},null,0,0,null,"","",null,"",0,"","","",null,null,null,{"$f":"IF(P11=1,1,IF(P12=1,3,IF(P13=1,12,0)))","v":1}]
[null,null,0,0,null,"","",null,"","",{"$f":"IF(J9=\"\",\"\",(IPMT($P$7,D9,$P$8,-$P$5)))","v":""},"",{"$f":"IF(D9>0,M8-J9,\"\")","v":""},null,"karencja w okresach  spłaty",{"$f":"'1_wniosek'!F77","v":0},null,0,0,null,"","",null,"",0,"","","",null,"2012-11-30"]
[null,null,0,0,null,"","",null,"","","","","",null,"częstotliwość płatności","wstawić     \" 1 \"     w odpowidnie pole",null,0,0,null,"","",null,"",0,"","","",null,"2012-12-31",null,{"$f":"AB4/(P8-P9)","v":{"$error":"#DIV/0!"}},"rata kapitałowa"]
[null,null,0,0,null,"","",null,"","","","","",null,"miesięcznie ",{"$f":"IF('1'!G51=\"x\",1,0)","v":1},null,0,0,null,"","",null,"",0,"","","",null,"2013-01-31"]
[null,null,0,0,null,"","",null,"","","","","",null,"kwartalnie",{"$f":"IF('1'!G52=\"x\",1,0)","v":0},null,0,0,null,"","",null,"",0,"","","",null,"2013-02-28",null,null,"rata kap "]
[null,null,0,0,null,"","",null,"","","","","",null,"rocznie",null,null,0,0,null,"","",null,"",0,"","","",null,"2013-03-31"]
[null,null,0,0,null,"","",null,"","","","","",null,null,null,null,0,0,null,"","",null,"",0,"","","",null,"2013-04-30"]
[null,null,0,0,null,"","",null,"","","","","",null,null,null,null,0,0,null,"","",null,"",0,"","","",null,"2013-05-31"]
[null,null,0,0,null,"","",null,"","","","","",null,null,null,null,0,0,null,"","",null,"",0,"","","",null,"2013-06-30"]
[null,null,0,0,null,"","",null,"","","","","",null,null,null,null,0,0,null,"","",null,{"$f":"IF(AND(S17<=$P$9,S17>0),0,IF(S17=0,\"\",$AF$10))","v":""},0,"","","",null,"2013-07-31"]
[null,null,0,0,null,"","",null,"","","","","",null,null,null,null,0,0,null,"","",null,{"$f":"IF(AND(S18<=$P$9,S18>0),0,IF(S18=0,\"\",$AF$10))","v":""},0,"","","",null,"2013-08-31"]
[null,null,0,0,null,"","",null,"","","","","",null,null,null,null,0,0,null,"","",null,"",0,"","","",null,"2013-09-30"]
[null,null,0,0,null,"","",null,"","","","","",null,null,null,null,0,0,null,"","",null,"",0,"","","",null,"2013-10-31"]
[null,null,0,0,null,"","",null,"","","","","",null,null,null,null,0,0,null,"","",null,"",0,"","","",null,"2013-11-30"]
[null,null,0,0,null,"","",null,"","","","","",null,null,null,null,0,0,null,"","",null,"",0,"","","",null,"2013-12-31"]
[null,null,0,0,null,"","",null,"","","","","",null,null,null,null,0,0,null,"","",null,"",0,"","",""]
[null,null,0,0,null,"","",null,"","","","","",null,null,null,null,0,0,null,"","",null,"",0,"","",""]
[null,null,0,0,null,"","",null,"","","","","",null,null,null,null,0,0,null,"","",null,"",0,"","",""]
[null,null,0,0,null,"","",null,"","","","","",null,null,null,null,0,0,null,"","",null,"",0,"","",""]
[null,null,0,0,null,"","",null,"","","","","",null,null,null,null,0,0,null,"","",null,"",0,"","",""]
[null,null,0,0,null,"","",null,"","","","","",null,null,null,null,0,0,null,"","",null,"",0,"","",""]
[null,null,0,0,null,"","",null,"","","","","",null,null,null,null,0,0,null,"","",null,"",0,"","",""]
[null,null,0,0,null,"","",null,"","","","","",null,null,null,null,0,0,null,"","",null,"",0,"","",""]
[null,null,0,0,null,"","",null,"","","","","",null,null,null,null,0,0,null,"","",null,"",0,"","",""]
[null,null,0,0,null,"","",null,"","","","","",null,null,null,null,0,0,null,"","",null,"",0,"","",""]
[null,null,0,0,null,"","",null,"","","","","",null,null,null,null,0,0,null,"","",null,"",0,"","",""]
[null,null,0,0,null,"","",null,"","","","","",null,null,null,null,0,0,null,"","",null,"",0,"","",""]
[null,null,0,0,null,"","",null,"","","","","",null,null,null,null,0,0,null,"","",null,"",0,"","",""]
[null,null,0,0,null,"","",null,"","","","","",null,null,null,null,0,0,null,"","",null,"",0,"","",""]
[null,null,0,0,null,"","",null,"","","","","",null,null,null,null,0,0,null,"","",null,"",0,"","",""]
[null,null,0,0,null,"","",null,"","","","","",null,null,null,null,0,0,null,"","",null,"",0,"","",""]
[null,null,0,0,null,"","",null,"","","","","",null,null,null,null,0,0,null,"","",null,"",0,"","",""]
[null,null,0,0,null,"","",null,"","","","","",null,null,null,null,0,0,null,"","",null,"",0,"","",""]
[null,null,0,0,null,"","",null,"","","","","",null,null,null,null,0,0,null,"","",null,"",0,"","",""]
[null,null,0,0,null,"","",null,"","","","","",null,null,null,null,0,0,null,"","",null,"",0,"","",""]
[null,null,0,0,null,"","",null,"","","","","",null,null,null,null,0,0,null,"","",null,"",0,"","",""]
[null,null,0,0,null,"","",null,"","","","","",null,null,null,null,0,0,null,"","",null,"",0,"","",""]
[null,null,0,0,null,"","",null,"","","","","",null,null,null,null,0,0,null,"","",null,"",0,"","",""]
[null,null,0,0,null,"","",null,"","","","","",null,null,null,null,0,0,null,"","",null,"",0,"","",""]
[null,null,0,0,null,"","",null,"","","","","",null,null,null,null,0,0,null,"","",null,"",0,"","",""]
[null,null,0,0,null,"","",null,"","","","","",null,null,null,null,0,0,null,"","",null,"",0,"","",""]
[null,null,0,0,null,"","",null,"","","","","",null,null,null,null,0,0,null,"","",null,"",0,"","",""]
[null,null,0,0,null,"","",null,"","","","","",null,null,null,null,0,0,null,"","",null,"",0,"","",""]
[null,null,0,0,null,"","",null,"","","","","",null,null,null,null,0,0,null,"","",null,"",0,"","",""]
[null,null,0,0,null,"","",null,"","","","","",null,null,null,null,0,0,null,"","",null,"",0,"","",""]
[null,null,0,0,null,"","",null,"","","","","",null,null,null,null,0,0,null,"","",null,"",0,"","",""]
[null,null,0,0,null,"","",null,"","","","","",null,null,null,null,0,0,null,"","",null,"",0,"","",""]
[null,null,0,0,null,"","",null,"","","","","",null,null,null,null,0,0,null,"","",null,"",0,"","",""]
[null,null,0,0,null,"","",null,"","","","","",null,null,null,null,0,0,null,"","",null,"",0,"","",""]
[null,null,0,0,null,"","",null,"","","","","",null,null,null,null,0,0,null,"","",null,"",0,"","",""]
[null,null,0,0,null,"","",null,"","","","","",null,null,null,null,0,0,null,"","",null,"",0,"","",""]
[null,null,0,0,null,"","",null,"","","","","",null,null,null,null,0,0,null,"","",null,"",0,"","",""]
[null,null,0,0,null,"","",null,"","","","","",null,null,null,null,0,0,null,"","",null,"",0,"","",""]
[null,null,0,0,null,"","",null,"","","","","",null,null,null,null,0,0,null,"","",null,"",0,"","",""]
[null,null,0,0,null,"","",null,"","","","","",null,null,null,null,0,0,null,"","",null,"",0,"","",""]
[null,null,0,0,null,"","",null,"","","","","",null,null,null,null,0,0,null,"","",null,"",0,"","",""]
[null,null,0,0,null,"","",null,"","","","","",null,null,null,null,0,0,null,"","",null,"",0,"","",""]
[null,null,0,0,null,"","",null,"","","","","",null,null,null,null,0,0,null,"","",null,"",0,"","",""]
[null,null,0,0,null,"","",null,"","","","","",null,null,null,null,0,0,null,"","",null,"",0,"","",""]
[null,null,0,0,null,"","",null,"","","","","",null,null,null,null,0,0,null,"","",null,"",0,"","",""]
[null,null,0,0,null,"","",null,"","","","","",null,null,null,null,0,0,null,"","",null,"",0,"","",""]
[null,null,{"$f":"IF(C68-1>=0,C68-1,0)","v":0},0,null,"","",null,"","","","","",null,null,null,null,{"$f":"IF(R68-1>=0,R68-1,0)","v":0},0,null,"","",null,"",0,"","",""]
[null,null,0,{"$f":"IF(C69>0,D69+1,0)","v":0},null,{"$f":"IF(D70=0,\"\",D70)","v":""},{"$f":"IF(D70=0,\"\",EOMONTH(G69,$AF$8))","v":""},null,"",{"$f":"IF(I70=\"\",\"\",(PPMT($P$7,D70,$P$8,-$P$5)))","v":""},"","","",null,null,null,null,0,{"$f":"IF(R69>0,S69+1,0)","v":0},null,"",{"$f":"IF(S70=0,\"\",EOMONTH(V69,$AF$8))","v":""},null,"",{"$f":"IF(AND(S70>$P$9,S70>0),(S70-$P$9)*$AF$10,0)","v":0},{"$f":"IF(S70=0,\"\",AB69*$P$7)","v":""},"",{"$f":"IF(AND(S70<$P$9,S70>0),$AB$4,IF(S70>0,$AB$4-(S70-$P$9)*$AF$10,\"\"))","v":""}]
[null,null,0,0,null,"","",null,{"$f":"IF(D71=0,\"\",I70)","v":""},"","",{"$f":"IF(K71=\"\",\"\",(CUMIPMT($P$7,$P$8,$P$5,1,F71,0)*-1))","v":""},"",null,null,null,null,0,0,null,{"$f":"IF(S71=0,\"\",S71)","v":""},"",null,"",0,"",{"$f":"IF(S71=0,\"\",AA70+Z71)","v":""},""]
[null,null,0,0,null,"","",null,"","","","","",null,null,null,null,0,0,null,"","",null,"",0,"","",""]
[null,null,0,0,null,"","",null,"","",{"$f":"IF(J73=\"\",\"\",(IPMT($P$7,D73,$P$8,-$P$5)))","v":""},"",{"$f":"IF(D73>0,M72-J73,\"\")","v":""},null,null,null,null,0,0,null,"","",null,"",0,"","",""]
[null,null,0,0,null,"","",null,"","","","","",null,null,null,null,0,0,null,"","",null,"",0,"","",""]
[null,null,0,0,null,"","",null,"","","","","",null,null,null,null,0,0,null,"","",null,"",0,"","",""]
[null,null,0,0,null,"","",null,"","","","","",null,null,null,null,0,0,null,"","",null,"",0,"","",""]
[null,null,0,{"$f":"IF(C77>0,D76+1,0)","v":0}]
[null,null,0,0]
[null,null,0,0]
[null,null,0,0]
[null,null,0,0]
[null,null,0,0]
[null,null,0,0]
[null,null,0,0]
[null,null,0,0]
[null,null,0,0]
[null,null,0,0]
[null,null,0,0]
[null,null,0,0]
[null,null,0,0]
[null,null,0,0]
[null,null,0,0]
[null,null,0,0]
[null,null,0,0]
[null,null,0,0]
[null,null,0,0]
[null,null,0,0]
[null,null,0,0]
[null,null,0,0]
[null,null,0,0]
[null,null,0,0]
[null,null,0,0]
[null,null,0,0]
[null,null,0,0]
[null,null,0,0]
[null,null,0,0]
[null,null,0,0]
[null,null,0,0]

{"sheet":"Wniosek _1","index":3,"n_rows":89,"n_cols":13,"rows_kept":89,"cut":false,"hidden":true,"merged":[[88,1,88,6],[89,1,89,6],[72,2,72,6],[73,2,73,6],[74,2,74,6],[75,2,75,6],[76,2,76,6],[77,2,77,6],[66,2,66,6],[67,2,67,6],[68,2,68,6],[69,2,69,6],[70,2,70,6],[71,2,71,6],[56,1,56,6],[57,1,57,6],[42,1,42,6],[60,1,60,4],[61,1,61,3],[62,1,62,4],[63,1,63,4],[53,2,53,4],[53,5,53,6],[54,2,54,4],[54,5,54,6],[55,1,55,4],[55,5,55,6],[50,2,50,4],[50,5,50,6],[51,2,51,4],[51,5,51,6],[52,2,52,4],[52,5,52,6],[45,2,45,6],[46,1,46,2],[47,2,47,6],[48,2,48,4],[48,5,48,6],[49,2,49,4],[49,5,49,6],[44,2,44,4],[44,5,44,6],[15,2,15,5],[16,2,16,5],[17,2,17,5],[18,2,18,5],[28,1,28,6],[20,1,20,6],[22,1,22,6],[32,1,33,1],[34,1,35,1],[36,1,37,1],[38,1,39,1],[2,2,2,6],[3,2,3,6],[4,2,4,6],[29,1,29,2],[30,1,31,1],[5,2,5,6],[13,1,13,5],[11,1,11,5],[9,1,9,5]]}
[]
[]
[null,"Tytuł przedsięwzięcia "]
[null,"Nazwa Wnioskodawcy"]
[null,"Wnioskowana kwota pożyczki"]
[null,"Wartość stopy redyskonta na dzień składania wniosku"]
[]
[null,"Sekcja A. Informacje ogólne o przedsięwzięciu "]
[null,"A.1. Nazwa Programu Operacyjnego:"]
[null,"PROGRAM OPERACYJNY KAPITAŁ LUDZKI"]
[null,"A.2. Numer i nazwa Osi Priorytetowej:"]
[null,"OŚ PRIORYTETOWA 1 – Zatrudnienie i integracja społeczna"]
[null,"A.3. Numer i nazwa Działania w ramach Osi Priorytetowej:"]
[null,"Działanie 1.4 – Wsparcie inżynierii finansowej na rzecz rozwoju ekonomii społecznej"]
[null,"A.4. Dane rejestrowe Wnioskodawcy:"]
[null,"Numer KRS/CEIDG"]
[null,"PKD działalności (prosimy wymienić wszystkie występujące w dokumencie rejestrowym)"]
[null,"PKD, których dotyczy projekt"]
[null,"Wielkość przedsiębiorstwa – zgodnie z Załącznikiem I do Rozporządzenia Komisji (WE) nr 800/2008 z dnia 6 sierpnia 2008 r. (Dz. Urz. UE L 214 z 09.08.2008 r.)"]
[null,"A.5. Skrócony opis przedsięwzięcia :"]
[null,"Wielkość przedsiębiorstwa – zgodnie z Załącznikiem I do Rozporządzenia Komisji (WE) nr 800/2008 z dnia 6 sierpnia 2008 r. (Dz. Urz. UE L 214 z 09.08.2008 r.)"]
[null,"A.6. Adres lokalizacji przedsięwzięcia : "]
[]
[null,"A.7. Informacje finansowe:"]
[null,"A.7.1. Planowane koszty realizacji przedsięwzięcia :"]
[null,"Koszt całkowity (w PLN)"]
[null,"Wydatki kwalifikowalne (w PLN)"]
[null,"Wydatki niekwalifikowalne (w PLN)"]
[null,"A.7.2. Proponowana struktura finansowania kosztów przedsięwzięcia (źródła finansowania) w PLN - podział źródeł finansowania przedsięwzięcia , z jakich pokryte zostaną koszty kwalifikowalne w kolejnych latach."]
[null,null,null,"Pożyczka ","Środki własne Wnioskodawcy ","Inne","Suma"]
[null,2012,"PLN"]
[null,null,"%"]
[null,2013,"PLN"]
[null,null,"%"]
[null,2014,"PLN"]
[null,null,"%"]
[null,2015,"PLN"]
[null,null,"%"]
[null,"Razem","PLN"]
[null,null,"%"]
[]
[null,"Charakterystyka źródeł finansowania kosztów przedsięwzięcia wykazanych w kolumnie „Inne”:"]
[]
[null,"A.8. Proponowany sposób spłaty pożyczki"]
[null,null,"Jednorazowo, do dnia",null,null,"format DD.MM.RRRR"]
[null,null,"W ratach"]
[null,"Liczba rat",null,null,"Raty:"," miesięczne"," trzymiesięczne"]
[null,null,"W następujących kwotach i terminach:"]
[null,"Lp.","Kwota (w tys. PLN)",null,null,"Do dnia"]
[null,1,null,null,null,"format DD.MM.RRRR",null,null,null,"zmienić uwzglednić harmon automat  lub nierówne raty"]
[null,2,null,null,null,"format DD.MM.RRRR"]
[null,3,null,null,null,"format DD.MM.RRRR"]
[null,4,null,null,null,"format DD.MM.RRRR"]
[null,5,null,null,null,"format DD.MM.RRRR"]
[null,"…",null,null,null,"format DD.MM.RRRR"]
[null,"Okres karencji w spłacie kapitału (nie dłużej niż 6 miesięcy)",null,null,null,"ilość miesięcy:"]
[null,"Źródła spłaty pożyczki przed zakończeniem realizacji przedsięwzięcia :"]
[]
[]
[null,"A.9. Prawne formy zabezpieczenia wierzytelności"]
[null,"Obowiązkowa forma prawna zabezpieczenia spłaty Pożyczki:"]
[null,"Weksel “in blanco” wraz z deklaracja wekslową",null,null,"tak",null,null,null,null,null,null,null,"tak"]
[null,"Inne proponowane formy prawne rzeczowego zabezpieczenia spłaty pożyczki (jakie, wartość):",null,null,null,null,null,null,null,null,null,null,"nie"]
[]
[]
[null,"Sekcja B. Informacje o Wnioskodawcy"]
[null,"B.1. Nazwa Wnioskodawcy:"]
[null,"B.2. Forma prawna:"]
[null,"B.3. Numer Identyfikacji Podatkowej:"]
[null,"B.3.1. REGON:"]
[null,"B.4. Dane teleadresowe siedziby Wnioskodawcy:"]
[null,"B.4.1. Miejscowość:"]
[null,"B.4.2. Kod:"]
[null,"B.4.3. Ulica:"]
[null,"B.4.4. Nr budynku/lokalu:"]
[null,"B.4.5. Numer telefonu:"]
[null,"B.4.6. Numer faksu:"]
[null,"B.4.7. Adres poczty elektronicznej:"]
[null,"B.5. Dane osoby lub osób prawnie upoważnionych do reprezentowania Wnioskodawcy:"]
[null,"Imię i nazwisko:"]
[null,"Stanowisko:"]
[null,"B.6. Dane personalne osoby upoważnionej do kontaktu w sprawach przedsięwzięcia :"]
[null,"B.6.1. Imię i nazwisko:"]
[null,"B.6.2. Stanowisko:"]
[null,"B.6.3. Nazwa Instytucji:"]
[null,"B.6.4. Numer telefonu:"]
[null,"B.6.5. Numer faksu"]
[null,"B.6.6. Adres poczty elektronicznej:"]
[null,"B.7. Charakterystyka działalności Wnioskodawcy (historia, główny przedmiot działalności, podstawowe produkty i usługi oferowane na rynku, udział sprzedaży tych produktów i usług w całości przychodów ze sprzedaży):"]

{"sheet":"1","index":4,"n_rows":247,"n_cols":18,"rows_kept":247,"cut":false,"hidden":true,"merged":[[7,4,7,5],[7,6,7,7],[20,2,20,3],[50,4,51,4],[51,1,51,3],[60,1,60,5],[240,3,240,6],[243,3,243,6],[244,3,244,6],[241,3,241,6],[242,3,242,6],[10,1,10,2],[12,1,12,2],[14,1,14,2],[102,1,102,6],[30,1,30,6],[46,1,46,6],[104,1,104,6],[197,3,197,4],[198,1,198,2],[198,3,198,4],[183,1,183,3],[191,3,191,4],[192,3,192,4],[245,3,245,6],[107,1,107,6],[108,1,108,6],[109,1,109,6],[110,1,110,6],[234,1,234,4],[235,1,235,4],[236,1,236,4],[112,1,112,6],[166,2,166,10],[240,2,245,2],[211,1,211,3],[212,1,212,3],[213,1,213,3],[214,1,214,3],[215,1,215,3],[216,1,216,3],[205,1,205,3],[206,1,206,3],[232,1,232,4],[233,1,233,4],[196,1,196,2],[196,3,196,4],[197,1,197,2],[193,1,193,4],[92,1,92,5],[93,1,93,6],[96,1,96,6],[97,1,97,6],[98,1,98,6],[207,1,207,3],[208,1,208,3],[209,1,209,3],[150,4,152,4],[150,5,152,5],[161,1,161,2],[161,3,161,9],[179,1,179,3],[148,1,148,10],[149,1,152,1],[149,2,149,5],[149,6,152,6],[149,7,152,7],[149,8,152,8],[149,9,152,9],[149,10,152,10],[150,3,152,3],[128,1,128,2],[210,1,210,3],[199,1,199,4],[200,1,200,3],[201,1,201,3],[202,1,202,3],[203,1,203,3],[204,1,204,3],[194,1,194,2],[194,3,194,4],[132,1,132,9],[133,1,136,1],[133,2,133,5],[134,3,138,3],[134,4,138,4],[134,5,138,5],[133,6,138,6],[133,7,138,7],[133,8,138,8],[133,9,138,9],[116,1,116,5],[117,1,118,3],[119,1,120,1],[119,3,120,3],[119,4,120,4],[119,5,120,5],[99,1,99,6],[100,1,100,6],[101,1,101,6],[62,1,62,6],[65,1,65,2],[57,2,57,4],[57,5,57,6],[58,2,58,4],[58,5,58,6],[59,2,59,4],[59,5,59,6],[68,1,68,2],[4,2,4,6],[5,2,5,6],[22,1,22,6],[24,1,24,2],[70,2,70,6],[32,1,32,2],[33,1,34,1],[35,1,36,1],[37,1,38,1],[39,1,40,1],[41,1,42,1],[54,2,54,4],[54,5,54,6],[55,2,55,4],[55,5,55,6],[56,2,56,4],[56,5,56,6],[48,2,48,4],[48,5,48,6],[50,1,50,2],[52,2,52,6],[53,2,53,4],[53,5,53,6],[61,1,61,6]]}
[1]
[null,"Wniosek o pożyczkę w ramach Projektu Systemowego "]
[null,"„Wsparcie inżynierii finansowej na rzecz rozwoju ekonomii społecznej”"]
[null,"Metryka "]
[null,"Tytuł przedsięwzięcia "]
[null,"Nazwa Wnioskodawcy"]
[null,"Wnioskowana kwota pożyczki"]
[null,"Wartość stopy redyskonta na dzień składania wniosku",3.5000000000000003E-2,null,"data złożenia wniosku",null,"2013-04-30",null,null,null,null,null,null,null,"oprocentowanie wnioskowanej pożyczki / wypełnia pracownik TISE/",{"$f":"C8/2","v":1.7500000000000002E-2}]
[null,"Sekcja A. Informacje ogólne o przedsięwzięciu "]
[null,"A.1. Nazwa Programu Operacyjnego:"]
[null,"PROGRAM OPERACYJNY KAPITAŁ LUDZKI"]
[null,"A.2. Numer i nazwa Osi Priorytetowej:"]
[null,"OŚ PRIORYTETOWA 1 – Zatrudnienie i integracja społeczna"]
[null,"A.3. Numer i nazwa Działania w ramach Osi Priorytetowej:"]
[null,"Działanie 1.4 – Wsparcie inżynierii finansowej na rzecz rozwoju ekonomii społecznej"]
[null,"A.4. Dane rejestrowe Wnioskodawcy:"]
[null,"Numer KRS/CEIDG"]
[null,"PKD działalności (prosimy wymienić wszystkie występujące w dokumencie rejestrowym)","Zgodnie z zał A"]
[null,"PKD, których dotyczy projekt"]
[null,"Wielkość przedsiębiorstwa – zgodnie z Załącznikiem I do Rozporządzenia Komisji (WE) nr 800/2008 z dnia 6 sierpnia 2008 r. (Dz. Urz. UE L 214 z 09.08.2008 r.)","Załącznik B","tak/nie","czy spełnia kryterium"]
[null,"Data wpisu do rejestru przedsiębiorców:","2011-11-11",null,"czy spełnia kryterium",null,{"$f":"IF(O21>365,\"tak\",\"nie\")","v":"tak"},null,null,null,null,null,null,null,{"$f":"G8-C21","v":536}]
[null,"A.5. Skrócony opis przedsięwzięcia :"]
[]
[null,"A.6. Adres lokalizacji przedsięwzięcia : ","wypełniać jeśli inny niż adres firmy/zmiana/"]
[]
[null,"A.7. Informacje finansowe:"]
[null,"A.7.1. Planowane /wydatki/ realizacji przedsięwzięcia:"]
[null,"Koszt całkowity (w PLN)",100]
[null,"Wydatki kwalifikowalne (w PLN)",{"$f":"C28-C30","v":0},null,"czy spełnia kryterium",null,{"$f":"IF(D42<C29,\"tak\",\"nie\")","v":"nie"}]
[null,"Wydatki niekwalifikowalne (w PLN)",100,null,"czy nie zmienić def"]
[null,"A.7.2. Proponowana struktura finansowania wydatków przedsięwzięcia (źródła finansowania) w PLN - podział źródeł finansowania przedsięwzięcia, z jakich pokryte zostaną koszty kwalifikowalne w kolejnych latach.",null,null,null,null,null,null,"sprawdzic"]
[]
[null,null,null,"Pożyczka ","Przewidywana data wypłaty","Środki własne Wnioskodawcy ","Inne","Suma"]
[null,2013,"PLN",100000,"2013-06-30",null,null,null,"wazny czas  wydatkowania / na ogół 1 rok/",null,null,null,null,null,null,"2013-03-31"]
[null,null,"%",null,"x",null,null,null,null,null,null,null,null,null,null,"2013-04-30"]
[null,2014,"PLN",null,null,null,null,null,"czas spłaty inny",null,null,null,null,null,null,"2013-05-31"]
[null,null,"%",null,"x",null,null,null,null,null,null,null,null,null,null,"2013-06-30"]
[null,2015,"PLN",null,null,null,null,null,null,null,null,null,null,null,null,"2013-07-31"]
[null,null,"%",null,"x",null,null,null,null,null,null,null,null,null,null,"2013-08-31"]
[null,2016,"PLN",null,null,null,null,null,null,null,null,null,null,null,null,"2013-09-30"]
[null,null,"%",null,"x",null,null,null,null,null,null,null,null,null,null,"2013-10-31"]
[null,"Razem","PLN",null,null,null,null,null,null,null,null,null,null,null,null,"2013-11-30"]
[null,null,"%",null,"x",null,null,null,null,null,null,null,null,null,null,"2013-12-31"]
[]
[]
[null,"Charakterystyka źródeł finansowania kosztów przedsięwzięcia wykazanych w kolumnie „Inne”:"]
[]
[null,"A.8. Proponowany sposób spłaty pożyczki/wybierz a ,b lu c",null,null,null,null,null,null,"brak proponowanego sposobu wypłaty np. w 2 transzach"]
[null,null,"a)Jednorazowo, do dnia ",null,null,"format DD.MM.RRRR"]
[null,"W ratach równych",null,null,null,null,null,"w ratach równych - automat liczenia"]
[null,"b)Liczba rat/okres finansowania pożyczka/ w miesiącach",null,60,"Raty/zaznaczyć \"x\"/","miesięczne","x",null,null,null,null,null,null,null,null,"miesięczne"]
[null,null,null,null,null,"trzymiesięczne"]
[null,null,"c)W następujących kwotach i terminach:",null,null,null,null,null,null,null,null,null,null,null,null,"trzymiesięczne"]
[null,"Lp.","Kwota (w tys. PLN) ",null,null,"Do dnia "]
[null,1,null,null,null,"format DD.MM.RRRR"]
[null,2,null,null,null,"format DD.MM.RRRR"]
[null,3,null,null,null,"format DD.MM.RRRR"]
[null,4,null,null,null,"format DD.MM.RRRR"]
[null,5,null,null,null,"format DD.MM.RRRR"]
[null,"…",null,null,null,"format DD.MM.RRRR"]
[null,"Okres karencji w spłacie kapitału (nie dłużej niż 6 miesięcy)",null,null,null,null,6,"max 6 mcy"]
[null,"Źródła spłaty pożyczki przed zakończeniem realizacji przedsięwzięcia :",null,null,null,null,null,"dochody z działalności gospodarczej"]
[]
[]
[null,"A.9. Prawne formy zabezpieczenia wierzytelności"]
[null,"Obowiązkowa forma prawna zabezpieczenia spłaty pożyczki:"]
[null,"Weksel “in blanco” wraz z deklaracja wekslową","Tak",null,null,null,null,null,null,null,null,null,null,null,"tak, wg załacznika",null,"rodzaj","wartość"]
[null,"Inne proponowane formy prawne rzeczowego zabezpieczenia spłaty pożyczki (jakie, wartość):","tak, wg załacznika",null,null,null,null,null,null,null,null,null,null,null,"nie"]
[]
[null,"Sekcja B. Informacje o Wnioskodawcy",null,"dołączyć z A4","przerobić"]
[null,"B.1. Nazwa Wnioskodawcy:"]
[null,"B.2. Forma prawna:",null,"lista rozwijana - powinna uwzględniać kryteria prawne/ przenieść z przewodnika/",null,null,null,null,null,null,"inne opisz"]
[null,"B.3. Numer Identyfikacji Podatkowej:"]
[null,"B.3.1. REGON:"]
[null,"B.4. Dane teleadresowe siedziby Wnioskodawcy:"]
[null,"B.4.1. Miejscowość:"]
[null,"B.4.2. Kod:"]
[null,"B.4.3. Ulica:"]
[null,"B.4.4. Nr budynku/lokalu:"]
[null,"B.4.5. Numer telefonu:"]
[null,"B.4.6. Numer faksu:"]
[null,"B.4.7. Adres poczty elektronicznej:"]
[null,"B.5. Dane osoby lub osób prawnie upoważnionych do reprezentowania Wnioskodawcy:"]
[null,"Imię i nazwisko:",null,null,null,null,null,null,null,null,null,null,null,null,"Zgodnie z KRS lub innym prawnym umocowaniem"]
[null,"Stanowisko:"]
[null,"B.6. Dane personalne osoby upoważnionej do kontaktu w sprawach przedsięwzięcia :"]
[null,"B.6.1. Imię i nazwisko:",null,null,null,null,"więcej miejsca",null,"te osoby muszą wypełnić zał c i d/ wziąć od Teresy"]
[null,"B.6.2. Stanowisko:"]
[null,"B.6.3. Nazwa Instytucji:"]
[null,"B.6.4. Numer telefonu:"]
[null,"B.6.5. Numer faksu"]
[null,"B.6.6. Adres poczty elektronicznej:"]
[null,"B.7. Charakterystyka działalności Wnioskodawcy (historia, główny przedmiot działalności, podstawowe produkty i usługi oferowane na rynku, udział sprzedaży tych produktów i usług w całości przychodów ze sprzedaży):"]
[]
[null,"Sekcja C. Opis i cele przedsięwzięcia "]
[null,"C.1. Opis przedsięwzięcia – cel i zakres, tj.:"]
[null,"czego dotyczy przedsięwzięcie (np. zakup maszyn i urządzeń, wartości niematerialnych i prawnych, remontów budynków, działań zmierzających do wprowadzenia nowych produktów lub usług),",null,null,null,null,null,null,"doładnie co chcemy kupić"]
[null,"czy przedsięwzięcie jest zgodne z profilem prowadzonej lub przyszłej działalności i czy zapewnia komplementarność technologiczną z istniejącym wyposażeniem, parkiem maszynowym itd.,",null,null,null,null,null,null,"zautomatyzować w miarę mozliwości"]
[null,"czy przedsięwzięcie będzie realizowane na terenie lub w budynkach, których Wnioskodawca jest właścicielem lub ma prawo do dysponowania nimi,"]
[null,"czy w wyniku realizacji przedsięwzięcia powstaną nowe miejsca pracy (jeśli tak to ile, w podziale na mężczyzn i kobiety),",null,null,null,null,null,"zautomatyz"]
[null,"czy w wyniku realizacji przedsięwzięcia zostaną zatrudnione osoby bezrobotne,",null,null,null,null,null,null,null,"to są intencje"]
[null,"krótki opis rynku sprzedaży i zaopatrzenia: jaka jest konkurencja? jaki jest potencjał dostawców usług?",null,null,null,null,null,null,null,"badamy przygotowanie wnioskodawcy"]
[null,"krótki opis perspektywy działalności Wnioskodawcy w planowanym okresie spłaty pożyczki:"]
[]
[]
[]
[null,"C.2. Zasoby techniczne i przygotowanie do realizacji przedsięwzięcia, tj.:"]
[null,"czy Wnioskodawca posiada pomieszczenia niezbędne do zlokalizowania w nich nabywanych środków trwałych/realizacji przedsięwzięcia,",null,null,null,null,null,null,"zautomatyzować w miarę mozliwości"]
[null,"w przypadku prac budowlanych i modernizacyjnych – czy Wnioskodawca posiada pozwolenie na budowę, a jeśli nie – jaki jest termin złożenia wniosku oraz przewidywany termin uzyskania pozwolenia,",null,null,null,null,null,null,"tak załącz"]
[null,"czy zostały już podjęte jakieś działania w celu realizacji przedsięwzięcia (podpisanie wstępnych umów z wykonawcami, projekt budowlany, szczegółowy kosztorys, uzyskanie niezbędnych pozwoleń, realizacja określonego etapu przedsięwzięcia itp.),"]
[null,"czy wymagane są inne zasoby techniczne niezbędne do realizacji przedsięwzięcia:",null,null,null,null,null,null,"tak opisz/ np. pozwolenia na budowę/"]
[]
[]
[]
[null,"C.3. Zakres rzeczowy przedsięwzięcia/dotyczy nakładów  inwest i kosztów zwiazanych z projektem/"]
[null," "]
[null,"Należy określić harmonogram realizacji zakresu rzeczowego przedsięwzięcia, w tym działań objętych wkładem własnym, bez których realizacja projektu nie będzie mogła nastąpić./wydatków kwalifikowanych  i niekwalifikowanych/"]
[null,"Planowany termin rozpoczęcia i zakończenia realizacji zadań",null,null,"Od rrrr-mm-dd:"]
[null,null,null,null,"Do rrrr-mm-dd:"]
[null,"Działanie","Okres realizacji","Opis","Wartość netto","Wartość brutto"]
[null,null,"od… do…"]
[null,"Działanie 1",null,null,null,null,"ztrudn osób",null,"etapy działania ale całe przeds może buć jednym działaniem / np. remont zatrudnienie osób/"]
[null,"Działanie 2",null,null,null,null,null,null,"to jest zakres rzeczowy całego przeds/ w tym zak inwest/"]
[null,"Działanie 3"]
[null,"Działanie 4"]
[null,"Działanie 5"]
[null,"Działanie 6"]
[null,"…",null,null,null,null,null,null,null,null,"c3-c4=koszty?"]
[null,null,null,"Razem:"]
[]
[null,"C.4 Nakłady inwestycyjne w układzie kwartalnym i rocznym/związane z przedsięwzięciem/:"]
[null," "]
[null,"Należy podać kwoty wydatków inwestycyjnych w podziale na podstawowe grupy oraz na poszczególne lata. W przypadku pierwszych 12 miesięcy należy podać kwoty w układzie kwartalnym i określić, jaki zakres dat obejmuje pierwszy kwartał."]
[null,"Wydatek inwestycyjny","Rok pierwszy w ujęciu kwartalnym",null,null,null,"Rok 2014","Rok 2015","Rok 2016","Rok 2017"]
[null,null,"Kwartał 1","Kwartał 2","Kwartał 3","Kwartał 4"]
[null,null,"Od mm/rr:",null,null,null,null,null,null,null,"rok  2, 3 …"]
[]
[null,null,"Do mm/rr:"]
[]
[null,"zakup maszyny",null,50000,null,null,null,null,null,null,"koszty w to nie wchodą/"]
[null,"zakup samochodu",null,null,30000]
[]
[]
[]
[]
[]
[null,"Razem",{"$f":"SUM(C140:C146)","v":0},{"$f":"SUM(D140:D146)","v":50000},30000,0,0,0,0,0]
[null,"C.5 Prognoza sprzedaży z tytułu realizacji przedsięwzięcia : ",null,null,null,null,null,null,null,null,null,"sprzedaż tylko z tytułu przedsięwzięcia/ a nie cała sprzedaż/"]
[null,"Należy przedstawić wartość sprzedaży podstawowych produktów i usług jakie będą oferowane na rynku bezpośrednio w wyniku realizacji projektu (dotyczy również przedsięwzięć , gdzie w wyniku ich realizacji zwiększy się wyłącznie wartość sprzedaży – w takim przypadku należy rozpatrywać wzrost sprzedaży)."]
[null,"Produkt lub usługa","Rok pierwszy w ujęciu kwartalnym",null,null,null,"Rok 2013","Rok 2014","Rok 2015","Rok 2016","Rok 2017"]
[null,null,"Kwartał 1","Kwartał 2","Kwartał 3","Kwartał 4",null,null,null,null,null,"prognoza na 60 mcy/ dostawić np. kw 2018/"]
[null,null,"Od mm/rr:"]
[null,null,"Do mm/rr:"]
[null,null,50,50,50,50,{"$f":"F154+D154+C154+E154","v":200},200,200,200,200,"stąd przechodzi dalej do ark 5"]
[]
[]
[]
[]
[]
[]
[null,"Razem"]
[null,"Należy przedstawić, na jakiej podstawie cena i prognozowana wielkość sprzedaży zostały skalkulowane:",null,null,null,null,null,null,null,null,null,"np. kontrakty/trudne do realizacji, trend historyczny/"]
[null,"Sekcja D. Usługi doradztwa"]
[null,"D.1. Czy Wnioskodawca planuje skorzystanie z bezpłatnych usług doradztwa świadczonych przez …","Nie","lista rozwijana",null,null,null,null,null,null,null,null,null,null,null,"Nie"]
[null,"Jeżeli tak:",null,null,null,null,null,null,null,null,null,null,null,null,null,"Tak"]
[null,"D.2. Ile godzin usług doradczych planuje wykorzystać Wnioskodawca",null,"jeśli >30 to czerwone"]
[null,"D.3. Z jakiego zakresu usług doradczych planuje skorzystać Wnioskodawca",null,null,null,null,null,null,null,null,null,"lista rozwijana"]
[null,"Sekcja E. Deklaracje i oświadczenia Wnioskodawcy"]
[null,"Oświadczam, że:","Tak","Nie"]
[null,"Wszystkie informacje podane w niniejszym wniosku i załącznikach do wniosku są prawdziwe i zgodne ze stanem faktycznym i prawnym, co potwierdzam własnoręcznym podpisem."]
[null,"Nie ciąży na mnie obowiązek zwrotu kwoty stanowiącej równowartość uzyskanej pomocy publicznej, co do której Komisja Europejska wydała decyzję o obowiązku zwrotu pomocy."]
[null,"Jestem świadomy odpowiedzialności karnej wynikającej z art. 297 § 1 ustawy z dnia 6 czerwca 1997r. Kodeks Karny (Dz. U. z 1997 r., Nr 88, poz. 553 z późn. zm.) za składanie nierzetelnych oświadczeń, o których mowa w art. 297 § 1 ustawy oraz możliwości utraty pomocy finansowej jeśli miały one wpływ na jej przyznanie lub udzielenie."]
[null,"Projekt będzie realizowany zgodnie z ustawą z dnia 29 stycznia 2004 r. Prawo zamówień publicznych (tekst jednolity Dz. U. z 2010 r. nr 113, poz. 759 z późn. zm.). W sytuacji wyłączenia Projektu spod stosowania ustawy PZP, zobowiązuję się do ponoszenia wydatków z należytą starannością (celowo, rzetelnie, racjonalnie i oszczędnie).",null,null,"że będzie zgodnie z ustawą a ustawa precyzuje"]
[null,"W przypadku pozytywnego rozpatrzenia niniejszego wniosku o pożyczkę na realizację przedsięwzięcia, nie naruszę zasady zakazu podwójnego finansowania, oznaczającej niedozwolone sfinansowanie całkowite lub częściowe danego wydatku dwa razy ze środków publicznych (wspólnotowych lub krajowych)."]
[null,"Deklaruję zabezpieczenie, a następnie poniesienie w całości udziału własnego na pokrycie wydatków związanych z realizacją przedsięwzięcia.","tak deklaruję"]
[null,"Zgodnie z Rozporządzeniem Rady Ministrów z dnia 29 marca 2010 r. w sprawie zakresu informacji przedstawianych przez podmiot ubiegający się o pomoc de minimis (Dz. U. z 2010 r. Nr 53, poz. 311) oraz Rozporządzeniem Ministra Rozwoju Regionalnego z dnia 20 października 2010 r. zmieniającym Rozporządzenie w sprawie udzielania pomocy publicznej w ramach PO KL (Dz. U. z 2011 r. Nr 233, poz. 1383), oświadczam, że w okresie 3 lat budżetowych poprzedzających złożenie wniosku o pożyczkę, uzyskałem pomoc de minimis o wartości: …………….. PLN.",0,"nie","zał E ","ta poz tez jest pmoca de min"]
[null,"Wnioskodawca przeznacza co najmniej 10% zysku lub nadwyżki bilansowej na działalność pożytku publicznego (w przypadku spółdzielni socjalnych na działalność określoną w art. 2 ust 3 ustawy o spółdzielniach socjalnych).",null,null,"to jest warunek skorzystania z obniżonego oprocentowania, chodzi o zasadę/ w polityce rachunkowości?/"]
[null,"Sekcja F. Dokumenty pozwalające ocenić sytuację finansową Wnioskodawcy"]
[null,"Do Wniosku dołączam następujące dokumenty finansowe:","Tak","Nie"]
[null,"F.1. Wnioskodawca prowadzący uproszczoną księgowość:"]
[null,"Zeznania podatkowe za ostatnie 3 lata oraz za ostatni okres, tj. od początku roku do miesiąca poprzedzającego złożenie wniosku (jeśli Inwestor prowadzi działalność krócej niż 3 lata – zobowiązany jest dostarczyć dokumentację finansową za okres działalności)",null,null,"lista rozw"]
[null,"Analityczne sprawozdania finansowe oraz zestawienie należności i zobowiązań sporządzone na formularzu wymaganym przez Pośrednika Finansowego"]
[null,"Zaświadczenia z Urzędu Skarbowego i Zakładu Ubezpieczeń Społecznych o niezaleganiu w płatnościach zobowiązań nie starsze niż 3 miesiące"]
[null,"F.2. Wnioskodawca prowadzący pełną sprawozdawczość finansową:"]
[null,"Sprawozdania roczne / bilans i rachunek zysków i strat za ostatnie 3 lata, wraz z raportem i opinią biegłego rewidenta za ostatni lub poprzedni rok – o ile przepisy dotyczące rachunkowości nakładają na Inwestora obowiązek sporządzania takiego raportu (jeśli Inwestor prowadzi działalność krócej niż 3 lata – zobowiązany jest dostarczyć dokumentację finansową za okres działalności)",null,null,"czy 3 lata?","kom w przyp prowadzenia działalności dłużej niż  3 lata obroroowe"]
[null,"Sprawozdania kwartalne za ostatni okres (tj. od początku roku do kwartału poprzedzającego złożenie wniosku)",null,null,"ważne","na dzień  ostatni zakończony kwartał?",null,null,"sprawozd statystyczne  o ile mają obowiązek"]
[null,"Sprawozdania roczne z przepływu środków pieniężnych"]
[null,"Sprawozdanie roczne o stanie i rachunku środków własnych"]
[null,"Zestawienie należności i zobowiązań bilansowych  oraz pozycji pozabilansowych"]
[null,"Zaświadczenia z Urzędu Skarbowego i Zakładu Ubezpieczeń Społecznych o niezaleganiu w płatnościach zobowiązań nie starsze niż 3 miesiące",null,null,"warunek podst "]
[null,"Sekcja G. Informacje pozwalające ocenić rentowność przedsięwzięcia ",null,null,null,null,null,"tu ocena rentowności czyli progn rzis - z przedsięwzięcia- to powinno być spójne z zakł 5 1 rok"]
[null,"Forma opodatkowania: ","Podatek liniowy","Skala podatkowa"]
[null,"Stawka podatku:"]
[null,"G.1. Prognoza wpływów w ciągu 12 miesięcy po realizacji przedsięwzięcia :",null,null,null,"12 mcy po realizacji przedsięwzięcia"]
[null,"Ze sprzedaży produktów"]
[null,"w tym z nowego przeds"]
[null,"Ze sprzedaży usług"]
[null,"Ze sprzedaży towarów i materiałów",null,null,null,"wpływy z nalezności"]
[null,"Razem"]
[null,"G.2. Prognoza wydatków działalności gospodarczej w ciągu 12 miesięcy po realizacji przedsięwzięcia :",null,null,null,"łącznie"]
[null,"Zakup towaru do handlu"]
[null,"Zakupy surowców/materiałów części zamiennych"]
[null,"Wynagrodzenia pracowników"]
[null,"Narzuty na wynagrodzenia pracowników",null,null,null,"zobo publ prawne związane z wynagrodzeniem pracowników"]
[null,"Koszt najmu lokalu lub podatek od nieruchomości"]
[null,"Transport"]
[null,"Energia, co, gaz, woda,"]
[null,"Usługi zewnętrzne (np. księgowość, ochrona)"]
[null,"Reklama, poczta, Internet, telefon"]
[null,"Ubezpieczenie PES"]
[null,"Opłaty skarbowe, administracyjne, licencje, koncesje"]
[null,"Pozostałe koszty (wymienić w uzasadnieniu jakie)"]
[null,"Razem"]
[null,"Spłata pożyczki wraz z odsetkami"]
[null,"Zysk przed opodatkowaniem"]
[null,"Kwota podatku dochodowego"]
[null,"Zysk z działalności gospodarczej PES",null,null,null,"czy wynik z przepływów?",null,"czy rentowność"]
[]
[null,"Sekcja H. Pozostałe załączniki",null,null,null,null,null,"załącznik G"]
[null,"Do Wniosku dołączam dokumenty rejestrowe:","Tak","Nie"]
[null,"Statut / umowa podmiotu",null,null,null,null,null,"załącznik F - excell przepływy",null,null,"powinno być zgodne z wnioskiem  / projekcje na12 mcy/"]
[null,"NIP",null,null,null,null,null,null,null,null,"prognoza na cały okres spłaty pożyczki"]
[null,"REGON",null,null,null,null,null,null,null,null,"przepływy - wpływy z działalności . Saldo skkumuulowane dodatnie/ na całej działalności"]
[]
[null,"Do Wniosku dołączam następujące załączniki:","Tak","Nie"]
[null,"Załącznik A – zestawienie kodów PKD (jeśli jest ich więcej niż 10)"]
[null,"Załącznik B – oświadczenie Zarządu dotyczące potwierdzenia, że podmiot spełnia kryteria mikro i małych przedsiębiorstw"]
[null,"Załącznik C – oświadczenie o przetwarzaniu danych osobowych"]
[null,"Załącznik D – zakres danych osobowych"]
[null,"Załącznik E – formularz informacji przedstawianych przy ubieganiu się o pomoc de minimis"]
[null,"Załącznik F – arkusz excel z przepływami finansowymi i strukturą przychodów i kosztów podmiotu"]
[null,"Sekcja I. Informacje dla Wnioskodawcy",null,null,"rozszerzyć"]
[null,"Niniejszy wniosek nie jest ofertą i nie zobowiązuje ani Towarzystwa Inwestycji Społeczno-Ekonomicznych SA, ani Wnioskodawcy do zawarcia umowy Pożyczki. Towarzystwo Inwestycji Społeczno-Ekonomicznych SA zatrzymuje oryginał wniosku wraz z załącznikami do wniosku oraz kopie wszystkich dołączonych do wniosku dokumentów – nawet, jeśli Pożyczka nie zostanie udzielona."]
[null,"Towarzystwo Inwestycji Społeczno-Ekonomicznych SA, jako administrator danych osobowych, w rozumieniu przepisów Ustawy o ochronie danych osobowych informuje, że w jego zbiorze danych będą przetwarzane dane osobowe osób reprezentujących Wnioskodawcę w celu wykonywania czynności, których Wnioskodawca będzie stroną. Osobom tym przysługuje prawo wglądu do swoich danych i prawo ich poprawienia."]
[null,"Towarzystwo Inwestycji Społeczno-Ekonomicznych SA informuje, że dane osobowe osób reprezentujących Wnioskodawcę mogą zostać przekazane do:"]
[null,"1. systemu BANKOWY REJESTR, którego Administratorem danych jest Związek Banków Polskich z siedzibą w Warszawie, ul. Kruczkowskiego 8, działający na podstawie przepisów ustawy z dnia 29 sierpnia 1997 r. Prawo bankowe (Dz. U. z 2002 r. Nr 72, poz. 665 z późn. zm.),"]
[null,"2. zbioru danych osobowych „Kredytobiorcy”, którego administratorem danych jest Biuro Informacji Kredytowej S.A. z siedzibą w Warszawie."]
[]
[]
[null,"Pieczęcie i podpisy Reprezentantów Wnioskodawcy","Zajmowane stanowiska"]
[]
[]
[]
[null,"…………………………………………….…",null,"………………………………………………"]
[null,"Imię i nazwisko*",null,"Data"]
[null,"(*w przypadku braku pieczęci imiennej reprezentantów Wnioskodawcy należy wypełnić z użyciem liter drukowanych)"]
[null,"alarm jeśli nie wszystkie pola wypełnione?"]

{"sheet":"2","index":5,"n_rows":2,"n_cols":5,"rows_kept":2,"cut":false,"hidden":true,"merged":[]}
[2,"Załącznik B"]
[null,"oswiadczenie  o MSP",null,null,"do uzupełnienia"]

{"sheet":"2_zał_H_zabezp","index":6,"n_rows":23,"n_cols":17,"rows_kept":23,"cut":false,"hidden":false,"merged":[[0,1,1,4],[22,2,22,5]]}
[]
[]
[null,"Załącznik H.  Proponowane zabezpieczenia"]
[]
[null,"Lp.","Rodzaj proponowanego zabezpieczenia","Krótki  opis proponowanego zabezpieczenia","Wartość szacowana przez Wnioskodawcę w tys. zł.","Ocena zbywalności/ dokonana przez Wnioskodawcę/","Wartość zweryfikowana/wypełnia  TISE/","Weryfikacja oceny zbywalności - wypełnia TISE",null,null,null,null,null,null,null,"wsk zabezpieczeń",{"$f":"F22/'1_wniosek'!E9","v":{"$error":"#DIV/0!"}}]
[null,"I.","Zabezpieczenia osobiste"," ",null,"nie dotyczy",{"$f":"E6","v":0},"nie dotyczy",null,null,null,null,"bardzo dobra",null,null,{"$f":"IF(E6>0,1,0)","v":0}]
[null,"  "," "," ",null,"nie dotyczy",0,"bardzo dobra",null,null,null,null,"dobra",null,null,{"$f":"IF(E7>0,1,0)","v":0}]
[null," "," "," ",null,"nie dotyczy",0,"bardzo dobra",null,null,null,null,"średnia ",null,null,0]
[null," "," "," ",null,"nie dotyczy",0,"bardzo dobra",null,null,null,null,"słaba ",null,null,0]
[null," "," "," ",null,"nie dotyczy",0,"bardzo dobra",null,null,null,null,"bardzo słaba",null,null,0]
[null," "," "," ",null,"nie dotyczy",0,"bardzo dobra",null,null,null,null,"nie dotyczy",null,null,0]
[null," "," "," ",null,"nie dotyczy",0,"bardzo dobra",null,null,null,null,null,null,null,0]
[null," "," "," ",null,"nie dotyczy",0,"bardzo dobra",null,null,null,null,null,null,null,0]
[null,"II.","Zabezpieczenia rzeczowe"," ",null,"nie dotyczy",0,"bardzo dobra",null,null,null,null,null,null,null,0]
[null," ","np.. przewłaszczenie maszyny"," ",null,"nie dotyczy",0,"bardzo dobra",null,null,null,null,null,null,null,0]
[null," "," "," ",null,"nie dotyczy",0,"bardzo dobra",null,null,null,null,null,null,null,0]
[null," "," "," ",null,"nie dotyczy",0,"bardzo dobra",null,null,null,null,null,null,null,0]
[null," "," "," ",null,"nie dotyczy",0,"bardzo dobra",null,null,null,null,null,null,null,0]
[null," "," "," ",null,"nie dotyczy",0,"bardzo dobra",null,null,null,null,null,null,null,0]
[null," "," "," ",null,"nie dotyczy",0,"bardzo dobra",null,null,null,null,null,null,null,0]
[null," "," "," ",null,"nie dotyczy",0,"bardzo dobra",null,null,null,null,null,null,null,0]
[null,null,null,null,null,{"$f":"SUM(G6:G21)","v":0},null,null,null,null,null,null,null,null,null,{"$f":"SUM(P6:P21)","v":0}]
[null,null," „Projekt jest współfinansowany ze środków Unii Europejskiej w ramach Europejskiego Funduszu Społecznego”."]

{"sheet":"3_Zał_F_dane fin i zał_klient","index":7,"n_rows":55,"n_cols":21,"rows_kept":55,"cut":false,"hidden":false,"merged":[[47,2,47,3],[28,2,28,13],[29,2,30,2],[36,2,36,13],[42,2,42,13],[43,2,44,3],[45,2,45,3],[37,2,38,3],[39,2,39,3],[18,8,18,9],[19,8,19,9],[20,8,20,9],[22,2,22,13],[46,2,46,3],[24,2,24,3],[25,2,25,3],[26,2,26,3],[27,2,27,3],[14,4,14,5],[14,8,14,9],[15,8,15,9],[16,8,16,9],[17,8,17,9],[6,4,6,5],[6,8,6,9],[5,4,5,5],[5,8,5,9],[0,2,0,14],[3,12,3,14],[3,2,3,6],[3,8,3,10],[4,4,4,5],[4,8,4,9],[7,4,7,5],[7,8,7,9],[8,4,8,5],[8,8,8,9],[9,4,9,5],[9,8,9,9],[10,4,10,5],[10,8,10,9],[11,2,13,2],[11,3,13,3],[11,4,11,5],[11,8,11,9],[12,4,12,5],[12,8,12,9],[13,4,13,5],[13,8,13,9]]}
[]
[null,null,"Załącznik F. Dane finansowe i założenia"]
["I.",null,"Uproszczone sprawozdania z dotychczasowej działalności "]
[null,null,"Bilans ",null,null,null,null,null,"Uproszczony Rachunek zysków i strat",null,null,null,"Struktura nalezności i zobowiązań"]
[null,null,"Aktywa",2013,"Pasywa",null,{"$f":"D5","v":2013},null,"rzis",null,{"$f":"G5","v":2013},null,"Wyszczególnienie","koniec roku","koniec kw …",null,null,null,2012,360,{"$f":"VLOOKUP(D5,S5:T11,2,FALSE)","v":360}]
[null,null,"Aktywa trwałe",null,"Kapitały własne",null,{"$f":"D15-G8-G9-G12-G13-G14","v":0},null,"I. Przychody ogółem (II+III+IV+V), z tego",null,{"$f":"SUM(K7:K10)","v":0},null,"Nalezności  ogółem , z tego",null,null,null,null,null,"I kw 2013",90]
[null,null,"Zapasy",null,"w tym wynik netto",null,{"$f":"K21","v":0},null,"II. Przychody  z działalności gospodarczej , ze sprzedaży produktów, usług i towarów ogółem",null,null,null,"nieprzeterminowane",null,null,null,null,null,"II kw 2013",180]
[null,null,"Należności",{"$f":"D9+D10","v":0},"Dług oprocentowany długoterminowy/ kredyty pożyczki , leasingi/",null,null,null,"III. Pozostałe przychody  operacyjne ",null,null,null,"przeterminowane , w tym ",0,null,null,null,null,"III kw 2013 ",270]
[null,null," od odbiorców /handlowe/",null,"Zobowiązania krótkoterminowe",null,{"$f":"G10+G11","v":0},null,"IV. Przychody finansowe",null,null,null,"90-120 dni",null,null,null,null,null,2013,360]
[null,null," pozostałe należności",null," - handlowe",null,null,null," V. Przychody z działalności  statutowej",null,null,null,"powyżej 120 dni",null,null,null,null,null,"I kw 2014",90]
[null,null,"śr pieniężne",null," - kredyty obrotowe",null,null,null,"VI. Koszty działalności  gospodarczej, w tym",null,{"$f":"SUM(K12:K17)","v":0},null,"Zobowiązania bieżące  ogółem , z tego",null,null,null,null,null,"II kw 2014",180]
[null,null,"inne składniki majątkowe",null,"Pozostałe zobowiązania",null,null,null,"amortyzacja",null,null,null,"nieprzeterminowane"]
[null,null,null,null,"Inne pasywa krótkoterminowe",null,null,null," koszty eksploatacyjne - np. czynsz,zużycie materiałów i energii, transport ,podatki , opłaty, inne",null,null,null,"przeterminowane , w tym "]
[null,null,null,null,"Inne pasywa długoterminowe",null,null,null,"wynagrodzenia z narzutami",null,null,null,"90-120 dni"]
[null,null,"Razem Aktywa",{"$f":"D6+D7+D8+D11+D12","v":0},"Razem Pasywa",null,{"$f":"G6+G8+G9+G12+G13+G14","v":0},null,"koszt sprzedanych towarów , materiałów , usług",null,null,null,"powyżej 120 dni"]
[null,null,null,null,null,null,null,null,"Pozostałe koszty operacyjne "]
[null,null,null,null,null,null,null,null,"Koszty finansowe"]
[null,null,null,null,null,null,null,null,"VII. Koszty realizacji zadań statutowych"]
[null,null,null,null,null,null,null,null,"Wynik na działaln nadzwyczajnej"]
[null,null,null,null,null,null,null,null,"Podatek dochodowy"]
[null,null,null,null,null,null,null,null,"Wynik netto",null,{"$f":"K6-K11-K18+K19-K20","v":0}]
[]
["II. ",null,"Planowane spłaty  rat kapitałowych dotychczasowych długoterminowych pożyczek / kredytów / leasingu finansowegp  ogółem"]
[null,null,null,null,{"$f":"'1_wniosek'!E186","v":"Kwartał 1"},{"$f":"'1_wniosek'!F186","v":"Kwartał 2"},{"$f":"'1_wniosek'!G186","v":"Kwartał 3"},{"$f":"'1_wniosek'!H186","v":"Kwartał 4"},{"$f":"'1_wniosek'!I123","v":2014},{"$f":"'1_wniosek'!J124","v":2015},{"$f":"'1_wniosek'!K124","v":2016},{"$f":"'1_wniosek'!L124","v":2017},{"$f":"'1_wniosek'!M124","v":2018},{"$f":"'1_wniosek'!N124","v":2019}]
[null,null,"Razem , z tego",null,{"$f":"SUM(E26:E28)","v":0},0,0,0,0,0,0,0,0,0]
[null,null,"kredyt 1",null,null,null,null,null,{"$f":"SUM(E26:H26)","v":0}]
[null,null,"kredyt 2",null,null,null,null,null,{"$f":"SUM(E27:H27)","v":0}]
[null,null,"pozostałe",null,null,null,null,null,{"$f":"SUM(E28:H28)","v":0}]
[null,null,"Stan kredytów  i pozyczek  dotychczasowych długoterminowych po planowanych spłatach"]
[null,null,"Razem , z tego",{"$f":"'3_Zał_F_dane fin i zał_klient'!D5","v":2013},{"$f":"E24","v":"Kwartał 1"},{"$f":"F24","v":"Kwartał 2"},"Kwartał 3","Kwartał 4",2014,2015,2016,2017,2018,2019]
[null,null,null,{"$f":"D32+D33+D34","v":0},{"$f":"D31-E26","v":0},{"$f":"E31-F26","v":0},0,0,{"$f":"H31","v":0},{"$f":"SUM(J32:J34)","v":0},0,0,0,0]
[null,null,"kredyt 1",null,{"$f":"D32-E26","v":0},{"$f":"E32-F26","v":0},0,0,{"$f":"H32","v":0},{"$f":"I32-J26","v":0},0,0,0,0]
[null,null,"kredyt 2",null,{"$f":"D33-E27","v":0},0,0,0,{"$f":"H33","v":0},0,0,0,0,0]
[null,null,"pozostałe",null,{"$f":"D34-E28","v":0},0,0,0,0,0,0,0,0,0]
[null,null,"suma kontr",{"$f":"D34+D33+D32","v":0},{"$f":"E34+E33+E32","v":0},0,0,0,0,0,0,0,0,0]
[]
["III.",null,"Planowane spłaty  rat kapitałowych   pożyczek / kredytów / leasingu  zaciągniętych na nowe przedsięwzięcie ogółem"]
[null,null,"Razem , z tego",null,{"$f":"E30","v":"Kwartał 1"},{"$f":"F30","v":"Kwartał 2"},"Kwartał 3","Kwartał 4",2014,2015,2016,2017,2018,2019]
[null,null,null,null,{"$f":"SUM(E40:E42)","v":0},{"$f":"SUM(F40:F42)","v":0},0,0,0,0,0,0,0,0]
[null,null,"pożyczka  z ES",null,null,null,null,null,{"$f":"SUM(E40:H40)","v":0}]
[null,null,"inne","kredyt 1",null,null,null,null,{"$f":"SUM(E41:H41)","v":0}]
[null,null,"inne","kredyt 2",null,null,null,null,{"$f":"SUM(E42:H42)","v":0}]
[null,null,"Stan planowanych kredytów  i pozyczek  po planowanych spłatach"]
[null,null,"Razem , z tego",null,{"$f":"E38","v":"Kwartał 1"},{"$f":"F38","v":"Kwartał 2"},"Kwartał 3","Kwartał 4",2014,2015,2016,2017,2018,2019]
[null,null,null,null,{"$f":"SUM(E46:E47)","v":0},0,0,0,0,0,0,0,0,0]
[null,null,"pożyczka  z ES",null,{"$f":"'1_wniosek'!E161-E40","v":0},{"$f":"'1_wniosek'!F161-F40+E46","v":0},{"$f":"'1_wniosek'!G161-G40+F46","v":0},{"$f":"'1_wniosek'!H161-H40+G46","v":0},{"$f":"H46","v":0},{"$f":"'1_wniosek'!J161-J40+I46","v":0},{"$f":"'1_wniosek'!K161-K40+J46","v":0},{"$f":"'1_wniosek'!L161-L40+K46","v":0},{"$f":"'1_wniosek'!M161-M40+L46","v":0},{"$f":"'1_wniosek'!N161-N40+M46","v":0}]
[null,null,"kredyt 1",null,{"$f":"'1_wniosek'!E166-E41","v":0},{"$f":"'1_wniosek'!F166-F41+E47","v":0},{"$f":"'1_wniosek'!G166-G41+F47","v":0},{"$f":"'1_wniosek'!H166-H41+G47","v":0},{"$f":"H47","v":0},{"$f":"'1_wniosek'!J166-J41+I47","v":0},{"$f":"'1_wniosek'!K166-K41+J47","v":0},{"$f":"'1_wniosek'!L166-L41+K47","v":0},{"$f":"'1_wniosek'!M166-M41+L47","v":0},{"$f":"'1_wniosek'!N166-N41+M47","v":0}]
[null,null,"kredyt 2",null,{"$f":"'1_wniosek'!E167-E42","v":0},{"$f":"'1_wniosek'!F167-F42+E48","v":0},{"$f":"'1_wniosek'!G167-G42+F48","v":0},{"$f":"'1_wniosek'!H167-H42+G48","v":0},{"$f":"H48","v":0},{"$f":"'1_wniosek'!J167-J42+I48","v":0},{"$f":"'1_wniosek'!K167-K42+J48","v":0},{"$f":"'1_wniosek'!L167-L42+K48","v":0},{"$f":"'1_wniosek'!M167-M42+L48","v":0},{"$f":"'1_wniosek'!N167-N42+M48","v":0}]
[null,null,null,null,null," „Projekt jest współfinansowany ze środków Unii Europejskiej w ramach Europejskiego Funduszu Społecznego”."]
[null,null,null,{"$f":"D31","v":0},{"$f":"E45+E31","v":0},{"$f":"F45+F31","v":0},0,0,0,0,0,0,0,0,"oprocentowanie"]
[null,null,"k finansowe pożyczki es",null,{"$f":"E46*$O$51/4","v":0},{"$f":"F46*$O$51/4","v":0},0,0,{"$f":"SUM(E51:H51)","v":0},{"$f":"J46*$O$51","v":0},{"$f":"K46*$O$51","v":0},0,0,0,{"$f":"'1_wniosek'!T9","v":0}]
[null,null,"k finansowe kred 1",null,{"$f":"E47*$O$52/4","v":0},{"$f":"F47*'1_wniosek'!$D$166/4","v":0},{"$f":"G47*'1_wniosek'!$D$166/4","v":0},{"$f":"H47*'1_wniosek'!$D$166/4","v":0},{"$f":"SUM(E52:H52)","v":0},{"$f":"J47*'1_wniosek'!$D$166","v":0},{"$f":"K47*'1_wniosek'!$D$166","v":0},{"$f":"L47*'1_wniosek'!$D$166","v":0},{"$f":"M47*'1_wniosek'!$D$166","v":0},{"$f":"N47*'1_wniosek'!$D$166","v":0},{"$f":"'1_wniosek'!D166","v":0}]
[null,null,"k finansowe kred 2",null,{"$f":"E48*'1_wniosek'!$D$167/4","v":0},{"$f":"F48*'1_wniosek'!$D$167/4","v":0},{"$f":"G48*'1_wniosek'!$D$167/4","v":0},{"$f":"H48*'1_wniosek'!$D$167/4","v":0},0,{"$f":"J48*'1_wniosek'!$D$167","v":0},{"$f":"K48*'1_wniosek'!$D$167","v":0},{"$f":"L48*'1_wniosek'!$D$167","v":0},{"$f":"M48*'1_wniosek'!$D$167","v":0},{"$f":"N48*'1_wniosek'!$D$167","v":0},{"$f":"'1_wniosek'!D167","v":0}]
[]
[null,null,null,null,null,null,null,null,null,{"$f":"J51+J52+J53","v":0},{"$f":"K51+K52+K53","v":0},0,0,0]

{"sheet":"4","index":8,"n_rows":2,"n_cols":8,"rows_kept":2,"cut":false,"hidden":true,"merged":[[1,1,1,5]]}
[]
[null,"oświadczenie że Wnioskodawca  nie podlega wykluczeniu z ubiegania się o dofinansowanie na podst art. 207 Ustawy o finansach pulicznych",null,null,null,null,null,"do uzupełnienia"]

{"sheet":"5","index":9,"n_rows":69,"n_cols":18,"rows_kept":69,"cut":false,"hidden":true,"merged":[[64,2,64,3],[53,1,53,3],[54,1,54,3],[59,2,59,3],[60,2,60,3],[61,2,61,3],[63,2,63,3],[62,2,62,3],[39,1,39,3],[10,2,10,3],[11,2,11,3],[29,4,29,12],[38,2,38,3],[12,2,12,3],[15,2,15,3],[34,2,34,3],[17,4,19,4],[16,14,20,17],[8,2,8,3],[4,2,4,3],[5,2,5,3],[6,2,6,3],[7,2,7,3],[16,2,19,2],[16,4,16,7],[17,5,19,5],[17,6,19,6],[17,7,19,7],[16,3,19,3],[9,2,9,3]]}
[5]
[null,"Założenia dotyczące planowanego przedsięwzięcia  ( w tys. zł.)",null,null,"1 kw","2 kw","3 kw","4 kw","razem  1 rok","2 rok","3 rok","4 rok","5 rok","6 rok",null,null,null,"dec - ujęcie kalendarzowe"]
[null,null,"liczba dni w okresie",null,90,90,90,90,360,360,360,360,360,360]
[null,"1.","Planowane przychody ogółem, z tego:",null,{"$f":"SUM(E5:E8)","v":0},{"$f":"SUM(F5:F8)","v":0},0,0,0,0,0,0,0,{"$f":"SUM(N5:N8)","v":0}]
[null,"1a.",null,null,{"$f":"'1_wniosek'!E180","v":0},{"$f":"'1_wniosek'!F180","v":0},{"$f":"'1_wniosek'!G180","v":0},{"$f":"'1_wniosek'!H180","v":0},{"$f":"'1_wniosek'!I180","v":0},{"$f":"'1_wniosek'!J180","v":0},{"$f":"'1_wniosek'!K180","v":0},{"$f":"'1_wniosek'!L180","v":0},{"$f":"'1_wniosek'!M180","v":0},{"$f":"'1_wniosek'!N180","v":0}]
[null,"1b.",null,null,null,null,null,null,{"$f":"SUM(E6:H6)","v":0}]
[null,"1c.",null,null,null,null,null,null,0]
[null,"1d.",null,null,null,null,null,null,0]
[null,"2.","Planowane koszty działalności operacyjnej ogółem,  z tego",null,{"$f":"SUM(E10:E13)","v":0},{"$f":"SUM(F10:F13)","v":0},0,0,0,0,0,0,0,{"$f":"SUM(N10:N13)","v":0}]
[null,"2a.","amortyzacja",null,{"$f":"'1_wniosek'!E199","v":0},{"$f":"'1_wniosek'!F199","v":0},{"$f":"'1_wniosek'!G199","v":0},{"$f":"'1_wniosek'!H199","v":0},{"$f":"'1_wniosek'!I199","v":0},{"$f":"'1_wniosek'!J199","v":0},{"$f":"'1_wniosek'!K199","v":0},{"$f":"'1_wniosek'!L199","v":0},{"$f":"'1_wniosek'!M199","v":0},{"$f":"'1_wniosek'!N199","v":0}]
[null,"2b.","pozostałe koszty działalności operacyjnej"]
[null,"2c.","koszty na realizację przedsięwzięcia",null,{"$f":"'1_wniosek'!E153+'1_wniosek'!E139","v":0},{"$f":"'1_wniosek'!F153+'1_wniosek'!F139","v":0},{"$f":"'1_wniosek'!G153+'1_wniosek'!G139","v":0},{"$f":"'1_wniosek'!H153+'1_wniosek'!H139","v":0},{"$f":"'1_wniosek'!I153+'1_wniosek'!I139","v":0},{"$f":"'1_wniosek'!J153+'1_wniosek'!J139","v":0},{"$f":"'1_wniosek'!K153+'1_wniosek'!K139","v":0},{"$f":"'1_wniosek'!L153+'1_wniosek'!L139","v":0},{"$f":"'1_wniosek'!M153+'1_wniosek'!M139","v":0},{"$f":"'1_wniosek'!N153+'1_wniosek'!N139","v":0}]
[null,"2d.",null,null,null,null,null,null,{"$f":"SUM(E13:H13)","v":0}]
[]
[]
[null,"3.","Planowane wydatki inwestycyjne / jak we wniosku ale w tys.zł. / i planowana amortyzacja w %"]
[null,null,"Wydatek inwestycyjny","stopa amortyzacji dla danego rodzaju zakupu inwestycyjnego / od 0% do 100%/w kwartale w którym dokonano zakupu","Rok pierwszy w ujęciu kwartalnym",null,null,null,"Rok 1","Rok 2","Rok 3","Rok 4","Rok 5","Rok 6","założenia amortyzacji będą uproszczone, do wyliczeń szacunkowych  / niezaleznie czy np. zakup maszyny ma miejce na początku czy na końcu kwartału amortyzacja liczona jest za cały dany kwartał"]
[null,null,null,null,"Kwartał 1","Kwartał 2","Kwartał 3","Kwartał 4","razem"]
[]
[]
[null,null,{"$f":"'1'!B140","v":"zakup maszyny"},1,{"$f":"'1'!C140/1000","v":0},{"$f":"'1'!D140/1000","v":50},{"$f":"'1'!E140/1000","v":0},{"$f":"'1'!F140/1000","v":0},{"$f":"SUM(E21:H21)","v":50},{"$f":"'1'!G140/1000","v":0},{"$f":"'1'!H140/1000","v":0},{"$f":"'1'!I140/1000","v":0},{"$f":"'1'!J140/1000","v":0},{"$f":"'1'!K140/1000","v":{"$error":"#VALUE!"}}]
[null,null,{"$f":"'1'!B141","v":"zakup samochodu"},0.05,{"$f":"'1'!C141/1000","v":0},{"$f":"'1'!D141/1000","v":0},{"$f":"'1'!E141/1000","v":30},{"$f":"'1'!F141/1000","v":0},{"$f":"SUM(E22:H22)","v":30},{"$f":"'1'!G141/1000","v":0},{"$f":"'1'!H141/1000","v":0},{"$f":"'1'!I141/1000","v":0},{"$f":"'1'!J141/1000","v":0},{"$f":"'1'!K141/1000","v":0},"pod spodem dać daty"]
[null,null,{"$f":"'1'!B142","v":0},null,{"$f":"'1'!C142/1000","v":0},{"$f":"'1'!D142/1000","v":0},{"$f":"'1'!E142/1000","v":0},{"$f":"'1'!F142/1000","v":0},0,{"$f":"'1'!G142/1000","v":0},{"$f":"'1'!H142/1000","v":0},{"$f":"'1'!I142/1000","v":0},{"$f":"'1'!J142/1000","v":0},{"$f":"'1'!K142/1000","v":0}]
[null,null,{"$f":"'1'!B143","v":0},null,{"$f":"'1'!C143/1000","v":0},{"$f":"'1'!D143/1000","v":0},{"$f":"'1'!E143/1000","v":0},{"$f":"'1'!F143/1000","v":0},0,{"$f":"'1'!G143/1000","v":0},{"$f":"'1'!H143/1000","v":0},{"$f":"'1'!I143/1000","v":0},{"$f":"'1'!J143/1000","v":0},{"$f":"'1'!K143/1000","v":0}]
[null,null,{"$f":"'1'!B144","v":0},null,{"$f":"'1'!C144/1000","v":0},{"$f":"'1'!D144/1000","v":0},{"$f":"'1'!E144/1000","v":0},{"$f":"'1'!F144/1000","v":0},0,{"$f":"'1'!G144/1000","v":0},{"$f":"'1'!H144/1000","v":0},{"$f":"'1'!I144/1000","v":0},{"$f":"'1'!J144/1000","v":0},{"$f":"'1'!K144/1000","v":0}]
[null,null,{"$f":"'1'!B145","v":0},null,{"$f":"'1'!C145/1000","v":0},{"$f":"'1'!D145/1000","v":0},{"$f":"'1'!E145/1000","v":0},{"$f":"'1'!F145/1000","v":0},0,{"$f":"'1'!G145/1000","v":0},{"$f":"'1'!H145/1000","v":0},{"$f":"'1'!I145/1000","v":0},{"$f":"'1'!J145/1000","v":0},{"$f":"'1'!K145/1000","v":0}]
[null,null,{"$f":"'1'!B146","v":0},null,{"$f":"'1'!C146/1000","v":0},{"$f":"'1'!D146/1000","v":0},{"$f":"'1'!E146/1000","v":0},{"$f":"'1'!F146/1000","v":0},0,{"$f":"'1'!G146/1000","v":0},{"$f":"'1'!H146/1000","v":0},{"$f":"'1'!I146/1000","v":0},{"$f":"'1'!J146/1000","v":0},{"$f":"'1'!K146/1000","v":0}]
[null,null,"Razem","x",{"$f":"'1_wniosek'!E132+'1_wniosek'!E146","v":0},{"$f":"'1_wniosek'!F132+'1_wniosek'!F146","v":0},{"$f":"'1_wniosek'!G132+'1_wniosek'!G146","v":0},{"$f":"'1_wniosek'!H132+'1_wniosek'!H146","v":0},{"$f":"'1_wniosek'!I132+'1_wniosek'!I146","v":0},{"$f":"'1_wniosek'!J132+'1_wniosek'!J146","v":0},{"$f":"'1_wniosek'!K132+'1_wniosek'!K146","v":0},{"$f":"'1_wniosek'!L132+'1_wniosek'!L146","v":0},{"$f":"'1_wniosek'!M132+'1_wniosek'!M146","v":0},{"$f":"'1_wniosek'!N132+'1_wniosek'!N146","v":0}]
[]
[null,"4.","Planowane źródła finansowania inwestycji","planowane oprocentowanie kredytów, pożyczek","planowane kwoty w tys. zł."]
[null,null,"Planowane zaciagnięcie nowych  kredytów,  pożyczek  razem, z tego","x",{"$f":"SUM(E32:E34)","v":0},0,0,0,0,0,0,0,0,{"$f":"SUM(N32:N34)","v":0}]
[null,null,"pożyczka z es",{"$f":"'1'!P8","v":1.7500000000000002E-2},{"$f":"'1_wniosek'!E161","v":0},{"$f":"'1_wniosek'!F161","v":0},{"$f":"'1_wniosek'!G161","v":0},{"$f":"'1_wniosek'!H161","v":0},{"$f":"'1_wniosek'!I161","v":0},{"$f":"'1_wniosek'!J161","v":0},{"$f":"'1_wniosek'!K161","v":0},{"$f":"'1_wniosek'!L161","v":0},{"$f":"'1_wniosek'!M161","v":0},{"$f":"'1_wniosek'!N161","v":0}]
[null,null,"pożyczka/i inna/e",0.1,{"$f":"'1_wniosek'!E162","v":0},{"$f":"'1_wniosek'!F162","v":0},{"$f":"'1_wniosek'!G162","v":0},{"$f":"'1_wniosek'!H162","v":0},{"$f":"'1_wniosek'!I162","v":0},{"$f":"'1_wniosek'!J162","v":0},{"$f":"'1_wniosek'!K162","v":0},{"$f":"'1_wniosek'!L162","v":0},{"$f":"'1_wniosek'!M162","v":0},{"$f":"'1_wniosek'!N162","v":0}]
[null,null,"inne finansowanie/kredyty, leasingi finansowe/",null,null,null,null,null,{"$f":"SUM(E34:H34)","v":0}]
[null,null,"Planowane spłaty  rat kapitałowych nowych  pożyczek / kredytów   ogółem,  z tego",null,{"$f":"SUM(E36:E38)","v":0},0,0,0,0,0,0,0,0,{"$f":"SUM(N36:N38)","v":0}]
[null,null,"pożyczka  z ES",null,{"$f":"'3_Zał_F_TISE'!E39","v":0},{"$f":"'3_Zał_F_TISE'!F39","v":0},{"$f":"'3_Zał_F_TISE'!G39","v":0},{"$f":"'3_Zał_F_TISE'!H39","v":0},{"$f":"'3_Zał_F_TISE'!I39","v":0},{"$f":"'3_Zał_F_TISE'!J39","v":0},{"$f":"'3_Zał_F_TISE'!K39","v":0},{"$f":"'3_Zał_F_TISE'!L39","v":0},{"$f":"'3_Zał_F_TISE'!M39","v":0},{"$f":"'3_Zał_F_TISE'!N39","v":0}]
[null,null,"pożyczka/i inna/e - kredyt 1",null,{"$f":"'3_Zał_F_TISE'!E40","v":0},{"$f":"'3_Zał_F_TISE'!F40","v":0},{"$f":"'3_Zał_F_TISE'!G40","v":0},{"$f":"'3_Zał_F_TISE'!H40","v":0},{"$f":"'3_Zał_F_TISE'!I40","v":0},{"$f":"'3_Zał_F_TISE'!J40","v":0},{"$f":"'3_Zał_F_TISE'!K40","v":0},{"$f":"'3_Zał_F_TISE'!L40","v":0},{"$f":"'3_Zał_F_TISE'!M40","v":0},{"$f":"'3_Zał_F_TISE'!N40","v":0}]
[null,null,"kredyt 2",null,{"$f":"'3_Zał_F_TISE'!E41","v":0},{"$f":"'3_Zał_F_TISE'!F41","v":0},{"$f":"'3_Zał_F_TISE'!G41","v":0},{"$f":"'3_Zał_F_TISE'!H41","v":0},{"$f":"SUM(E38:H38)","v":0},{"$f":"'3_Zał_F_TISE'!J41","v":0},{"$f":"'3_Zał_F_TISE'!K41","v":0},{"$f":"'3_Zał_F_TISE'!L41","v":0},{"$f":"'3_Zał_F_TISE'!M41","v":0},{"$f":"'3_Zał_F_TISE'!N41","v":0}]
[null,null,"Środki własne",null,{"$f":"'1_wniosek'!E160","v":0},{"$f":"'1_wniosek'!F160","v":0},{"$f":"'1_wniosek'!G160","v":0},{"$f":"'1_wniosek'!H160","v":0},{"$f":"'1_wniosek'!I160","v":0},{"$f":"'1_wniosek'!J160","v":0},{"$f":"'1_wniosek'!K160","v":0},{"$f":"'1_wniosek'!L160","v":0},{"$f":"'1_wniosek'!M160","v":0},{"$f":"'1_wniosek'!N160","v":0}]
[null,"Róznica źródła - wydatki/w okresie/",null,null,{"$f":"E31+E39-E35-E28","v":0},{"$f":"F31+F39-F35-F28","v":0},{"$f":"G31+G39-G35-G28","v":0},{"$f":"H31+H39-H35-H28","v":0},{"$f":"H41","v":0},{"$f":"J31+J39-J35-J28","v":0},{"$f":"K31+K39-K35-K28","v":0},{"$f":"L31+L39-L35-L28","v":0},{"$f":"M31+M39-M35-M28","v":0},{"$f":"N31+N39-N35-N28","v":0}]
[null,null,"Róznica źródła - wydatki/w okresie/skumulowana",null,{"$f":"E40","v":0},{"$f":"F40+E41","v":0},{"$f":"G40+F41","v":0},0,{"$f":"I40/1000","v":0},{"$f":"I41+J40","v":0},{"$f":"J41+K40","v":0},0,0,0]
[]
[null,"5.","Planowane zmiany kapitału obrotowego - w dniach",null,{"$f":"E45-E44-E46","v":0},{"$f":"F45-F44-F46","v":0},0,0,0,0,0,0,0,{"$f":"N45-N44-N46","v":0}]
[null,"5a.","Planowane średnie terminy płatności  przez odbiorców w dniach",null,{"$f":"'4_założenia KO'!D6","v":0},{"$f":"'4_założenia KO'!E6","v":0},{"$f":"'4_założenia KO'!F6","v":0},{"$f":"'4_założenia KO'!G6","v":0},{"$f":"'4_założenia KO'!H6","v":0},{"$f":"'4_założenia KO'!I6","v":0},{"$f":"'4_założenia KO'!J6","v":0},{"$f":"'4_założenia KO'!K6","v":0},{"$f":"'4_założenia KO'!L6","v":0},{"$f":"'4_założenia KO'!M6","v":0}]
[null,"5b.","Planowane średnie terminy płatności  za bieżace zobowiązania dla dostawców w dniach",null,{"$f":"'4_założenia KO'!D7","v":0},{"$f":"'4_założenia KO'!E7","v":0},{"$f":"'4_założenia KO'!F7","v":0},{"$f":"'4_założenia KO'!G7","v":0},{"$f":"'4_założenia KO'!H7","v":0},{"$f":"'4_założenia KO'!I7","v":0},{"$f":"'4_założenia KO'!J7","v":0},{"$f":"'4_założenia KO'!K7","v":0},{"$f":"'4_założenia KO'!L7","v":0},{"$f":"'4_założenia KO'!M7","v":0}]
[null,"5c.","Planowana średnia rotacja zapasów w magazynie - w dniach",null,{"$f":"'4_założenia KO'!D8","v":0},{"$f":"'4_założenia KO'!E8","v":0},{"$f":"'4_założenia KO'!F8","v":0},{"$f":"'4_założenia KO'!G8","v":0},{"$f":"'4_założenia KO'!H8","v":0},{"$f":"'4_założenia KO'!I8","v":0},{"$f":"'4_założenia KO'!J8","v":0},{"$f":"'4_założenia KO'!K8","v":0},{"$f":"'4_założenia KO'!L8","v":0},{"$f":"'4_założenia KO'!M8","v":0}]
[]
[null,null,"planowane koszty finansowe przedsięwzięcia",null,"1 kw","2 kw","3 kw","4 kw","razem  1 rok","2 rok","3 rok","4 rok","5 rok","5 rok"]
[null,null,"pożyczka  z ES"]
[null,null,"pożyczka/i inna/e"]
[null,null,"inne finansowanie / kredyty, leasnigi finansowe/",null,null,null,null,null,{"$f":"SUM(E51:H51)","v":0}]
[null,null,"razem planowane koszty finansowe",null,{"$f":"'1_wniosek'!E205","v":0},{"$f":"'1_wniosek'!F205","v":0},{"$f":"'1_wniosek'!G205","v":0},{"$f":"'1_wniosek'!H205","v":0},{"$f":"'1_wniosek'!I205","v":0},{"$f":"'1_wniosek'!J205","v":0},{"$f":"'1_wniosek'!K205","v":0},{"$f":"'1_wniosek'!L205","v":0},{"$f":"'1_wniosek'!M205","v":0},{"$f":"'1_wniosek'!N205","v":0}]
[]
[null,"Tabela 1 Kalkulacja przepływów pieniężnych z przedsięwzięcia "]
[null,"Przepływy pieniężne z przedsięwzięcia w tys. zł.",null,null,"1 kw","2 kw","3 kw","4 kw","razem  1 rok","2 rok","3 rok","4 rok","5 rok","6 rok"]
[null,"-","Nakłady inwestycyjne",null,{"$f":"E28","v":0},{"$f":"F28","v":0},0,0,0,0,0,0,0,{"$f":"N28","v":0}]
[null,"+","Przychody",null,{"$f":"E4","v":0},{"$f":"F4","v":0},0,0,0,0,0,0,0,{"$f":"N4","v":0}]
[null,"-","Koszty działalności operacyjnej / w tym również amortyzacja/",null,{"$f":"E9","v":0},{"$f":"F9","v":0},0,0,0,0,0,0,0,{"$f":"N9","v":0}]
[null,"-","Koszty finansowe",null,{"$f":"E52","v":0},{"$f":"F52","v":0},0,0,0,0,0,0,0,{"$f":"N52","v":0}]
[null,"-","Podatek dochodowy",null,{"$f":"IF((E57-(E58+E59))<=0,0,(E57-(E58+E59))*19%)","v":0},{"$f":"IF((F57-(F58+F59))<=0,0,(F57-(F58+F59))*19%)","v":0},0,0,0,0,0,0,0,{"$f":"IF((N57-(N58+N59))<=0,0,(N57-(N58+N59))*19%)","v":0}]
[null,"+","Amortyzacja",null,{"$f":"E10","v":0},{"$f":"F10","v":0},0,0,0,0,0,0,0,{"$f":"N10","v":0}]
[null,"\"-/+\"","Zmiany kapitału obrotowego",null,{"$f":"E66","v":0},{"$f":"F66-E66","v":0},{"$f":"G66-F66","v":0},0,0,0,0,0,0,0]
[null,"+","Zaciągnięcia pożyczki",null,{"$f":"E31","v":0},{"$f":"F31","v":0},0,0,0,0,0,0,0,{"$f":"N31","v":0}]
[null,"-","Spłata pożyczki",null,{"$f":"E35","v":0},{"$f":"F35","v":0},0,0,0,0,0,0,0,{"$f":"N35","v":0}]
[null,"=","Przepływy pieniężne z przedsięwzięcia   (FCFEI)",null,{"$f":"-E56+E57-E58-E59-E60+E61+E62+E63-E64","v":0},{"$f":"-F56+F57-F58-F59-F60+F61+F62+F63-F64","v":0},0,0,0,0,0,0,0,{"$f":"-N56+N57-N58-N59-N60+N61+N62+N63-N64","v":0}]
[null,null,null,null,{"$f":"E68-E69-E67","v":0},{"$f":"F68-F69-F67","v":0},0,0,0,0,0,0,0,{"$f":"N68-N69-N67","v":0}]
[null,null,"nalezności",null,{"$f":"IFERROR(E4*E44/E3,0)","v":0},{"$f":"IFERROR(F4*F44/F3,0)","v":0},0,0,{"$f":"H67","v":0},{"$f":"IFERROR(J4*J44/J3,0)","v":0},{"$f":"IFERROR(K4*K44/K3,0)","v":0},0,0,0]
[null,null,"zobow handlowe",null,{"$f":"IFERROR(E45*E4/E3,0)","v":0},{"$f":"IFERROR(F45*F4/F3,0)","v":0},0,0,{"$f":"H68","v":0},{"$f":"IFERROR(J45*J4/J3,0)","v":0},{"$f":"IFERROR(K45*K4/K3,0)","v":0},0,0,0]
[null,null,"zapasy",null,{"$f":"IFERROR(E46*E4/E3,0)","v":0},{"$f":"IFERROR(F46*F4/F3,0)","v":0},0,0,0,{"$f":"IFERROR(J46*J4/J3,0)","v":0},{"$f":"IFERROR(K46*K4/K3,0)","v":0},0,0,0]

{"sheet":"3a_projekcje_klient ","index":10,"n_rows":85,"n_cols":27,"rows_kept":85,"cut":false,"hidden":false,"merged":[[45,2,45,14],[0,3,0,14]]}
[]
[null,null,null,"projekcje  - wyliczane automatycznie"]
[null,null,null,"Aktywa",{"$f":"'3_Zał_F_dane fin i zał_klient'!G5","v":2013},{"$f":"'1_wniosek'!E124","v":"Kwartał 1"},{"$f":"'1_wniosek'!F124","v":"Kwartał 2"},{"$f":"'1_wniosek'!G124","v":"Kwartał 3"},{"$f":"'1_wniosek'!H124","v":"Kwartał 4"},{"$f":"'1_wniosek'!I123","v":2014},{"$f":"'1_wniosek'!J157","v":2015},{"$f":"'1_wniosek'!K157","v":2016},{"$f":"'1_wniosek'!L157","v":2017},{"$f":"'1_wniosek'!M157","v":2018},{"$f":"'1_wniosek'!N157","v":2019},null,null,null,{"$f":"F3","v":"Kwartał 1"},{"$f":"G3","v":"Kwartał 2"},"Kwartał 3","Kwartał 4",null,"nie dotyczy",1,null,"wersja 08.01.2014"]
[null,null,null,"Aktywa trwałe",{"$f":"'5_projekcje'!D3","v":0},{"$f":"'5_projekcje'!E3","v":0},{"$f":"'5_projekcje'!F3","v":0},{"$f":"'5_projekcje'!G3","v":0},{"$f":"'5_projekcje'!H3","v":0},{"$f":"'5_projekcje'!I3","v":0},{"$f":"'5_projekcje'!J3","v":0},{"$f":"'5_projekcje'!K3","v":0},{"$f":"'5_projekcje'!L3","v":0},{"$f":"'5_projekcje'!M3","v":0},{"$f":"'5_projekcje'!N3","v":0},null,null,null,{"$f":"VLOOKUP(F3,'1_wniosek'!$AB$124:$AC$128,2,FALSE)","v":90},{"$f":"VLOOKUP(G3,'1_wniosek'!$AB$124:$AC$128,2,FALSE)","v":180},{"$f":"VLOOKUP(H3,'1_wniosek'!$AB$124:$AC$128,2,FALSE)","v":270},{"$f":"VLOOKUP(I3,'1_wniosek'!$AB$124:$AC$128,2,FALSE)","v":360}]
[null,null,null,"Zapasy",{"$f":"'5_projekcje'!D4","v":0},{"$f":"'5_projekcje'!E4","v":0},{"$f":"'5_projekcje'!F4","v":0},{"$f":"'5_projekcje'!G4","v":0},{"$f":"'5_projekcje'!H4","v":0},{"$f":"'5_projekcje'!I4","v":0},{"$f":"'5_projekcje'!J4","v":0},{"$f":"'5_projekcje'!K4","v":0},{"$f":"'5_projekcje'!L4","v":0},{"$f":"'5_projekcje'!M4","v":0},{"$f":"'5_projekcje'!N4","v":0},null,null,null,{"$f":"S4","v":90},{"$f":"T4","v":180},270,360,{"$f":"SUM(S5:V5)","v":900}]
[null,null,null,"Należności",{"$f":"'5_projekcje'!D5","v":0},{"$f":"'5_projekcje'!E5","v":0},{"$f":"'5_projekcje'!F5","v":0},{"$f":"'5_projekcje'!G5","v":0},{"$f":"'5_projekcje'!H5","v":0},{"$f":"'5_projekcje'!I5","v":0},{"$f":"'5_projekcje'!J5","v":0},{"$f":"'5_projekcje'!K5","v":0},{"$f":"'5_projekcje'!L5","v":0},{"$f":"'5_projekcje'!M5","v":0},{"$f":"'5_projekcje'!N5","v":0}]
[null,null,null," - od odbiorców /handlowe/",{"$f":"'5_projekcje'!D6","v":0},{"$f":"'5_projekcje'!E6","v":0},{"$f":"'5_projekcje'!F6","v":0},{"$f":"'5_projekcje'!G6","v":0},{"$f":"'5_projekcje'!H6","v":0},{"$f":"'5_projekcje'!I6","v":0},{"$f":"'5_projekcje'!J6","v":0},{"$f":"'5_projekcje'!K6","v":0},{"$f":"'5_projekcje'!L6","v":0},{"$f":"'5_projekcje'!M6","v":0},{"$f":"'5_projekcje'!N6","v":0},null,null,null,{"$f":"'1_wniosek'!E187","v":"prognoza"},{"$f":"'1_wniosek'!F187","v":"prognoza"},{"$f":"'1_wniosek'!G187","v":"prognoza"},{"$f":"'1_wniosek'!H187","v":"prognoza"}]
[null,null,null," - pozostałe",{"$f":"'5_projekcje'!D7","v":0},{"$f":"'5_projekcje'!E7","v":0},{"$f":"'5_projekcje'!F7","v":0},{"$f":"'5_projekcje'!G7","v":0},{"$f":"'5_projekcje'!H7","v":0},{"$f":"'5_projekcje'!I7","v":0},{"$f":"'5_projekcje'!J7","v":0},{"$f":"'5_projekcje'!K7","v":0},{"$f":"'5_projekcje'!L7","v":0},{"$f":"'5_projekcje'!M7","v":0},{"$f":"'5_projekcje'!N7","v":0},null,null,null,{"$f":"VLOOKUP('1_wniosek'!E187,'1_wniosek'!$S$186:$T$187,2,FALSE)","v":1},{"$f":"VLOOKUP('1_wniosek'!F187,'1_wniosek'!$S$186:$T$187,2,FALSE)","v":1},{"$f":"VLOOKUP('1_wniosek'!G187,'1_wniosek'!$S$186:$T$187,2,FALSE)","v":1},{"$f":"VLOOKUP('1_wniosek'!H187,'1_wniosek'!$S$186:$T$187,2,FALSE)","v":1}]
[null,null,null,"śr pieniężne",{"$f":"'5_projekcje'!D8","v":0},{"$f":"'5_projekcje'!E8","v":0},{"$f":"'5_projekcje'!F8","v":0},{"$f":"'5_projekcje'!G8","v":0},{"$f":"'5_projekcje'!H8","v":0},{"$f":"'5_projekcje'!I8","v":0},{"$f":"'5_projekcje'!J8","v":0},{"$f":"'5_projekcje'!K8","v":0},{"$f":"'5_projekcje'!L8","v":0},{"$f":"'5_projekcje'!M8","v":0},{"$f":"'5_projekcje'!N8","v":0}]
[null,null,null,"śr pieniężne",{"$f":"'5_projekcje'!D9","v":0},{"$f":"'5_projekcje'!E9","v":0},{"$f":"'5_projekcje'!F9","v":0},{"$f":"'5_projekcje'!G9","v":0},{"$f":"'5_projekcje'!H9","v":0},{"$f":"'5_projekcje'!I9","v":0},{"$f":"'5_projekcje'!J9","v":0},{"$f":"'5_projekcje'!K9","v":0},{"$f":"'5_projekcje'!L9","v":0},{"$f":"'5_projekcje'!M9","v":0},{"$f":"'5_projekcje'!N9","v":0}]
[null,null,null,"inne składniki majątkowe",{"$f":"'5_projekcje'!D10","v":0},{"$f":"'5_projekcje'!E10","v":0},{"$f":"'5_projekcje'!F10","v":0},{"$f":"'5_projekcje'!G10","v":0},{"$f":"'5_projekcje'!H10","v":0},{"$f":"'5_projekcje'!I10","v":0},{"$f":"'5_projekcje'!J10","v":0},{"$f":"'5_projekcje'!K10","v":0},{"$f":"'5_projekcje'!L10","v":0},{"$f":"'5_projekcje'!M10","v":0},{"$f":"'5_projekcje'!N10","v":0}]
[null,null,null,"Razem Aktywa",{"$f":"'5_projekcje'!D11","v":0},{"$f":"'5_projekcje'!E11","v":0},{"$f":"'5_projekcje'!F11","v":0},{"$f":"'5_projekcje'!G11","v":0},{"$f":"'5_projekcje'!H11","v":0},{"$f":"'5_projekcje'!I11","v":0},{"$f":"'5_projekcje'!J11","v":0},{"$f":"'5_projekcje'!K11","v":0},{"$f":"'5_projekcje'!L11","v":0},{"$f":"'5_projekcje'!M11","v":0},{"$f":"'5_projekcje'!N11","v":0}]
[null,null,null,"Razem Aktywa",{"$f":"'5_projekcje'!D12","v":0},{"$f":"'5_projekcje'!E12","v":0},{"$f":"'5_projekcje'!F12","v":0},{"$f":"'5_projekcje'!G12","v":0},{"$f":"'5_projekcje'!H12","v":0},{"$f":"'5_projekcje'!I12","v":0},{"$f":"'5_projekcje'!J12","v":0},{"$f":"'5_projekcje'!K12","v":0},{"$f":"'5_projekcje'!L12","v":0},{"$f":"'5_projekcje'!M12","v":0},{"$f":"'5_projekcje'!N12","v":0}]
[]
[null,null,null,"Pasywa",{"$f":"E3","v":2013},{"$f":"F3","v":"Kwartał 1"},{"$f":"G3","v":"Kwartał 2"},"Kwartał 3","Kwartał 4",2014,2015,2016,2017,2018,2019]
[null,null,null,"Kapitały własne",{"$f":"'5_projekcje'!D15","v":0},{"$f":"'5_projekcje'!E15","v":0},{"$f":"'5_projekcje'!F15","v":0},{"$f":"'5_projekcje'!G15","v":0},{"$f":"'5_projekcje'!H15","v":0},{"$f":"'5_projekcje'!I15","v":0},{"$f":"'5_projekcje'!J15","v":0},{"$f":"'5_projekcje'!K15","v":0},{"$f":"'5_projekcje'!L15","v":0},{"$f":"'5_projekcje'!M15","v":0},{"$f":"'5_projekcje'!N15","v":0}]
[null,null,null,"Dług oprocentowany długoterminowy/ kredyty pożyczki , leasingi/",{"$f":"'5_projekcje'!D16","v":0},{"$f":"'5_projekcje'!E16","v":0},{"$f":"'5_projekcje'!F16","v":0},{"$f":"'5_projekcje'!G16","v":0},{"$f":"'5_projekcje'!H16","v":0},{"$f":"'5_projekcje'!I16","v":0},{"$f":"'5_projekcje'!J16","v":0},{"$f":"'5_projekcje'!K16","v":0},{"$f":"'5_projekcje'!L16","v":0},{"$f":"'5_projekcje'!M16","v":0},{"$f":"'5_projekcje'!N16","v":0}]
[null,null,null,"Zobowiązania krótkoterminowe",{"$f":"'5_projekcje'!D17","v":0},{"$f":"'5_projekcje'!E17","v":0},{"$f":"'5_projekcje'!F17","v":0},{"$f":"'5_projekcje'!G17","v":0},{"$f":"'5_projekcje'!H17","v":0},{"$f":"'5_projekcje'!I17","v":0},{"$f":"'5_projekcje'!J17","v":0},{"$f":"'5_projekcje'!K17","v":0},{"$f":"'5_projekcje'!L17","v":0},{"$f":"'5_projekcje'!M17","v":0},{"$f":"'5_projekcje'!N17","v":0}]
[null,null,null,"Zobowiązania krótkoterminowe/p/",{"$f":"'5_projekcje'!D18","v":0},{"$f":"'5_projekcje'!E18","v":0},{"$f":"'5_projekcje'!F18","v":0},{"$f":"'5_projekcje'!G18","v":0},{"$f":"'5_projekcje'!H18","v":0},{"$f":"'5_projekcje'!I18","v":0},{"$f":"'5_projekcje'!J18","v":0},{"$f":"'5_projekcje'!K18","v":0},{"$f":"'5_projekcje'!L18","v":0},{"$f":"'5_projekcje'!M18","v":0},{"$f":"'5_projekcje'!N18","v":0}]
[null,null,null," handlowe",{"$f":"'5_projekcje'!D19","v":0},{"$f":"'5_projekcje'!E19","v":0},{"$f":"'5_projekcje'!F19","v":0},{"$f":"'5_projekcje'!G19","v":0},{"$f":"'5_projekcje'!H19","v":0},{"$f":"'5_projekcje'!I19","v":0},{"$f":"'5_projekcje'!J19","v":0},{"$f":"'5_projekcje'!K19","v":0},{"$f":"'5_projekcje'!L19","v":0},{"$f":"'5_projekcje'!M19","v":0},{"$f":"'5_projekcje'!N19","v":0}]
[null,null,null," - kredyty obrotowe",{"$f":"'5_projekcje'!D20","v":0},{"$f":"'5_projekcje'!E20","v":0},{"$f":"'5_projekcje'!F20","v":0},{"$f":"'5_projekcje'!G20","v":0},{"$f":"'5_projekcje'!H20","v":0},{"$f":"'5_projekcje'!I20","v":0},{"$f":"'5_projekcje'!J20","v":0},{"$f":"'5_projekcje'!K20","v":0},{"$f":"'5_projekcje'!L20","v":0},{"$f":"'5_projekcje'!M20","v":0},{"$f":"'5_projekcje'!N20","v":0}]
[null,null,null," kredyty, pożyczki krótkoterminowe ",{"$f":"'5_projekcje'!D21","v":0},{"$f":"'5_projekcje'!E21","v":0},{"$f":"'5_projekcje'!F21","v":0},{"$f":"'5_projekcje'!G21","v":0},{"$f":"'5_projekcje'!H21","v":0},{"$f":"'5_projekcje'!I21","v":0},{"$f":"'5_projekcje'!J21","v":0},{"$f":"'5_projekcje'!K21","v":0},{"$f":"'5_projekcje'!L21","v":0},{"$f":"'5_projekcje'!M21","v":0},{"$f":"'5_projekcje'!N21","v":0}]
[null,null,null,"Pozostałe zobowiązania",{"$f":"'5_projekcje'!D22","v":0},{"$f":"'5_projekcje'!E22","v":0},{"$f":"'5_projekcje'!F22","v":0},{"$f":"'5_projekcje'!G22","v":0},{"$f":"'5_projekcje'!H22","v":0},{"$f":"'5_projekcje'!I22","v":0},{"$f":"'5_projekcje'!J22","v":0},{"$f":"'5_projekcje'!K22","v":0},{"$f":"'5_projekcje'!L22","v":0},{"$f":"'5_projekcje'!M22","v":0},{"$f":"'5_projekcje'!N22","v":0}]
[null,null,null,"Inne pasywa krótkoterm",{"$f":"'5_projekcje'!D23","v":0},{"$f":"'5_projekcje'!E23","v":0},{"$f":"'5_projekcje'!F23","v":0},{"$f":"'5_projekcje'!G23","v":0},{"$f":"'5_projekcje'!H23","v":0},{"$f":"'5_projekcje'!I23","v":0},{"$f":"'5_projekcje'!J23","v":0},{"$f":"'5_projekcje'!K23","v":0},{"$f":"'5_projekcje'!L23","v":0},{"$f":"'5_projekcje'!M23","v":0},{"$f":"'5_projekcje'!N23","v":0}]
[null,null,null,"Inne pasywa długoterm",{"$f":"'5_projekcje'!D24","v":0},{"$f":"'5_projekcje'!E24","v":0},{"$f":"'5_projekcje'!F24","v":0},{"$f":"'5_projekcje'!G24","v":0},{"$f":"'5_projekcje'!H24","v":0},{"$f":"'5_projekcje'!I24","v":0},{"$f":"'5_projekcje'!J24","v":0},{"$f":"'5_projekcje'!K24","v":0},{"$f":"'5_projekcje'!L24","v":0},{"$f":"'5_projekcje'!M24","v":0},{"$f":"'5_projekcje'!N24","v":0}]
[null,null,null,"Razem Pasywa",{"$f":"'5_projekcje'!D25","v":0},{"$f":"'5_projekcje'!E25","v":0},{"$f":"'5_projekcje'!F25","v":0},{"$f":"'5_projekcje'!G25","v":0},{"$f":"'5_projekcje'!H25","v":0},{"$f":"'5_projekcje'!I25","v":0},{"$f":"'5_projekcje'!J25","v":0},{"$f":"'5_projekcje'!K25","v":0},{"$f":"'5_projekcje'!L25","v":0},{"$f":"'5_projekcje'!M25","v":0},{"$f":"'5_projekcje'!N25","v":0}]
[null,null,null,"Razem Pasywa",{"$f":"'5_projekcje'!D26","v":0},{"$f":"'5_projekcje'!E26","v":0},{"$f":"'5_projekcje'!F26","v":0},{"$f":"'5_projekcje'!G26","v":0},{"$f":"'5_projekcje'!H26","v":0},{"$f":"'5_projekcje'!I26","v":0},{"$f":"'5_projekcje'!J26","v":0},{"$f":"'5_projekcje'!K26","v":0},{"$f":"'5_projekcje'!L26","v":0},{"$f":"'5_projekcje'!M26","v":0},{"$f":"'5_projekcje'!N26","v":0}]
[null,null,null,"różnica  A-P",{"$f":"E13-E27","v":0},{"$f":"F13-F27","v":0},0,0,0,0,0,0,0,0,0]
[]
[null,null,null,"rzis",{"$f":"E3","v":2013},{"$f":"F3","v":"Kwartał 1"},"Kwartał 2","Kwartał 3","Kwartał 4",2014,2015,2016,2017,2018,2019]
[null,null,null,"I. Przychody ogółem (II+III+IV+V), z tego",{"$f":"'3_Zał_F_TISE'!K5","v":0},{"$f":"'1_wniosek'!E188","v":0},{"$f":"'1_wniosek'!F188","v":0},{"$f":"'1_wniosek'!G188","v":0},{"$f":"'1_wniosek'!H188","v":0},{"$f":"'5_projekcje'!I29","v":0},{"$f":"'5_projekcje'!J29","v":0},{"$f":"'5_projekcje'!K29","v":0},{"$f":"'5_projekcje'!L29","v":0},{"$f":"'5_projekcje'!M29","v":0},{"$f":"'5_projekcje'!N29","v":0}]
[null,null,null,"II. Przychody  z działalności gospodarczej , ze sprzedaży produktów, usług i towarów ogółem, z tego:",{"$f":"'3_Zał_F_TISE'!K6","v":0},{"$f":"'1_wniosek'!E189","v":0},{"$f":"'1_wniosek'!F189","v":0},{"$f":"'1_wniosek'!G189","v":0},{"$f":"'1_wniosek'!H189","v":0},{"$f":"'5_projekcje'!I30","v":0},{"$f":"'5_projekcje'!J30","v":0},{"$f":"'5_projekcje'!K30","v":0},{"$f":"'5_projekcje'!L30","v":0},{"$f":"'5_projekcje'!M30","v":0},{"$f":"'5_projekcje'!N30","v":0}]
[null,null,null,"III. Pozostałe przychody  operacyjne ",{"$f":"'3_Zał_F_TISE'!K7","v":0},{"$f":"'1_wniosek'!E192","v":0},{"$f":"'1_wniosek'!F192","v":0},{"$f":"'1_wniosek'!G192","v":0},{"$f":"'1_wniosek'!H192","v":0},{"$f":"'5_projekcje'!I31","v":0},{"$f":"'5_projekcje'!J31","v":0},{"$f":"'5_projekcje'!K31","v":0},{"$f":"'5_projekcje'!L31","v":0},{"$f":"'5_projekcje'!M31","v":0},{"$f":"'5_projekcje'!N31","v":0}]
[null,null,null,"IV. Przychody finansowe",{"$f":"'3_Zał_F_TISE'!K8","v":0},{"$f":"'1_wniosek'!E193","v":0},{"$f":"'1_wniosek'!F193","v":0},{"$f":"'1_wniosek'!G193","v":0},{"$f":"'1_wniosek'!H193","v":0},{"$f":"'5_projekcje'!I32","v":0},{"$f":"'5_projekcje'!J32","v":0},{"$f":"'5_projekcje'!K32","v":0},{"$f":"'5_projekcje'!L32","v":0},{"$f":"'5_projekcje'!M32","v":0},{"$f":"'5_projekcje'!N32","v":0}]
[null,null,null," V. Przychody z działalności  statutowej",{"$f":"'3_Zał_F_TISE'!K9","v":0},{"$f":"'1_wniosek'!E194","v":0},{"$f":"'1_wniosek'!F194","v":0},{"$f":"'1_wniosek'!G194","v":0},{"$f":"'1_wniosek'!H194","v":0},{"$f":"'5_projekcje'!I33","v":0},{"$f":"'5_projekcje'!J33","v":0},{"$f":"'5_projekcje'!K33","v":0},{"$f":"'5_projekcje'!L33","v":0},{"$f":"'5_projekcje'!M33","v":0},{"$f":"'5_projekcje'!N33","v":0}]
[null,null,null,"VI. Koszty działalności  gospodarczej, w tym",{"$f":"'3_Zał_F_TISE'!K10","v":0},{"$f":"SUM(F37:F42)","v":0},{"$f":"SUM(G37:G42)","v":0},0,0,{"$f":"'5_projekcje'!I34","v":0},{"$f":"'5_projekcje'!J34","v":0},{"$f":"'5_projekcje'!K34","v":0},{"$f":"'5_projekcje'!L34","v":0},{"$f":"'5_projekcje'!M34","v":0},{"$f":"'5_projekcje'!N34","v":0}]
[null,null,null,"amortyzacja",{"$f":"'3_Zał_F_TISE'!K11","v":0},{"$f":"'1_wniosek'!E198+'1_wniosek'!E199","v":0},{"$f":"'1_wniosek'!F198+'1_wniosek'!F199","v":0},{"$f":"'1_wniosek'!G198+'1_wniosek'!G199","v":0},{"$f":"'1_wniosek'!H198+'1_wniosek'!H199","v":0},{"$f":"'5_projekcje'!I35","v":0},{"$f":"'5_projekcje'!J35","v":0},{"$f":"'5_projekcje'!K35","v":0},{"$f":"'5_projekcje'!L35","v":0},{"$f":"'5_projekcje'!M35","v":0},{"$f":"'5_projekcje'!N35","v":0}]
[null,null,null," koszty eksploatacyjne - np. czynsz,zużycie materiałów i energii, transport ,podatki , opłaty, inne",{"$f":"'3_Zał_F_TISE'!K12","v":0},{"$f":"'1_wniosek'!E200+'1_wniosek'!E134+'1_wniosek'!E148","v":0},{"$f":"'1_wniosek'!F200+'1_wniosek'!F134+'1_wniosek'!F148","v":0},{"$f":"'1_wniosek'!G200+'1_wniosek'!G134+'1_wniosek'!G148","v":0},{"$f":"'1_wniosek'!H200+'1_wniosek'!H134+'1_wniosek'!H148","v":0},{"$f":"'5_projekcje'!I36","v":0},{"$f":"'5_projekcje'!J36","v":0},{"$f":"'5_projekcje'!K36","v":0},{"$f":"'5_projekcje'!L36","v":0},{"$f":"'5_projekcje'!M36","v":0},{"$f":"'5_projekcje'!N36","v":0}]
[null,null,null,"wynagrodzenia z narzutami",{"$f":"'3_Zał_F_TISE'!K13","v":0},{"$f":"'1_wniosek'!E201+'1_wniosek'!E135+'1_wniosek'!E149","v":0},{"$f":"'1_wniosek'!F201+'1_wniosek'!F135+'1_wniosek'!F149","v":0},{"$f":"'1_wniosek'!G201+'1_wniosek'!G135+'1_wniosek'!G149","v":0},{"$f":"'1_wniosek'!H201+'1_wniosek'!H135+'1_wniosek'!H149","v":0},{"$f":"'5_projekcje'!I37","v":0},{"$f":"'5_projekcje'!J37","v":0},{"$f":"'5_projekcje'!K37","v":0},{"$f":"'5_projekcje'!L37","v":0},{"$f":"'5_projekcje'!M37","v":0},{"$f":"'5_projekcje'!N37","v":0}]
[null,null,null,"koszt sprzedanych towarów , materiałów , usług",{"$f":"'3_Zał_F_TISE'!K14","v":0},{"$f":"'1_wniosek'!E202","v":0},{"$f":"'1_wniosek'!F202","v":0},{"$f":"'1_wniosek'!G202","v":0},{"$f":"'1_wniosek'!H202","v":0},{"$f":"'5_projekcje'!I38","v":0},{"$f":"'5_projekcje'!J38","v":0},{"$f":"'5_projekcje'!K38","v":0},{"$f":"'5_projekcje'!L38","v":0},{"$f":"'5_projekcje'!M38","v":0},{"$f":"'5_projekcje'!N38","v":0}]
[null,null,null,"Pozostałe koszty operacyjne ",{"$f":"'3_Zał_F_TISE'!K15","v":0},{"$f":"'1_wniosek'!E206","v":0},{"$f":"'1_wniosek'!F206","v":0},{"$f":"'1_wniosek'!G206","v":0},{"$f":"'1_wniosek'!H206","v":0},{"$f":"'5_projekcje'!I39","v":0},{"$f":"'5_projekcje'!J39","v":0},{"$f":"'5_projekcje'!K39","v":0},{"$f":"'5_projekcje'!L39","v":0},{"$f":"'5_projekcje'!M39","v":0},{"$f":"'5_projekcje'!N39","v":0}]
[null,null,null,"Koszty finansowe",{"$f":"'3_Zał_F_TISE'!K16","v":0},{"$f":"'1_wniosek'!E205+'1_wniosek'!E204","v":0},{"$f":"'1_wniosek'!F205+'1_wniosek'!F204","v":0},{"$f":"'1_wniosek'!G205+'1_wniosek'!G204","v":0},{"$f":"'1_wniosek'!H205+'1_wniosek'!H204","v":0},{"$f":"'5_projekcje'!I40","v":0},{"$f":"'5_projekcje'!J40","v":0},{"$f":"'5_projekcje'!K40","v":0},{"$f":"'5_projekcje'!L40","v":0},{"$f":"'5_projekcje'!M40","v":0},{"$f":"'5_projekcje'!N40","v":0}]
[null,null,null,"VII. Koszty realizacji zadań statutowych",{"$f":"'3_Zał_F_TISE'!K17","v":0},{"$f":"'1_wniosek'!E207","v":0},{"$f":"'1_wniosek'!F207","v":0},{"$f":"'1_wniosek'!G207","v":0},{"$f":"'1_wniosek'!H207","v":0},{"$f":"'5_projekcje'!I41","v":0},{"$f":"'5_projekcje'!J41","v":0},{"$f":"'5_projekcje'!K41","v":0},{"$f":"'5_projekcje'!L41","v":0},{"$f":"'5_projekcje'!M41","v":0},{"$f":"'5_projekcje'!N41","v":0}]
[null,null,null,"Podatek dochodowy",{"$f":"'3_Zał_F_TISE'!K19","v":0},{"$f":"IF((F31-F36-F41-F42-F43)>0,(F31-F36-F41-F42-F43)*19%,0)","v":0},0,0,0,{"$f":"'5_projekcje'!I42","v":0},{"$f":"'5_projekcje'!J42","v":0},{"$f":"'5_projekcje'!K42","v":0},{"$f":"'5_projekcje'!L42","v":0},{"$f":"'5_projekcje'!M42","v":0},{"$f":"'5_projekcje'!N42","v":0}]
[null,null,null,"Wynik netto",{"$f":"'3_Zał_F_TISE'!K20","v":0},{"$f":"F31-F36-F43-F44","v":0},0,0,0,{"$f":"'5_projekcje'!I43","v":0},{"$f":"'5_projekcje'!J43","v":0},{"$f":"'5_projekcje'!K43","v":0},{"$f":"'5_projekcje'!L43","v":0},{"$f":"'5_projekcje'!M43","v":0},{"$f":"'5_projekcje'!N43","v":0}]
[null,null,"Tabela 2 Kalkulacja przepływów pieniężnych z całej  działalności Wnioskodawcy"]
[null,null,null,"Przepływy pieniężne z działalności  całej ",null,{"$f":"F3","v":"Kwartał 1"},{"$f":"G3","v":"Kwartał 2"},"Kwartał 3","Kwartał 4",2014,2015,2016,2017,2018,2019]
[null,null,null,"Nakłady inwestycyjne","-",{"$f":"'7'!E56","v":0},{"$f":"'7'!F56","v":0},{"$f":"'7'!G56","v":0},{"$f":"'7'!H56","v":0},{"$f":"'7'!I56","v":0},{"$f":"'7'!J56","v":0},{"$f":"'7'!K56","v":0},{"$f":"'7'!L56","v":0},{"$f":"'7'!M56","v":0},{"$f":"'7'!N56","v":0}]
[null,null,null,"Przychody","+",{"$f":"'7'!E57","v":0},{"$f":"'7'!F57","v":0},{"$f":"'7'!G57","v":0},{"$f":"'7'!H57","v":0},{"$f":"'7'!I57","v":0},{"$f":"'7'!J57","v":0},{"$f":"'7'!K57","v":0},{"$f":"'7'!L57","v":0},{"$f":"'7'!M57","v":0},{"$f":"'7'!N57","v":0}]
[null,null,null,"Koszty działalności operacyjnej / w tym również amortyzacja/","-",{"$f":"'7'!E58","v":0},{"$f":"'7'!F58","v":0},{"$f":"'7'!G58","v":0},{"$f":"'7'!H58","v":0},{"$f":"'7'!I58","v":0},{"$f":"'7'!J58","v":0},{"$f":"'7'!K58","v":0},{"$f":"'7'!L58","v":0},{"$f":"'7'!M58","v":0},{"$f":"'7'!N58","v":0}]
[null,null,null,"Koszty finansowe","-",{"$f":"'7'!E59","v":0},{"$f":"'7'!F59","v":0},{"$f":"'7'!G59","v":0},{"$f":"'7'!H59","v":0},{"$f":"'7'!I59","v":0},{"$f":"'7'!J59","v":0},{"$f":"'7'!K59","v":0},{"$f":"'7'!L59","v":0},{"$f":"'7'!M59","v":0},{"$f":"'7'!N59","v":0}]
[null,null,null,"Podatek dochodowy","-",{"$f":"'7'!E60","v":0},{"$f":"'7'!F60","v":0},{"$f":"'7'!G60","v":0},{"$f":"'7'!H60","v":0},{"$f":"'7'!I60","v":0},{"$f":"'7'!J60","v":0},{"$f":"'7'!K60","v":0},{"$f":"'7'!L60","v":0},{"$f":"'7'!M60","v":0},{"$f":"'7'!N60","v":0}]
[null,null,null,"Amortyzacja","+",{"$f":"'7'!E61","v":0},{"$f":"'7'!F61","v":0},{"$f":"'7'!G61","v":0},{"$f":"'7'!H61","v":0},{"$f":"'7'!I61","v":0},{"$f":"'7'!J61","v":0},{"$f":"'7'!K61","v":0},{"$f":"'7'!L61","v":0},{"$f":"'7'!M61","v":0},{"$f":"'7'!N61","v":0}]
[null,null,null,"Zmiany kapitału obrotowego","\"-/+\"",0,{"$f":"IFERROR('7'!F62,0)","v":0},{"$f":"IFERROR('7'!G62,0)","v":0},{"$f":"IFERROR('7'!H62,0)","v":0},{"$f":"IFERROR('7'!I62,0)","v":0},{"$f":"IFERROR('7'!J62,0)","v":0},{"$f":"IFERROR('7'!K62,0)","v":0},{"$f":"IFERROR('7'!L62,0)","v":0},{"$f":"IFERROR('7'!M62,0)","v":0},{"$f":"IFERROR('7'!N62,0)","v":0}]
[null,null,null,"Zaciągnięcia pożyczki","+",{"$f":"'7'!E63","v":0},{"$f":"'7'!F63","v":0},{"$f":"'7'!G63","v":0},{"$f":"'7'!H63","v":0},{"$f":"'7'!I63","v":0},{"$f":"'7'!J63","v":0},{"$f":"'7'!K63","v":0},{"$f":"'7'!L63","v":0},{"$f":"'7'!M63","v":0},{"$f":"'7'!N63","v":0}]
[null,null,null,"Spłata pożyczki","-",{"$f":"'7'!E64","v":0},{"$f":"'7'!F64","v":0},{"$f":"'7'!G64","v":0},{"$f":"'7'!H64","v":0},{"$f":"'7'!I64","v":0},{"$f":"'7'!J64","v":0},{"$f":"'7'!K64","v":0},{"$f":"'7'!L64","v":0},{"$f":"'7'!M64","v":0},{"$f":"'7'!N64","v":0}]
[null,null,null,"Przepływy pieniężne z przedsięwzięcia   (FCFEI)","=",{"$f":"IFERROR('7'!E65,0)","v":0},{"$f":"IFERROR('7'!F65,0)","v":0},{"$f":"IFERROR('7'!G65,0)","v":0},{"$f":"IFERROR('7'!H65,0)","v":0},{"$f":"IFERROR('7'!I65,0)","v":0},{"$f":"IFERROR('7'!J65,0)","v":0},{"$f":"IFERROR('7'!K65,0)","v":0},{"$f":"IFERROR('7'!L65,0)","v":0},{"$f":"IFERROR('7'!M65,0)","v":0},{"$f":"IFERROR('7'!N65,0)","v":0}]
[]
[]
[null,null,null,null," „Projekt jest współfinansowany ze środków Unii Europejskiej w ramach Europejskiego Funduszu Społecznego”."]
[]
[]
[]
[]
[]
[]
[]
[]
[]
[]
[]
[]
[]
[]
[]
[]
[]
[]
[]
[]
[null,null,null,null,{"$f":"E12-E26","v":0},{"$f":"-F10","v":0},0,0,0,0,0,0,0,0,0]
[null,null,null,"różnica A- P",{"$f":"F13-F27","v":0},{"$f":"F12-F26","v":0},0,0,0,0,0,0,0,0,0]
[null,null,null,"sr pie sp",{"$f":"E9","v":0}]
[null,null,null,"śr pie  sk",null,{"$f":"E83+'7'!E65+'3a_projekcje_klient '!F21-'3a_projekcje_klient '!E21+'3a_projekcje_klient '!E8-'3a_projekcje_klient '!F8+'3a_projekcje_klient '!E11-'3a_projekcje_klient '!F11","v":0},{"$f":"F83+'7'!F65+'3a_projekcje_klient '!G21-'3a_projekcje_klient '!F21+'3a_projekcje_klient '!F8-'3a_projekcje_klient '!G8+'3a_projekcje_klient '!F11-'3a_projekcje_klient '!G11","v":0}]
[null,null,null,"zm apbiez",null,{"$f":"E8-F8+E11-F11+F21-E21+F23-E23+F24-E24","v":0}]

{"sheet":"3_Zał_F_TISE","index":11,"n_rows":54,"n_cols":15,"rows_kept":54,"cut":false,"hidden":true,"merged":[[2,2,2,6],[6,4,6,5],[12,4,12,5],[7,8,7,9],[11,8,11,9],[12,8,12,9],[10,2,12,2],[4,8,4,9],[3,8,3,9],[6,8,6,9],[3,4,3,5],[4,4,4,5],[5,4,5,5],[5,8,5,9],[7,4,7,5],[8,4,8,5],[17,8,17,9],[2,12,2,14],[2,8,2,10],[8,8,8,9],[9,8,9,9],[10,8,10,9],[9,4,9,5],[10,4,10,5],[11,4,11,5],[46,2,46,3],[45,2,45,3],[10,3,12,3],[18,8,18,9],[13,4,13,5],[23,2,23,3],[44,2,44,3],[42,2,43,3],[28,2,29,2],[35,2,35,13],[41,2,41,13],[27,2,27,13],[36,2,37,3],[21,2,21,13],[13,8,13,9],[19,8,19,9],[14,8,14,9],[15,8,15,9],[16,8,16,9]]}
[null,null,"Załącznik F. Dane finansowe i założenia"]
["I.",null,"Uproszczone sprawozdania z dotychczasowej działalności "]
[null,null,"Bilans ",null,null,null,null,null,"Uproszczony Rachunek zysków i strat",null,null,null,"Struktura nalezności i zobowiązań"]
[null,null,"Aktywa",{"$f":"'3_Zał_F_dane fin i zał_klient'!D5","v":2013},"Pasywa",null,{"$f":"'3_Zał_F_dane fin i zał_klient'!G5","v":2013},null,"rzis",null,{"$f":"'3_Zał_F_dane fin i zał_klient'!K5","v":2013},null,"Wyszczególnienie",{"$f":"'3_Zał_F_dane fin i zał_klient'!N5","v":"koniec roku"},{"$f":"'3_Zał_F_dane fin i zał_klient'!O5","v":"koniec kw …"}]
[null,null,"Aktywa trwałe",{"$f":"'3_Zał_F_dane fin i zał_klient'!D6","v":0},"Kapitały własne",null,{"$f":"D14-G7-G8-G11-G12-G13","v":0},null,"I. Przychody ogółem (II+III+IV+V), z tego",null,{"$f":"K6+K7+K8+K9","v":0},null,"Nalezności  ogółem , z tego",{"$f":"'3_Zał_F_dane fin i zał_klient'!N6","v":0},{"$f":"'3_Zał_F_dane fin i zał_klient'!O6","v":0}]
[null,null,"Zapasy",{"$f":"'3_Zał_F_dane fin i zał_klient'!D7","v":0},"w tym wynik netto",null,{"$f":"K20","v":0},null,"II. Przychody  z działalności gospodarczej , ze sprzedaży produktów, usług i towarów ogółem",null,{"$f":"'3_Zał_F_dane fin i zał_klient'!K7","v":0},null,"nieprzeterminowane",{"$f":"'3_Zał_F_dane fin i zał_klient'!N7","v":0},{"$f":"'3_Zał_F_dane fin i zał_klient'!O7","v":0}]
[null,null,"Należności",{"$f":"D8+D9","v":0},"Dług oprocentowany długoterminowy/ kredyty pożyczki , leasingi/",null,{"$f":"'3_Zał_F_dane fin i zał_klient'!G8","v":0},null,"III. Pozostałe przychody  operacyjne ",null,{"$f":"'3_Zał_F_dane fin i zał_klient'!K8","v":0},null,"przeterminowane , w tym ",{"$f":"'3_Zał_F_dane fin i zał_klient'!N8","v":0},{"$f":"'3_Zał_F_dane fin i zał_klient'!O8","v":0}]
[null,null," - od odbiorców /handlowe/",{"$f":"'3_Zał_F_dane fin i zał_klient'!D9","v":0},"Zobowiązania krótkoterminowe",null,{"$f":"G9+G10","v":0},null,"IV. Przychody finansowe",null,{"$f":"'3_Zał_F_dane fin i zał_klient'!K9","v":0},null,"90-120 dni",{"$f":"'3_Zał_F_dane fin i zał_klient'!N9","v":0},{"$f":"'3_Zał_F_dane fin i zał_klient'!O9","v":0}]
[null,null," - pozostałe należności",{"$f":"'3_Zał_F_dane fin i zał_klient'!D10","v":0}," - handlowe",null,{"$f":"'3_Zał_F_dane fin i zał_klient'!G10","v":0},null," V. Przychody z działalności  statutowej",null,{"$f":"'3_Zał_F_dane fin i zał_klient'!K10","v":0},null,"powyżej 120 dni",{"$f":"'3_Zał_F_dane fin i zał_klient'!N10","v":0},{"$f":"'3_Zał_F_dane fin i zał_klient'!O10","v":0}]
[null,null,"śr pieniężne",{"$f":"'3_Zał_F_dane fin i zał_klient'!D11","v":0}," - kredyty obrotowe",null,{"$f":"'3_Zał_F_dane fin i zał_klient'!G11","v":0},null,"VI. Koszty działalności  gospodarczej, w tym",null,{"$f":"K11+K12+K13+K14+K15+K16","v":0},null,"Zobowiązania bieżące  ogółem , z tego",{"$f":"'3_Zał_F_dane fin i zał_klient'!N11","v":0},{"$f":"'3_Zał_F_dane fin i zał_klient'!O11","v":0}]
[null,null,"inne składniki majątkowe",{"$f":"'3_Zał_F_dane fin i zał_klient'!D12","v":0},"Pozostałe zobowiązania",null,{"$f":"'3_Zał_F_dane fin i zał_klient'!G12","v":0},null,"amortyzacja",null,{"$f":"'3_Zał_F_dane fin i zał_klient'!K12","v":0},null,"nieprzeterminowane",{"$f":"'3_Zał_F_dane fin i zał_klient'!N12","v":0},{"$f":"'3_Zał_F_dane fin i zał_klient'!O12","v":0}]
[null,null,null,null,"Inne pasywa krótkoterminowe",null,{"$f":"'3_Zał_F_dane fin i zał_klient'!G13","v":0},null," koszty eksploatacyjne - np. czynsz,zużycie materiałów i energii, transport ,podatki , opłaty, inne",null,{"$f":"'3_Zał_F_dane fin i zał_klient'!K13","v":0},null,"przeterminowane , w tym ",{"$f":"'3_Zał_F_dane fin i zał_klient'!N13","v":0},{"$f":"'3_Zał_F_dane fin i zał_klient'!O13","v":0}]
[null,null,null,null,"Inne pasywa długoterminowe",null,{"$f":"'3_Zał_F_dane fin i zał_klient'!G14","v":0},null,"wynagrodzenia z narzutami",null,{"$f":"'3_Zał_F_dane fin i zał_klient'!K14","v":0},null,"90-120 dni",{"$f":"'3_Zał_F_dane fin i zał_klient'!N14","v":0},{"$f":"'3_Zał_F_dane fin i zał_klient'!O14","v":0}]
[null,null,"Razem Aktywa",{"$f":"D5+D6+D7+D10+D11","v":0},"Razem Pasywa",null,{"$f":"G5+G7+G8+G11+G12+G13","v":0},null,"koszt sprzedanych towarów , materiałów , usług",null,{"$f":"'3_Zał_F_dane fin i zał_klient'!K15","v":0},null,"powyżej 120 dni",{"$f":"'3_Zał_F_dane fin i zał_klient'!N15","v":0},{"$f":"'3_Zał_F_dane fin i zał_klient'!O15","v":0}]
[null,null,null,null,null,null,null,null,"Pozostałe koszty operacyjne ",null,{"$f":"'3_Zał_F_dane fin i zał_klient'!K16","v":0}]
[null,null,null,null,null,null,null,null,"Koszty finansowe",null,{"$f":"'3_Zał_F_dane fin i zał_klient'!K17","v":0}]
[null,null,null,null,null,null,null,null,"VII. Koszty realizacji zadań statutowych",null,{"$f":"'3_Zał_F_dane fin i zał_klient'!K18","v":0}]
[null,null,null,null,null,null,null,null,"Wynik na działaln nadzwyczajnej",null,{"$f":"'3_Zał_F_dane fin i zał_klient'!K19","v":0}]
[null,null,null,null,null,null,null,null,"Podatek dochodowy",null,{"$f":"'3_Zał_F_dane fin i zał_klient'!K20","v":0}]
[null,null,null,null,null,null,null,null,"Wynik netto",null,{"$f":"K5-K10-K17+K18-K19","v":0}]
[]
["II. ",null,"Planowane spłaty  rat kapitałowych dotychczasowych długoterminowych pożyczek / kredytów / leasingu finansowegp  ogółem"]
[null,null,null,null,{"$f":"'3_Zał_F_dane fin i zał_klient'!E24","v":"Kwartał 1"},{"$f":"'3_Zał_F_dane fin i zał_klient'!F24","v":"Kwartał 2"},{"$f":"'3_Zał_F_dane fin i zał_klient'!G24","v":"Kwartał 3"},{"$f":"'3_Zał_F_dane fin i zał_klient'!H24","v":"Kwartał 4"},{"$f":"'3_Zał_F_dane fin i zał_klient'!I24","v":2014},{"$f":"'3_Zał_F_dane fin i zał_klient'!J24","v":2015},{"$f":"'3_Zał_F_dane fin i zał_klient'!K24","v":2016},{"$f":"'3_Zał_F_dane fin i zał_klient'!L24","v":2017},{"$f":"'3_Zał_F_dane fin i zał_klient'!M24","v":2018},{"$f":"'3_Zał_F_dane fin i zał_klient'!N24","v":2019}]
[null,null,"Razem , z tego",null,{"$f":"SUM(E25:E27)","v":0},0,0,0,0,0,0,0,0,0]
[null,null,"kredyt 1",null,{"$f":"'3_Zał_F_dane fin i zał_klient'!E26","v":0},{"$f":"'3_Zał_F_dane fin i zał_klient'!F26","v":0},{"$f":"'3_Zał_F_dane fin i zał_klient'!G26","v":0},{"$f":"'3_Zał_F_dane fin i zał_klient'!H26","v":0},{"$f":"SUM(E25:H25)","v":0},{"$f":"'3_Zał_F_dane fin i zał_klient'!J26","v":0},{"$f":"'3_Zał_F_dane fin i zał_klient'!K26","v":0},{"$f":"'3_Zał_F_dane fin i zał_klient'!L26","v":0},{"$f":"'3_Zał_F_dane fin i zał_klient'!M26","v":0},{"$f":"'3_Zał_F_dane fin i zał_klient'!N26","v":0}]
[null,null,"kredyt 2",null,{"$f":"'3_Zał_F_dane fin i zał_klient'!E27","v":0},{"$f":"'3_Zał_F_dane fin i zał_klient'!F27","v":0},{"$f":"'3_Zał_F_dane fin i zał_klient'!G27","v":0},{"$f":"'3_Zał_F_dane fin i zał_klient'!H27","v":0},{"$f":"SUM(E26:H26)","v":0},{"$f":"'3_Zał_F_dane fin i zał_klient'!J27","v":0},{"$f":"'3_Zał_F_dane fin i zał_klient'!K27","v":0},{"$f":"'3_Zał_F_dane fin i zał_klient'!L27","v":0},{"$f":"'3_Zał_F_dane fin i zał_klient'!M27","v":0},{"$f":"'3_Zał_F_dane fin i zał_klient'!N27","v":0}]
[null,null,"pozostałe",null,{"$f":"'3_Zał_F_dane fin i zał_klient'!E28","v":0},{"$f":"'3_Zał_F_dane fin i zał_klient'!F28","v":0},{"$f":"'3_Zał_F_dane fin i zał_klient'!G28","v":0},{"$f":"'3_Zał_F_dane fin i zał_klient'!H28","v":0},{"$f":"SUM(E27:H27)","v":0},{"$f":"'3_Zał_F_dane fin i zał_klient'!J28","v":0},{"$f":"'3_Zał_F_dane fin i zał_klient'!K28","v":0},{"$f":"'3_Zał_F_dane fin i zał_klient'!L28","v":0},{"$f":"'3_Zał_F_dane fin i zał_klient'!M28","v":0},{"$f":"'3_Zał_F_dane fin i zał_klient'!N28","v":0}]
[null,null,"Stan kredytów  i pozyczek  dotychczasowych długoterminowych po planowanych spłatach"]
[null,null,"Razem , z tego",{"$f":"'3_Zał_F_dane fin i zał_klient'!D30","v":2013},{"$f":"E23","v":"Kwartał 1"},{"$f":"F23","v":"Kwartał 2"},"Kwartał 3","Kwartał 4",2014,2015,2016,2017,2018,2019]
[null,null,null,{"$f":"G7","v":0},{"$f":"SUM(E31:E33)","v":0},0,0,0,0,0,0,0,0,0]
[null,null,"kredyt 1",{"$f":"'3_Zał_F_dane fin i zał_klient'!D32","v":0},{"$f":"D31-E25","v":0},{"$f":"E31-F25","v":0},0,0,{"$f":"H31","v":0},{"$f":"I31-J25","v":0},0,0,0,0]
[null,null,"kredyt 2",{"$f":"'3_Zał_F_dane fin i zał_klient'!D33","v":0},{"$f":"D32-E26","v":0},{"$f":"E32-F26","v":0},0,0,{"$f":"H32","v":0},{"$f":"I32-J26","v":0},0,0,0,0]
[null,null,"pozostałe",{"$f":"'3_Zał_F_dane fin i zał_klient'!D34","v":0},{"$f":"D33-E27","v":0},{"$f":"E33-F27","v":0},0,0,0,{"$f":"I33-J27","v":0},0,0,0,0]
[null,null,"suma kontr",{"$f":"D33+D32+D31","v":0},{"$f":"E33+E32+E31","v":0},0,0,0,0,0,0,0,0,0]
[]
["III.",null,"Planowane spłaty  rat kapitałowych   pożyczek / kredytów / leasingu  zaciągniętych na nowe przedsięwzięcie ogółem"]
[null,null,"Razem , z tego",null,{"$f":"E29","v":"Kwartał 1"},{"$f":"F29","v":"Kwartał 2"},"Kwartał 3","Kwartał 4",2014,2015,2016,2017,2018,2019]
[null,null,null,null,{"$f":"SUM(E39:E41)","v":0},{"$f":"SUM(F39:F41)","v":0},0,0,0,0,0,0,0,0]
[null,null,"pożyczka  z ES",null,{"$f":"'3_Zał_F_dane fin i zał_klient'!E40","v":0},{"$f":"'3_Zał_F_dane fin i zał_klient'!F40","v":0},{"$f":"'3_Zał_F_dane fin i zał_klient'!G40","v":0},{"$f":"'3_Zał_F_dane fin i zał_klient'!H40","v":0},{"$f":"SUM(E39:H39)","v":0},{"$f":"'3_Zał_F_dane fin i zał_klient'!J40","v":0},{"$f":"'3_Zał_F_dane fin i zał_klient'!K40","v":0},{"$f":"'3_Zał_F_dane fin i zał_klient'!L40","v":0},{"$f":"'3_Zał_F_dane fin i zał_klient'!M40","v":0},{"$f":"'3_Zał_F_dane fin i zał_klient'!N40","v":0}]
[null,null,"inne","kredyt 1",{"$f":"'3_Zał_F_dane fin i zał_klient'!E41","v":0},{"$f":"'3_Zał_F_dane fin i zał_klient'!F41","v":0},{"$f":"'3_Zał_F_dane fin i zał_klient'!G41","v":0},{"$f":"'3_Zał_F_dane fin i zał_klient'!H41","v":0},{"$f":"SUM(E40:H40)","v":0},{"$f":"'3_Zał_F_dane fin i zał_klient'!J41","v":0},{"$f":"'3_Zał_F_dane fin i zał_klient'!K41","v":0},{"$f":"'3_Zał_F_dane fin i zał_klient'!L41","v":0},{"$f":"'3_Zał_F_dane fin i zał_klient'!M41","v":0},{"$f":"'3_Zał_F_dane fin i zał_klient'!N41","v":0}]
[null,null,"inne","kredyt 2",{"$f":"'3_Zał_F_dane fin i zał_klient'!E42","v":0},{"$f":"'3_Zał_F_dane fin i zał_klient'!F42","v":0},{"$f":"'3_Zał_F_dane fin i zał_klient'!G42","v":0},{"$f":"'3_Zał_F_dane fin i zał_klient'!H42","v":0},{"$f":"SUM(E41:H41)","v":0},{"$f":"'3_Zał_F_dane fin i zał_klient'!J42","v":0},{"$f":"'3_Zał_F_dane fin i zał_klient'!K42","v":0},{"$f":"'3_Zał_F_dane fin i zał_klient'!L42","v":0},{"$f":"'3_Zał_F_dane fin i zał_klient'!M42","v":0},{"$f":"'3_Zał_F_dane fin i zał_klient'!N42","v":0}]
[null,null,"Stan planowanych kredytów  i pozyczek  po planowanych spłatach"]
[null,null,"Razem , z tego",null,{"$f":"E37","v":"Kwartał 1"},{"$f":"F37","v":"Kwartał 2"},"Kwartał 3","Kwartał 4",2014,2015,2016,2017,2018,2019]
[null,null,null,null,{"$f":"SUM(E45:E46)","v":0},0,0,0,0,0,0,0,0,0]
[null,null,"pożyczka  z ES",null,{"$f":"'1_wniosek'!E161-E39","v":0},{"$f":"'1_wniosek'!F161-F39+E45","v":0},{"$f":"'1_wniosek'!G161-G39+F45","v":0},{"$f":"'1_wniosek'!H161-H39+G45","v":0},{"$f":"H45","v":0},{"$f":"'1_wniosek'!J161-J39+I45","v":0},{"$f":"'1_wniosek'!K161-K39+J45","v":0},{"$f":"'1_wniosek'!L161-L39+K45","v":0},{"$f":"'1_wniosek'!M161-M39+L45","v":0},{"$f":"'1_wniosek'!N161-N39+M45","v":0}]
[null,null,"kredyt 1",null,{"$f":"'1_wniosek'!E166-E40","v":0},{"$f":"'1_wniosek'!F166-F40+E46","v":0},{"$f":"'1_wniosek'!G166-G40+F46","v":0},{"$f":"'1_wniosek'!H166-H40+G46","v":0},{"$f":"H46","v":0},{"$f":"'1_wniosek'!J166-J40+I46","v":0},{"$f":"'1_wniosek'!K166-K40+J46","v":0},{"$f":"'1_wniosek'!L166-L40+K46","v":0},{"$f":"'1_wniosek'!M166-M40+L46","v":0},{"$f":"'1_wniosek'!N166-N40+M46","v":0}]
[null,null,"kredyt 2",null,{"$f":"'1_wniosek'!E167-E41","v":0},{"$f":"'1_wniosek'!F167-F41+E47","v":0},{"$f":"'1_wniosek'!G167-G41+F47","v":0},{"$f":"'1_wniosek'!H167-H41+G47","v":0},{"$f":"H47","v":0},{"$f":"'1_wniosek'!J167-J41+I47","v":0},{"$f":"'1_wniosek'!K167-K41+J47","v":0},{"$f":"'1_wniosek'!L167-L41+K47","v":0},{"$f":"'1_wniosek'!M167-M41+L47","v":0},{"$f":"'1_wniosek'!N167-N41+M47","v":0}]
[]
[null,null,null,{"$f":"D30","v":0},{"$f":"E44+E30","v":0},{"$f":"F44+F30","v":0},0,0,0,0,0,0,0,0,"oprocentowanie"]
[null,null,"k finansowe pożyczki es",null,{"$f":"(E45+D45)/2*$O$50","v":0},0,0,{"$f":"(H45+G45)/2*$O$50","v":0},{"$f":"SUM(E50:H50)","v":0},0,0,0,0,{"$f":"(N45+M45)/2*$O$50","v":0},{"$f":"'1_wniosek'!T9","v":0}]
[null,null,"k finansowe kred 1",null,{"$f":"(E46+D46)/2*'1_wniosek'!$D$166","v":0},{"$f":"(F46+E46)/2*'1_wniosek'!$D$166","v":0},{"$f":"(G46+F46)/2*'1_wniosek'!$D$166","v":0},{"$f":"(H46+G46)/2*'1_wniosek'!$D$166","v":0},{"$f":"SUM(E51:H51)","v":0},{"$f":"(J46+I46)/2*'1_wniosek'!$D$166","v":0},{"$f":"(K46+J46)/2*'1_wniosek'!$D$166","v":0},{"$f":"(L46+K46)/2*'1_wniosek'!$D$166","v":0},{"$f":"(M46+L46)/2*'1_wniosek'!$D$166","v":0},{"$f":"(N46+M46)/2*'1_wniosek'!$D$166","v":0},{"$f":"'1_wniosek'!D166","v":0}]
[null,null,"k finansowe kred 2",null,{"$f":"(E47+D47)/2*'1_wniosek'!$D$167","v":0},{"$f":"(F47+E47)/2*'1_wniosek'!$D$167","v":0},{"$f":"(G47+F47)/2*'1_wniosek'!$D$167","v":0},{"$f":"(H47+G47)/2*'1_wniosek'!$D$167","v":0},0,{"$f":"(J47+I47)/2*'1_wniosek'!$D$167","v":0},{"$f":"(K47+J47)/2*'1_wniosek'!$D$167","v":0},{"$f":"(L47+K47)/2*'1_wniosek'!$D$167","v":0},{"$f":"(M47+L47)/2*'1_wniosek'!$D$167","v":0},{"$f":"(N47+M47)/2*'1_wniosek'!$D$167","v":0},{"$f":"'1_wniosek'!D167","v":0}]
[]
[null,null,null,null,null,null,null,null,null,{"$f":"J50+J51+J52","v":0},{"$f":"K50+K51+K52","v":0},0,0,0]

{"sheet":"7","index":12,"n_rows":73,"n_cols":16,"rows_kept":73,"cut":false,"hidden":true,"merged":[[27,1,27,2],[1,1,1,3],[3,2,3,3],[4,2,4,3],[5,2,5,3],[6,2,6,3],[7,2,7,3],[15,2,15,3],[16,2,16,3],[17,2,17,3],[18,2,18,3],[20,2,20,3],[9,2,9,3],[39,1,39,12],[54,1,54,2],[53,1,53,12],[40,1,40,2],[33,1,33,2]]}
[7]
[null,"Założenia dotyczące dotychczasowej działalności  ( w tys. zł.)",null,null,"1 kw","2 kw","3 kw","4 kw","razem  1 rok","2 rok","3 rok","4 rok","5 rok","5 rok"]
[null,"1.","Planowane przychody ogółem, z tego:",null,{"$f":"E4","v":0},{"$f":"F4","v":0},0,0,0,0,0,0,0,0,"popr 30.09"]
[null,"1a.","Przychody ze sprzedaży",null,{"$f":"'1_wniosek'!E188-'1_wniosek'!E190","v":0},{"$f":"'1_wniosek'!F188-'1_wniosek'!F190","v":0},{"$f":"'1_wniosek'!G188-'1_wniosek'!G190","v":0},{"$f":"'1_wniosek'!H188-'1_wniosek'!H190","v":0},{"$f":"'1_wniosek'!I188-'1_wniosek'!I190","v":0},{"$f":"'1_wniosek'!J188-'1_wniosek'!J190","v":0},{"$f":"'1_wniosek'!K188-'1_wniosek'!K190","v":0},{"$f":"'1_wniosek'!L188-'1_wniosek'!L190","v":0},{"$f":"'1_wniosek'!M188-'1_wniosek'!M190","v":0},{"$f":"'1_wniosek'!N188-'1_wniosek'!N190","v":0},"popr 13.10"]
[null,"1b.","Pozostałe przychody operacyjne - razem,  z tego",null,{"$f":"E6-E7+E8","v":{"$error":"#REF!"}},{"$f":"F6-F7+F8","v":{"$error":"#REF!"}},{"$error":"#REF!"},{"$error":"#REF!"},{"$f":"SUM(E5:H5)","v":{"$error":"#REF!"}},{"$f":"J6-J7+J8","v":{"$error":"#REF!"}},{"$f":"K6-K7+K8","v":{"$error":"#REF!"}},{"$f":"L6-L7+L8","v":{"$error":"#REF!"}},{"$f":"M6-M7+M8","v":{"$error":"#REF!"}},{"$error":"#REF!"}]
[null,"1b.1.","planowana wartość sprzedaży  aktywów  trwałych",null,{"$f":"'1_wniosek'!#REF!","v":{"$error":"#REF!"}},{"$f":"'1_wniosek'!#REF!","v":{"$error":"#REF!"}},{"$f":"'1_wniosek'!#REF!","v":{"$error":"#REF!"}},{"$f":"'1_wniosek'!#REF!","v":{"$error":"#REF!"}},{"$f":"'1_wniosek'!#REF!","v":{"$error":"#REF!"}},{"$f":"'1_wniosek'!#REF!","v":{"$error":"#REF!"}},{"$f":"'1_wniosek'!#REF!","v":{"$error":"#REF!"}},{"$f":"'1_wniosek'!#REF!","v":{"$error":"#REF!"}},{"$f":"'1_wniosek'!#REF!","v":{"$error":"#REF!"}},{"$f":"'1_wniosek'!#REF!","v":{"$error":"#REF!"}}]
[null,"1b.2. ","dotychczasowe umorzenie sprzedanych aktywów trwałych",null,{"$f":"'1_wniosek'!#REF!","v":{"$error":"#REF!"}},{"$f":"'1_wniosek'!#REF!","v":{"$error":"#REF!"}},{"$f":"'1_wniosek'!#REF!","v":{"$error":"#REF!"}},{"$f":"'1_wniosek'!#REF!","v":{"$error":"#REF!"}},{"$f":"'1_wniosek'!#REF!","v":{"$error":"#REF!"}},{"$f":"'1_wniosek'!#REF!","v":{"$error":"#REF!"}},{"$f":"'1_wniosek'!#REF!","v":{"$error":"#REF!"}},{"$f":"'1_wniosek'!#REF!","v":{"$error":"#REF!"}},{"$f":"'1_wniosek'!#REF!","v":{"$error":"#REF!"}},{"$f":"'1_wniosek'!#REF!","v":{"$error":"#REF!"}}]
[null,"1b.3.","inne, pozostałe przychody operacyjne",null,{"$f":"'1_wniosek'!#REF!","v":{"$error":"#REF!"}},{"$f":"'1_wniosek'!#REF!","v":{"$error":"#REF!"}},{"$f":"'1_wniosek'!#REF!","v":{"$error":"#REF!"}},{"$f":"'1_wniosek'!#REF!","v":{"$error":"#REF!"}},{"$f":"'1_wniosek'!#REF!","v":{"$error":"#REF!"}},{"$f":"'1_wniosek'!#REF!","v":{"$error":"#REF!"}},{"$f":"'1_wniosek'!#REF!","v":{"$error":"#REF!"}},{"$f":"'1_wniosek'!#REF!","v":{"$error":"#REF!"}},{"$f":"'1_wniosek'!#REF!","v":{"$error":"#REF!"}},{"$f":"'1_wniosek'!#REF!","v":{"$error":"#REF!"}}]
[null,"1c.","Przychody finansowe",null,{"$f":"'1_wniosek'!E193","v":0},{"$f":"'1_wniosek'!F193","v":0},{"$f":"'1_wniosek'!G193","v":0},{"$f":"'1_wniosek'!H193","v":0},{"$f":"'1_wniosek'!I193","v":0},{"$f":"'1_wniosek'!J193","v":0},{"$f":"'1_wniosek'!K193","v":0},{"$f":"'1_wniosek'!L193","v":0},{"$f":"'1_wniosek'!M193","v":0},{"$f":"'1_wniosek'!N193","v":0}]
[null,null," V. Przychody z działalności  statutowej",null,{"$f":"'1_wniosek'!E194","v":0},{"$f":"'1_wniosek'!F194","v":0},{"$f":"'1_wniosek'!G194","v":0},{"$f":"'1_wniosek'!H194","v":0},{"$f":"'1_wniosek'!I194","v":0},{"$f":"'1_wniosek'!J194","v":0},{"$f":"'1_wniosek'!K194","v":0},{"$f":"'1_wniosek'!L194","v":0},{"$f":"'1_wniosek'!M194","v":0},{"$f":"'1_wniosek'!N194","v":0}]
[]
[]
[]
[]
[null,null,null,null,null,null,null,null,null,null,null,null,null,null,null,"przepływy nie uwzględniają"]
[null,"2.a","Planowane koszty dotychczasowej działalności operacyjnej ogółem,  z tego",null,{"$f":"E17+E18+E19+E20+E21","v":0},{"$f":"F17+F18+F19+F20+F21","v":0},0,0,0,0,0,0,0,0,"popr30.09.2013"]
[null,"2a.1","amortyzacja",null,{"$f":"'1_wniosek'!E198","v":0},{"$f":"'1_wniosek'!F198","v":0},{"$f":"'1_wniosek'!G198","v":0},{"$f":"'1_wniosek'!H198","v":0},{"$f":"'1_wniosek'!I198","v":0},{"$f":"'1_wniosek'!J198","v":0},{"$f":"'1_wniosek'!K198","v":0},{"$f":"'1_wniosek'!L198","v":0},{"$f":"'1_wniosek'!M198","v":0},{"$f":"'1_wniosek'!N198","v":0}]
[null,"2a.2","pozostałe   koszty działalności",null,{"$f":"'1_wniosek'!E200+'1_wniosek'!E201+'1_wniosek'!E202","v":0},{"$f":"'1_wniosek'!F200+'1_wniosek'!F201+'1_wniosek'!F202","v":0},{"$f":"'1_wniosek'!G200+'1_wniosek'!G201+'1_wniosek'!G202","v":0},{"$f":"'1_wniosek'!H200+'1_wniosek'!H201+'1_wniosek'!H202","v":0},{"$f":"'1_wniosek'!I200+'1_wniosek'!I201+'1_wniosek'!I202","v":0},{"$f":"'1_wniosek'!J200+'1_wniosek'!J201+'1_wniosek'!J202","v":0},{"$f":"'1_wniosek'!K200+'1_wniosek'!K201+'1_wniosek'!K202","v":0},{"$f":"'1_wniosek'!L200+'1_wniosek'!L201+'1_wniosek'!L202","v":0},{"$f":"'1_wniosek'!M200+'1_wniosek'!M201+'1_wniosek'!M202","v":0},{"$f":"'1_wniosek'!N200+'1_wniosek'!N201+'1_wniosek'!N202","v":0}]
[null,"2b.","pozostałe koszty operacyjne",null,{"$f":"'1_wniosek'!E206","v":0},{"$f":"'1_wniosek'!F206","v":0},{"$f":"'1_wniosek'!G206","v":0},{"$f":"'1_wniosek'!H206","v":0},{"$f":"'1_wniosek'!I206","v":0},{"$f":"'1_wniosek'!J206","v":0},{"$f":"'1_wniosek'!K206","v":0},{"$f":"'1_wniosek'!L206","v":0},{"$f":"'1_wniosek'!M206","v":0},{"$f":"'1_wniosek'!N206","v":0}]
[null,"2c.","planowane koszty finansowe dotyczące dotychczas zobow",null,{"$f":"'1_wniosek'!E204","v":0},{"$f":"'1_wniosek'!F204","v":0},{"$f":"'1_wniosek'!G204","v":0},{"$f":"'1_wniosek'!H204","v":0},{"$f":"'1_wniosek'!I204","v":0},{"$f":"'1_wniosek'!J204","v":0},{"$f":"'1_wniosek'!K204","v":0},{"$f":"'1_wniosek'!L204","v":0},{"$f":"'1_wniosek'!M204","v":0},{"$f":"'1_wniosek'!N204","v":0}]
[null,"3.","VII. Koszty realizacji zadań statutowych",null,{"$f":"'1_wniosek'!E207","v":0},{"$f":"'1_wniosek'!F207","v":0},{"$f":"'1_wniosek'!G207","v":0},{"$f":"'1_wniosek'!H207","v":0},{"$f":"'1_wniosek'!I207","v":0},{"$f":"'1_wniosek'!J207","v":0},{"$f":"'1_wniosek'!K207","v":0},{"$f":"'1_wniosek'!L207","v":0},{"$f":"'1_wniosek'!M207","v":0},{"$f":"'1_wniosek'!N207","v":0}]
[]
[null,"4.","Planowane spłaty  rat kapitałowych dotychczasowych  pożyczek / kredytów / leasingu  ogółem",null,{"$f":"SUM(E24:E26)","v":0},0,0,0,0,0,0,0,0,{"$f":"SUM(N24:N26)","v":0}]
[null,"4.a","kredyt 1",null,{"$f":"'3_Zał_F_TISE'!E24","v":0},{"$f":"'3_Zał_F_TISE'!F24","v":0},{"$f":"'3_Zał_F_TISE'!G24","v":0},{"$f":"'3_Zał_F_TISE'!H24","v":0},{"$f":"'3_Zał_F_TISE'!I24","v":0},{"$f":"'3_Zał_F_TISE'!J24","v":0},{"$f":"'3_Zał_F_TISE'!K24","v":0},{"$f":"'3_Zał_F_TISE'!L24","v":0},{"$f":"'3_Zał_F_TISE'!M24","v":0},{"$f":"'3_Zał_F_TISE'!N24","v":0}]
[null,"4.b",null,null,null,null,null,null,{"$f":"SUM(E25:H25)","v":0}]
[null,"4.c",null,null,null,null,null,null,{"$f":"SUM(E26:H26)","v":0}]
[]
[null,"Założenia dotyczące kapitału obrotowego w dotychczasowej działalności",null,"rok ubiegły","1 kw 1 rok","2 kw 1 rok","3 kw 1 rok","4 kw 1 rok","razem  1 rok","2 rok","3 rok","4 rok","5 rok","5 rok"]
[null,"5.","Planowane zmiany kapitału obrotowego - w dniach",{"$f":"D31-D30-D32","v":{"$error":"#DIV/0!"}},{"$f":"E31-E30-E32","v":0},{"$f":"F31-F30-F32","v":0},0,0,0,0,0,0,0,{"$f":"N31-N30-N32","v":0}]
[null,"5a.","Planowane średnie terminy płatności  przez odbiorców w dniach",{"$f":"'3_Zał_F_TISE'!D8*360/'3_Zał_F_TISE'!K5","v":{"$error":"#DIV/0!"}},{"$f":"'4_założenia KO'!D14","v":0},{"$f":"'4_założenia KO'!E14","v":0},{"$f":"'4_założenia KO'!F14","v":0},{"$f":"'4_założenia KO'!G14","v":0},{"$f":"'4_założenia KO'!H14","v":0},{"$f":"'4_założenia KO'!I14","v":0},{"$f":"'4_założenia KO'!J14","v":0},{"$f":"'4_założenia KO'!K14","v":0},{"$f":"'4_założenia KO'!L14","v":0},{"$f":"'4_założenia KO'!M14","v":0},"poprawka 22.09.2013 przychody ogółem a nie z działalności gospodarczej"]
[null,"5b.","Planowane średnie terminy płatności  za bieżace zobowiązania dla dostawców w dniach",{"$f":"'3_Zał_F_TISE'!G9*360/'3_Zał_F_TISE'!K5","v":{"$error":"#DIV/0!"}},{"$f":"'4_założenia KO'!D15","v":0},{"$f":"'4_założenia KO'!E15","v":0},{"$f":"'4_założenia KO'!F15","v":0},{"$f":"'4_założenia KO'!G15","v":0},{"$f":"'4_założenia KO'!H15","v":0},{"$f":"'4_założenia KO'!I15","v":0},{"$f":"'4_założenia KO'!J15","v":0},{"$f":"'4_założenia KO'!K15","v":0},{"$f":"'4_założenia KO'!L15","v":0},{"$f":"'4_założenia KO'!M15","v":0}]
[null,"5c.","Planowana średnia rotacja zapasów w magazynie - w dniach",{"$f":"'3_Zał_F_TISE'!D6*360/'3_Zał_F_TISE'!K5","v":{"$error":"#DIV/0!"}},{"$f":"'4_założenia KO'!D16","v":0},{"$f":"'4_założenia KO'!E16","v":0},{"$f":"'4_założenia KO'!F16","v":0},{"$f":"'4_założenia KO'!G16","v":0},{"$f":"'4_założenia KO'!H16","v":0},{"$f":"'4_założenia KO'!I16","v":0},{"$f":"'4_założenia KO'!J16","v":0},{"$f":"'4_założenia KO'!K16","v":0},{"$f":"'4_założenia KO'!L16","v":0},{"$f":"'4_założenia KO'!M16","v":0}]
[]
[null,"Założenia dotyczące zmian elementów uproszczonego  bilansu sporządzonego przez wnioskodawcę",null,"rok ubiegły","1 kw 1 rok","2 kw 1 rok","3 kw 1 rok","4 kw 1 rok","razem  1 rok","2 rok","3 rok","4 rok","5 rok","5 rok"]
[null,"6.","Planowane stany\" innych  składników  majątkowych \" z uproszczonego bilansu",{"$f":"'3_Zał_F_TISE'!D11","v":0},{"$f":"'4_założenia KO'!D20","v":0},{"$f":"'4_założenia KO'!E20","v":0},{"$f":"'4_założenia KO'!F20","v":0},{"$f":"'4_założenia KO'!G20","v":0},{"$f":"'4_założenia KO'!H20","v":0},{"$f":"'4_założenia KO'!I20","v":0},{"$f":"'4_założenia KO'!J20","v":0},{"$f":"'4_założenia KO'!K20","v":0},{"$f":"'4_założenia KO'!L20","v":0},{"$f":"'4_założenia KO'!M20","v":0}]
[null,"7. ","Planowane stany \"Pozostałych zobowiązań\" z uproszczonego bilansu",{"$f":"'3_Zał_F_TISE'!G11","v":0},{"$f":"'4_założenia KO'!D21","v":0},{"$f":"'4_założenia KO'!E21","v":0},{"$f":"'4_założenia KO'!F21","v":0},{"$f":"'4_założenia KO'!G21","v":0},{"$f":"'4_założenia KO'!H21","v":0},{"$f":"'4_założenia KO'!I21","v":0},{"$f":"'4_założenia KO'!J21","v":0},{"$f":"'4_założenia KO'!K21","v":0},{"$f":"'4_założenia KO'!L21","v":0},{"$f":"'4_założenia KO'!M21","v":0}]
[null,"8.","Planowane stany \"Innych pasywów kr\" z uproszczonego bilansu",{"$f":"'3_Zał_F_TISE'!G12","v":0},{"$f":"'4_założenia KO'!D22","v":0},{"$f":"'4_założenia KO'!E22","v":0},{"$f":"'4_założenia KO'!F22","v":0},{"$f":"'4_założenia KO'!G22","v":0},{"$f":"'4_założenia KO'!H22","v":0},{"$f":"'4_założenia KO'!I22","v":0},{"$f":"'4_założenia KO'!J22","v":0},{"$f":"'4_założenia KO'!K22","v":0},{"$f":"'4_założenia KO'!L22","v":0},{"$f":"'4_założenia KO'!M22","v":0}]
[null,"9.","Planowane stany \"Innych pasywów długoterm\" z uproszczonego bilansu",{"$f":"'3_Zał_F_TISE'!G13","v":0},{"$f":"'4_założenia KO'!D23","v":0},{"$f":"'4_założenia KO'!E23","v":0},{"$f":"'4_założenia KO'!F23","v":0},{"$f":"'4_założenia KO'!G23","v":0},{"$f":"'4_założenia KO'!H23","v":0},{"$f":"'4_założenia KO'!I23","v":0},{"$f":"'4_założenia KO'!J23","v":0},{"$f":"'4_założenia KO'!K23","v":0},{"$f":"'4_założenia KO'!L23","v":0},{"$f":"'4_założenia KO'!M23","v":0}]
[]
[null,"Tabela 2a Kalkulacja przepływów pieniężnych z dotychczasowej  działalności Wnioskodawcy"]
[null,"Przepływy pieniężne z dotychczasowej działalności w tys. zł.",null,null,"1 kw","2 kw","3 kw","4 kw","razem  1 rok","2 rok","3 rok","4 rok","5 rok","5 rok"]
[null,"-","Nakłady inwestycyjne"]
[null,"+","Przychody",null,{"$f":"E3","v":0},0,{"$f":"G3","v":0},{"$f":"H3","v":0},0,0,0,0,0,0]
[null,"-","Koszty działalności operacyjnej / w tym również amortyzacja/",null,{"$f":"E16","v":0},0,0,0,0,0,0,0,0,{"$f":"N16","v":0}]
[null,"-","Koszty finansowe",null,{"$f":"E20","v":0},0,0,0,0,0,0,0,0,{"$f":"N20","v":0}]
[null,"-","Podatek dochodowy",null,{"$f":"IF((E43-(E44+E45))<=0,0,(E43-(E44+E45))*19%)","v":0},{"$f":"IF((F43-(F44+F45))<=0,0,(F43-(F44+F45))*19%)","v":0},0,0,0,0,0,0,0,{"$f":"IF((N43-(N44+N45))<=0,0,(N43-(N44+N45))*19%)","v":0}]
[null,"+","Amortyzacja",null,{"$f":"E17","v":0},0,0,0,0,0,0,0,0,{"$f":"N17","v":0}]
[null,"\"-/+\"","Zmiany kapitału obrotowego",null,{"$f":"E66-D66","v":0},{"$f":"F66-E66","v":0},{"$f":"G66-F66","v":0},0,0,0,0,0,0,0]
[]
[null,"+","Zaciągnięcia pożyczki"]
[null,"-","Spłata pożyczki",null,{"$f":"E24","v":0},0,0,0,0,0,0,0,0,{"$f":"N24","v":0}]
[null,"=","Przepływy pieniężne z przedsięwzięcia   (FCFEI)",null,{"$f":"-E42+E43-E44-E45-E46+E47+E48+E50-E51","v":0},{"$f":"-F42+F43-F44-F45-F46+F47+F48+F50-F51","v":0},0,0,0,0,0,0,0,{"$f":"-N42+N43-N44-N45-N46+N47+N48+N50-N51","v":0}]
[]
[null,"Tabela 2 Kalkulacja przepływów pieniężnych z całej  działalności Wnioskodawcy"]
[null,"Przepływy pieniężne z działalności  całejw tys. zł.",null,null,"1 kw","2 kw","3 kw","4 kw","razem  1 rok","2 rok","3 rok","4 rok","5 rok","5 rok"]
[null,"-","Nakłady inwestycyjne",null,{"$f":"E42+'5'!E56","v":0},{"$f":"F42+'5'!F56","v":0},{"$f":"G42+'5'!G56","v":0},{"$f":"H42+'5'!H56","v":0},{"$f":"I42+'5'!I56","v":0},{"$f":"J42+'5'!J56","v":0},{"$f":"K42+'5'!K56","v":0},{"$f":"L42+'5'!L56","v":0},{"$f":"M42+'5'!M56","v":0},{"$f":"N42+'5'!N56","v":0}]
[null,"+","Przychody",null,{"$f":"E43+'5'!E57","v":0},{"$f":"F43+'5'!F57","v":0},{"$f":"G43+'5'!G57","v":0},{"$f":"H43+'5'!H57","v":0},{"$f":"I43+'5'!I57","v":0},{"$f":"J43+'5'!J57","v":0},{"$f":"K43+'5'!K57","v":0},{"$f":"L43+'5'!L57","v":0},{"$f":"M43+'5'!M57","v":0},{"$f":"N43+'5'!N57","v":0}]
[null,"-","Koszty działalności operacyjnej / w tym również amortyzacja/",null,{"$f":"E44+'5'!E58","v":0},{"$f":"F44+'5'!F58","v":0},{"$f":"G44+'5'!G58","v":0},{"$f":"H44+'5'!H58","v":0},{"$f":"I44+'5'!I58","v":0},{"$f":"J44+'5'!J58","v":0},{"$f":"K44+'5'!K58","v":0},{"$f":"L44+'5'!L58","v":0},{"$f":"M44+'5'!M58","v":0},{"$f":"N44+'5'!N58","v":0}]
[null,"-","Koszty finansowe",null,{"$f":"E45+'5'!E59","v":0},{"$f":"F45+'5'!F59","v":0},{"$f":"G45+'5'!G59","v":0},{"$f":"H45+'5'!H59","v":0},{"$f":"I45+'5'!I59","v":0},{"$f":"J45+'5'!J59","v":0},{"$f":"K45+'5'!K59","v":0},{"$f":"L45+'5'!L59","v":0},{"$f":"M45+'5'!M59","v":0},{"$f":"N45+'5'!N59","v":0}]
[null,"-","Podatek dochodowy",null,{"$f":"'5_projekcje'!E42","v":0},{"$f":"'5_projekcje'!F42","v":0},{"$f":"'5_projekcje'!G42","v":0},{"$f":"'5_projekcje'!H42","v":0},{"$f":"'5_projekcje'!I42","v":0},{"$f":"'5_projekcje'!J42","v":0},{"$f":"'5_projekcje'!K42","v":0},{"$f":"'5_projekcje'!L42","v":0},{"$f":"'5_projekcje'!M42","v":0},{"$f":"'5_projekcje'!N42","v":0}]
[null,"+","Amortyzacja",null,{"$f":"E47+'5'!E61","v":0},{"$f":"F47+'5'!F61","v":0},{"$f":"G47+'5'!G61","v":0},{"$f":"H47+'5'!H61","v":0},{"$f":"I47+'5'!I61","v":0},{"$f":"J47+'5'!J61","v":0},{"$f":"K47+'5'!K61","v":0},{"$f":"L47+'5'!L61","v":0},{"$f":"M47+'5'!M61","v":0},{"$f":"N47+'5'!N61","v":0}]
[null,"\"-/+\"","Zmiany kapitału obrotowego",null,{"$f":"E48+'5'!E62","v":0},{"$f":"F48+'5'!F62","v":0},{"$f":"G48+'5'!G62","v":0},{"$f":"H48+'5'!H62","v":0},{"$f":"I48+'5'!I62","v":0},{"$f":"J48+'5'!J62","v":0},{"$f":"K48+'5'!K62","v":0},{"$f":"L48+'5'!L62","v":0},{"$f":"M48+'5'!M62","v":0},{"$f":"N48+'5'!N62","v":0}]
[null,"+","Zaciągnięcia pożyczki",null,{"$f":"E50+'5'!E63","v":0},{"$f":"F50+'5'!F63","v":0},{"$f":"G50+'5'!G63","v":0},{"$f":"H50+'5'!H63","v":0},{"$f":"I50+'5'!I63","v":0},{"$f":"J50+'5'!J63","v":0},{"$f":"K50+'5'!K63","v":0},{"$f":"L50+'5'!L63","v":0},{"$f":"M50+'5'!M63","v":0},{"$f":"N50+'5'!N63","v":0}]
[null,"-","Spłata pożyczki",null,{"$f":"E51+'5'!E64","v":0},{"$f":"F51+'5'!F64","v":0},{"$f":"G51+'5'!G64","v":0},{"$f":"H51+'5'!H64","v":0},{"$f":"I51+'5'!I64","v":0},{"$f":"J51+'5'!J64","v":0},{"$f":"K51+'5'!K64","v":0},{"$f":"L51+'5'!L64","v":0},{"$f":"M51+'5'!M64","v":0},{"$f":"N51+'5'!N64","v":0}]
[null,"=","Przepływy pieniężne z przedsięwzięcia   (FCFEI)",null,{"$f":"-E56+E57-E58-E59-E60+E61+E62+E63-E64","v":0},{"$f":"-F56+F57-F58-F59-F60+F61+F62+F63-F64","v":0},0,0,0,0,0,0,0,{"$f":"-N56+N57-N58-N59-N60+N61+N62+N63-N64","v":0}]
[null,null,"dotychczasowa działalność",{"$f":"D68-D67-D69","v":0},{"$f":"IF('5_projekcje'!R3=0,D66,E68-E67-E69)","v":0},{"$f":"IF('5_projekcje'!S3=0,E66,F68-F67-F69)","v":0},{"$f":"IF('5_projekcje'!T3=0,F66,G68-G67-G69)","v":0},{"$f":"IF('5_projekcje'!U3=0,G66,H68-H67-H69)","v":0},{"$f":"I68-I67-I69","v":0},0,0,0,0,{"$f":"N68-N67-N69","v":0},"popr -22.09.2013"]
[null,null,"nalezności handlowe",{"$f":"'3_Zał_F_TISE'!D8","v":0},{"$f":"IFERROR(IF('5_projekcje'!R3=0,D67,(E30*E3/'5'!E3)),0)","v":0},{"$f":"IFERROR(IF('5_projekcje'!S3=0,E67,(F30*F3/'5'!F3)),0)","v":0},{"$f":"IFERROR(IF('5_projekcje'!T3=0,F67,(G30*G3/'5'!G3)),0)","v":0},{"$f":"IFERROR(IF('5_projekcje'!U3=0,G67,(H30*H3/'5'!H3)),0)","v":0},{"$f":"IFERROR(I30*I3/'5'!I3,0)","v":0},{"$f":"IFERROR(J30*J3/'5'!J3,0)","v":0},{"$f":"IFERROR(K30*K3/'5'!K3,0)","v":0},{"$f":"IFERROR(L30*L3/'5'!L3,0)","v":0},{"$f":"IFERROR(M30*M3/'5'!M3,0)","v":0},{"$f":"IFERROR(N30*N3/'5'!N3,0)","v":0}]
[null,null,"zobow handlowe",{"$f":"'3_Zał_F_TISE'!G9","v":0},{"$f":"IFERROR(IF('5_projekcje'!R3=0,D68,(E31*E3/'5'!E3)),0)","v":0},{"$f":"IFERROR(IF('5_projekcje'!S3=0,E68,(F31*F3/'5'!F3)),0)","v":0},{"$f":"IFERROR(IF('5_projekcje'!T3=0,F68,(G31*G3/'5'!G3)),0)","v":0},{"$f":"IFERROR(IF('5_projekcje'!U3=0,G68,(H31*H3/'5'!H3)),0)","v":0},{"$f":"IFERROR(I31*I3/'5'!I3,0)","v":0},{"$f":"IFERROR(J31*J3/'5'!J3,0)","v":0},{"$f":"IFERROR(K31*K3/'5'!K3,0)","v":0},{"$f":"IFERROR(L31*L3/'5'!L3,0)","v":0},{"$f":"IFERROR(M31*M3/'5'!M3,0)","v":0},{"$f":"IFERROR(N31*N3/'5'!N3,0)","v":0},"popr dp przych ogółem-22.09.2013"]
[null,null,"zapasy z dział dotychczasowej",{"$f":"'3_Zał_F_TISE'!D6","v":0},{"$f":"IFERROR(IF('5_projekcje'!R3=0,D69,(E32*E3/'5'!E3)),0)","v":0},{"$f":"IFERROR(IF('5_projekcje'!S3=0,E69,(F32*F3/'5'!F3)),0)","v":0},{"$f":"IFERROR(IF('5_projekcje'!T3=0,F69,(G32*G3/'5'!G3)),0)","v":0},{"$f":"IFERROR(IF('5_projekcje'!U3=0,G69,(H32*H3/'5'!H3)),0)","v":0},{"$f":"IFERROR(I32*I3/'5'!I3,0)","v":0},{"$f":"IFERROR(J32*J3/'5'!J3,0)","v":0},{"$f":"IFERROR(K32*K3/'5'!K3,0)","v":0},{"$f":"IFERROR(L32*L3/'5'!L3,0)","v":0},{"$f":"IFERROR(M32*M3/'5'!M3,0)","v":0},{"$f":"IFERROR(N32*N3/'5'!N3,0)","v":0}]
[null,null,"cała działalność",{"$f":"D72-D71-D73","v":0},{"$f":"E72-E71-E73","v":0},{"$f":"F72-F71-F73","v":0},0,0,0,0,0,0,0,{"$f":"N72-N71-N73","v":0}]
[null,null,"nalezności ",30,{"$f":"E67+'5'!E67","v":0},{"$f":"F67+'5'!F67","v":0},{"$f":"G67+'5'!G67","v":0},{"$f":"H67+'5'!H67","v":0},{"$f":"H71","v":0},{"$f":"J67+'5'!J67","v":0},{"$f":"K67+'5'!K67","v":0},{"$f":"L67+'5'!L67","v":0},{"$f":"M67+'5'!M67","v":0},{"$f":"N67+'5'!N67","v":0}]
[null,null,"zobow handlowe",40,{"$f":"E68+'5'!E68","v":0},{"$f":"F68+'5'!F68","v":0},{"$f":"G68+'5'!G68","v":0},{"$f":"H68+'5'!H68","v":0},{"$f":"H72","v":0},{"$f":"J68+'5'!J68","v":0},{"$f":"K68+'5'!K68","v":0},{"$f":"L68+'5'!L68","v":0},{"$f":"M68+'5'!M68","v":0},{"$f":"N68+'5'!N68","v":0}]
[null,null,"zapasy z dział dotychczasowej",10,{"$f":"E69+'5'!E69","v":0},{"$f":"F69+'5'!F69","v":0},{"$f":"G69+'5'!G69","v":0},{"$f":"H69+'5'!H69","v":0},{"$f":"H73","v":0},{"$f":"J69+'5'!J69","v":0},{"$f":"K69+'5'!K69","v":0},{"$f":"L69+'5'!L69","v":0},{"$f":"M69+'5'!M69","v":0},{"$f":"N69+'5'!N69","v":0}]

{"sheet":"4_założenia KO","index":13,"n_rows":23,"n_cols":13,"rows_kept":23,"cut":false,"hidden":true,"merged":[[3,1,4,2],[5,1,5,2],[6,1,6,2],[7,1,7,2]]}
[]
[null,"Założenia  wypełniane przez TISE na podstawie wywiadu"]
[null,"Założenia dotyczące nowego przedsięwzięcia"]
[null,"Planowane zmiany kapitału obrotowego - w dniach",null,"1 kw 2013","2 kw","3 kw","4 kw",2013,2014,2015,2016,2017,2018]
[null,null,null,{"$f":"D7-D6-D8","v":0},{"$f":"E7-E6-E8","v":0},0,0,0,0,0,0,0,{"$f":"M7-M6-M8","v":0}]
[null,"jaki zakładasz średni czas / w dniach/  zapłaty  przez odbiorców - Twoich  klientów _ w związku ze sprzedażą  wynikającą z planowanego przedsięwzięcia",null,{"$f":"IFERROR(D14,0)","v":0},{"$f":"D6","v":0},{"$f":"E6","v":0},0,0,0,0,0,0,0]
[null,"jaki zakładasz średni czas / w dniach/  zapłaty  przez Ciebie dla Twoich dostawców -w związku z zakupami   wynikającymi z planowanego przedsięwzięcia",null,{"$f":"IFERROR(D15,0)","v":0},{"$f":"D7","v":0},{"$f":"E7","v":0},0,0,0,0,0,0,0]
[null,"Ile / orientacyjnie/ dni  będą zalegać  zapasy ( towarów, produktów, materiałów - dotyczących nowego przedsięwzięcia) w Twoich magazynach",null,0,0,{"$f":"E8","v":0},0,0,0,0,0,0,0]
[]
[null,"Założenia dotyczące dotychczasowej działalności"]
[]
[null,"Założenia dotyczące kapitału obrotowego w dotychczasowej działalności","rok ubiegły","1 kw 1 rok","2 kw 1 rok","3 kw 1 rok","4 kw 1 rok",{"$f":"H4","v":2013},{"$f":"I4","v":2014},2015,2016,2017,{"$f":"M4","v":2018}]
[null,"Planowane zmiany kapitału obrotowego - w dniach",{"$f":"C15-C14-C16","v":{"$error":"#DIV/0!"}},{"$f":"D15-D14-D16","v":0},{"$f":"E15-E14-E16","v":0},0,0,0,0,0,0,0,{"$f":"M15-M14-M16","v":0}]
[null,"jaki zakładasz średni czas / w dniach/  zapłaty  przez odbiorców - Twoich  klientów  - w związku ze sprzedażą w ramach dotychczasowej działąlności",{"$f":"'7'!D30","v":{"$error":"#DIV/0!"}},{"$f":"IFERROR(C14,0)","v":0},{"$f":"D14","v":0},{"$f":"E14","v":0},0,0,0,0,0,0,0]
[null,"jaki zakładasz średni czas / w dniach/  zapłaty  przez Ciebie dla Twoich dostawców - wzwiązku z zakupami w ramach dotychczasowej działalności",{"$f":"'7'!D31","v":{"$error":"#DIV/0!"}},{"$f":"IFERROR(C15,0)","v":0},{"$f":"D15","v":0},0,0,0,0,0,0,0,0]
[null,"Ile / orientacyjnie/ dni  będą zalegać  zapasy ( towarów, produktów, materiałów - wynikających z dotychczasowej działalności) w Twoich magazynach",{"$f":"'7'!D32","v":{"$error":"#DIV/0!"}},0,{"$f":"D16","v":0},0,0,0,0,0,0,0,0]
[]
[null,"Założenia dotyczące zmian elementów uproszczonego  bilansu sporządzonego przez wnioskodawcę","rok ubiegły","1 kw 1 rok","2 kw 1 rok","3 kw 1 rok","4 kw 1 rok",{"$f":"H4","v":2013},{"$f":"I4","v":2014},2015,2016,2017,{"$f":"M4","v":2018}]
[null,"Planowane stany\" pozostałych należności \" z uproszczonego bilansu",{"$f":"'3_Zał_F_TISE'!D9","v":0},{"$f":"C19","v":0},{"$f":"D19","v":0},0,0,0,0,0,0,0,0]
[null,"Planowane stany\" innych  składników  majątkowych \" z uproszczonego bilansu",{"$f":"'7'!D35","v":0},{"$f":"C20","v":0},{"$f":"D20","v":0},0,0,0,0,0,0,0,0]
[null,"Planowane stany \"Pozostałych zobowiązań\" z uproszczonego bilansu",{"$f":"'7'!D36","v":0},0,{"$f":"D21","v":0},0,0,0,0,0,0,0,0]
[null,"Planowane stany \"Innych pasywów kr\" z uproszczonego bilansu",{"$f":"'7'!D37","v":0},0,{"$f":"D22","v":0},0,0,0,0,0,0,0,0]
[null,"Planowane stany \"Innych pasywów długoterm\" z uproszczonego bilansu",{"$f":"'7'!D38","v":0},0,{"$f":"D23","v":0},0,0,0,0,0,0,0,0]

{"sheet":"5_projekcje","index":14,"n_rows":133,"n_cols":24,"rows_kept":133,"cut":false,"hidden":true,"merged":[[52,1,52,2],[51,1,51,13],[132,2,132,3],[127,2,127,3],[130,2,130,3],[131,2,131,3],[128,2,128,3]]}
[null,null,"projekcje  - wyliczane automatycznie"]
[null,null,"Aktywa",{"$f":"'3_Zał_F_dane fin i zał_klient'!G5","v":2013},{"$f":"'1_wniosek'!E124","v":"Kwartał 1"},{"$f":"'1_wniosek'!F124","v":"Kwartał 2"},{"$f":"'1_wniosek'!G124","v":"Kwartał 3"},{"$f":"'1_wniosek'!H124","v":"Kwartał 4"},{"$f":"'1_wniosek'!I123","v":2014},{"$f":"'1_wniosek'!J157","v":2015},{"$f":"'1_wniosek'!K157","v":2016},{"$f":"'1_wniosek'!L157","v":2017},{"$f":"'1_wniosek'!M157","v":2018},{"$f":"'1_wniosek'!N157","v":2019},null,null,null,{"$f":"E2","v":"Kwartał 1"},{"$f":"F2","v":"Kwartał 2"},{"$f":"G2","v":"Kwartał 3"},{"$f":"H2","v":"Kwartał 4"},null,"nie dotyczy",1]
[null,null,"Aktywa trwałe",{"$f":"'3_Zał_F_TISE'!D5","v":0},{"$f":"IF(R3=0,D3,(D3-E35+'7'!E56))","v":0},{"$f":"IF(S3=0,E3,(E3-F35+'7'!F56))","v":0},{"$f":"IF(T3=0,F3,(F3-G35+'7'!G56))","v":0},{"$f":"IF(U3=0,G3,(G3-H35+'7'!H56))","v":0},{"$f":"H3","v":0},{"$f":"I3-J35+'7'!J56","v":0},{"$f":"J3-K35+'7'!K56","v":0},{"$f":"K3-L35+'7'!L56","v":0},{"$f":"L3-M35+'7'!M56","v":0},{"$f":"M3-N35+'7'!N56","v":0},null,null,null,{"$f":"VLOOKUP(E2,'1_wniosek'!$AB$124:$AC$128,2,FALSE)","v":90},{"$f":"VLOOKUP(F2,'1_wniosek'!$AB$124:$AC$128,2,FALSE)","v":180},{"$f":"VLOOKUP(G2,'1_wniosek'!$AB$124:$AC$128,2,FALSE)","v":270},{"$f":"VLOOKUP(H2,'1_wniosek'!$AB$124:$AC$128,2,FALSE)","v":360}]
[null,null,"Zapasy",{"$f":"'3_Zał_F_TISE'!D6","v":0},{"$f":"IFERROR(IF(R3=0,D4,'7'!E73),0)","v":0},{"$f":"IFERROR(IF(S3=0,E4,'7'!F73),0)","v":0},{"$f":"IFERROR(IF(T3=0,F4,'7'!G73),0)","v":0},{"$f":"IFERROR(IF(U3=0,G4,'7'!H73),0)","v":0},{"$f":"H4","v":0},{"$f":"IFERROR('7'!J73,0)","v":0},{"$f":"IFERROR('7'!K73,0)","v":0},{"$f":"IFERROR('7'!L73,0)","v":0},{"$f":"IFERROR('7'!M73,0)","v":0},{"$f":"IFERROR('7'!N73,0)","v":0},null,null,null,{"$f":"R3","v":90},{"$f":"S3","v":180},{"$f":"T3","v":270},{"$f":"U3","v":360},{"$f":"SUM(R4:U4)","v":900}]
[null,null,"Należności",{"$f":"D6+D7","v":0},{"$f":"E6+E7","v":0},{"$f":"F6+F7","v":0},{"$f":"G6+G7","v":0},{"$f":"H6+H7","v":0},{"$f":"H5","v":0},{"$f":"J6+J7","v":0},{"$f":"K6+K7","v":0},{"$f":"L6+L7","v":0},{"$f":"M6+M7","v":0},{"$f":"N6+N7","v":0}]
[null,null," - od odbiorców /handlowe/",{"$f":"'3_Zał_F_TISE'!D8","v":0},{"$f":"IF(R3=0,D6,'7'!E71)","v":0},{"$f":"IF(S3=0,E6,'7'!F71)","v":0},{"$f":"IF(T3=0,F6,'7'!G71)","v":0},{"$f":"IF(U3=0,G6,'7'!H71)","v":0},{"$f":"H6","v":0},{"$f":"'7'!J71","v":0},{"$f":"'7'!K71","v":0},{"$f":"'7'!L71","v":0},{"$f":"'7'!M71","v":0},{"$f":"'7'!N71","v":0},null,null,null,{"$f":"'1_wniosek'!E187","v":"prognoza"},{"$f":"'1_wniosek'!F187","v":"prognoza"},{"$f":"'1_wniosek'!G187","v":"prognoza"},{"$f":"'1_wniosek'!H187","v":"prognoza"}]
[null,null," - pozostałe",{"$f":"'3_Zał_F_TISE'!D9","v":0},{"$f":"'4_założenia KO'!D19","v":0},{"$f":"'4_założenia KO'!E19","v":0},{"$f":"'4_założenia KO'!F19","v":0},{"$f":"'4_założenia KO'!G19","v":0},{"$f":"H7","v":0},{"$f":"'4_założenia KO'!I19","v":0},{"$f":"'4_założenia KO'!J19","v":0},{"$f":"'4_założenia KO'!K19","v":0},{"$f":"'4_założenia KO'!L19","v":0},{"$f":"'4_założenia KO'!M19","v":0},null,null,null,{"$f":"VLOOKUP('1_wniosek'!E187,'1_wniosek'!$S$186:$T$187,2,FALSE)","v":1},{"$f":"VLOOKUP('1_wniosek'!F187,'1_wniosek'!$S$186:$T$187,2,FALSE)","v":1},{"$f":"VLOOKUP('1_wniosek'!G187,'1_wniosek'!$S$186:$T$187,2,FALSE)","v":1},{"$f":"VLOOKUP('1_wniosek'!H187,'1_wniosek'!$S$186:$T$187,2,FALSE)","v":1}]
[null,null,"śr pieniężne",{"$f":"'3_Zał_F_TISE'!D10","v":0},{"$f":"IF(('7'!E65+'5_projekcje'!D8+'5_projekcje'!D7-'5_projekcje'!E7+'5_projekcje'!D10-'5_projekcje'!E10-'5_projekcje'!D20+'5_projekcje'!E20)<0,0,'7'!E65+'5_projekcje'!D9+'5_projekcje'!D7-'5_projekcje'!E7+'5_projekcje'!D10-'5_projekcje'!E10-'5_projekcje'!D20+'5_projekcje'!E20)","v":0},{"$f":"IF(('7'!F65+'5_projekcje'!E8+'5_projekcje'!E7-'5_projekcje'!F7+'5_projekcje'!E10-'5_projekcje'!F10-'5_projekcje'!E20+'5_projekcje'!F20)<0,0,'7'!F65+'5_projekcje'!E9+'5_projekcje'!E7-'5_projekcje'!F7+'5_projekcje'!E10-'5_projekcje'!F10-'5_projekcje'!E20+'5_projekcje'!F20)","v":0},{"$f":"IF(('7'!G65+'5_projekcje'!F8+'5_projekcje'!F7-'5_projekcje'!G7+'5_projekcje'!F10-'5_projekcje'!G10-'5_projekcje'!F20+'5_projekcje'!G20)<0,0,'7'!G65+'5_projekcje'!F9+'5_projekcje'!F7-'5_projekcje'!G7+'5_projekcje'!F10-'5_projekcje'!G10-'5_projekcje'!F20+'5_projekcje'!G20)","v":0},{"$f":"IF(('7'!H65+'5_projekcje'!G8+'5_projekcje'!G7-'5_projekcje'!H7+'5_projekcje'!G10-'5_projekcje'!H10-'5_projekcje'!G20+'5_projekcje'!H20)<0,0,'7'!H65+'5_projekcje'!G9+'5_projekcje'!G7-'5_projekcje'!H7+'5_projekcje'!G10-'5_projekcje'!H10-'5_projekcje'!G20+'5_projekcje'!H20)","v":0},{"$f":"IF(('7'!I65+'5_projekcje'!H8+'5_projekcje'!H7-'5_projekcje'!I7+'5_projekcje'!H10-'5_projekcje'!I10-'5_projekcje'!H20+'5_projekcje'!I20)<0,0,'7'!I65+'5_projekcje'!H9+'5_projekcje'!H7-'5_projekcje'!I7+'5_projekcje'!H10-'5_projekcje'!I10-'5_projekcje'!H20+'5_projekcje'!I20)","v":0},{"$f":"IF(('7'!J65+'5_projekcje'!I8+'5_projekcje'!I7-'5_projekcje'!J7+'5_projekcje'!I10-'5_projekcje'!J10-'5_projekcje'!I20+'5_projekcje'!J20)<0,0,'7'!J65+'5_projekcje'!I9+'5_projekcje'!I7-'5_projekcje'!J7+'5_projekcje'!I10-'5_projekcje'!J10-'5_projekcje'!I20+'5_projekcje'!J20)","v":0},{"$f":"IF(('7'!K65+'5_projekcje'!J8+'5_projekcje'!J7-'5_projekcje'!K7+'5_projekcje'!J10-'5_projekcje'!K10-'5_projekcje'!J20+'5_projekcje'!K20)<0,0,'7'!K65+'5_projekcje'!J9+'5_projekcje'!J7-'5_projekcje'!K7+'5_projekcje'!J10-'5_projekcje'!K10-'5_projekcje'!J20+'5_projekcje'!K20)","v":0},{"$f":"IF(('7'!L65+'5_projekcje'!K8+'5_projekcje'!K7-'5_projekcje'!L7+'5_projekcje'!K10-'5_projekcje'!L10-'5_projekcje'!K20+'5_projekcje'!L20)<0,0,'7'!L65+'5_projekcje'!K9+'5_projekcje'!K7-'5_projekcje'!L7+'5_projekcje'!K10-'5_projekcje'!L10-'5_projekcje'!K20+'5_projekcje'!L20)","v":0},{"$f":"IF(('7'!M65+'5_projekcje'!L8+'5_projekcje'!L7-'5_projekcje'!M7+'5_projekcje'!L10-'5_projekcje'!M10-'5_projekcje'!L20+'5_projekcje'!M20)<0,0,'7'!M65+'5_projekcje'!L9+'5_projekcje'!L7-'5_projekcje'!M7+'5_projekcje'!L10-'5_projekcje'!M10-'5_projekcje'!L20+'5_projekcje'!M20)","v":0},{"$f":"IF(('7'!N65+'5_projekcje'!M8+'5_projekcje'!M7-'5_projekcje'!N7+'5_projekcje'!M10-'5_projekcje'!N10-'5_projekcje'!M20+'5_projekcje'!N20)<0,0,'7'!N65+'5_projekcje'!M9+'5_projekcje'!M7-'5_projekcje'!N7+'5_projekcje'!M10-'5_projekcje'!N10-'5_projekcje'!M20+'5_projekcje'!N20)","v":0}]
[null,null,"śr pieniężne/popr/",{"$f":"D8","v":0},{"$f":"IFERROR(IF(R3=0,D9,(IF(E105>E8,0,E8-E105))),0)","v":0},{"$f":"IFERROR(IF(S3=0,E9,(IF(F105>F8,0,F8-F105))),0)","v":0},{"$f":"IFERROR(IF(T3=0,F9,(IF(G105>G8,0,G8-G105))),0)","v":0},{"$f":"IFERROR(IF(U3=0,G9,(IF(H105>H8,0,H8-H105))),0)","v":0},{"$f":"IFERROR(IF(I105>I8,0,I8-I105),0)","v":0},0,0,0,0,0]
[null,null,"inne składniki majątkowe",{"$f":"'3_Zał_F_TISE'!D11","v":0},{"$f":"'7'!E35","v":0},{"$f":"'7'!F35","v":0},{"$f":"'7'!G35","v":0},{"$f":"'7'!H35","v":0},{"$f":"'7'!I35","v":0},{"$f":"'7'!J35","v":0},{"$f":"'7'!K35","v":0},{"$f":"'7'!L35","v":0},{"$f":"'7'!M35","v":0},{"$f":"'7'!N35","v":0}]
[null,null,"Razem Aktywa",{"$f":"D3+D4+D5+D9+D10","v":0},{"$f":"E3+E4+E5+E8+E10","v":0},0,0,0,0,0,0,0,0,0]
[null,null,"Razem Aktywa",{"$f":"D11","v":0},{"$f":"E3+E4+E5+E9+E10","v":0},0,0,0,0,0,0,0,0,0]
[]
[null,null,"Pasywa",{"$f":"D2","v":2013},"Kwartał 1","Kwartał 2","Kwartał 3","Kwartał 4",2014,2015,2016,2017,2018,2019]
[null,null,"Kapitały własne",{"$f":"'3_Zał_F_TISE'!G5","v":0},{"$f":"IF(R3=0,D15,(D15+'5_projekcje'!E43))","v":0},{"$f":"IF(S3=0,E15,(E15+'5_projekcje'!F43))","v":0},{"$f":"IF(T3=0,F15,(F15+'5_projekcje'!G43))","v":0},{"$f":"IF(U3=0,G15,(G15+'5_projekcje'!H43))","v":0},{"$f":"H15","v":0},{"$f":"I15+'5_projekcje'!J43","v":0},{"$f":"J15+'5_projekcje'!K43","v":0},{"$f":"K15+'5_projekcje'!L43","v":0},{"$f":"L15+'5_projekcje'!M43","v":0},{"$f":"M15+'5_projekcje'!N43","v":0}]
[null,null,"Dług oprocentowany długoterminowy/ kredyty pożyczki , leasingi/",{"$f":"'3_Zał_F_TISE'!G7","v":0},{"$f":"IF(R3=0,D16,(D16-'7'!E64+'7'!E63))","v":0},{"$f":"IF(S3=0,E16,(E16-'7'!F64+'7'!F63))","v":0},{"$f":"IF(T3=0,F16,(F16-'7'!G64+'7'!G63))","v":0},{"$f":"IF(U3=0,G16,(G16-'7'!H64+'7'!H63))","v":0},{"$f":"H16","v":0},{"$f":"I16-'7'!J64+'7'!J63","v":0},{"$f":"J16-'7'!K64+'7'!K63","v":0},{"$f":"K16-'7'!L64+'7'!L63","v":0},{"$f":"L16-'7'!M64+'7'!M63","v":0},{"$f":"M16-'7'!N64+'7'!N63","v":0}]
[null,null,"Zobowiązania krótkoterminowe",{"$f":"D19+D20","v":0},{"$f":"E19+E20","v":0},{"$f":"F19+F20","v":0},{"$f":"G19+G20","v":0},{"$f":"H19+H20","v":0},{"$f":"H17","v":0},{"$f":"J19+J20","v":0},{"$f":"K19+K20","v":0},{"$f":"L19+L20","v":0},{"$f":"M19+M20","v":0},{"$f":"N19+N20","v":0}]
[null,null,"Zobowiązania krótkoterminowe/p/",{"$f":"D17","v":0},{"$f":"E19+E21","v":0},{"$f":"F19+F21","v":0},{"$f":"G19+G21","v":0},{"$f":"H19+H21","v":0},{"$f":"H18","v":0},{"$f":"J19+J21","v":0},{"$f":"K19+K21","v":0},{"$f":"L19+L21","v":0},{"$f":"M19+M21","v":0},{"$f":"N19+N21","v":0}]
[null,null," - handlowe",{"$f":"'3_Zał_F_TISE'!G9","v":0},{"$f":"IF(R3=0,D19,'7'!E72)","v":0},{"$f":"IF(S3=0,E19,'7'!F72)","v":0},{"$f":"IF(T3=0,F19,'7'!G72)","v":0},{"$f":"IF(U3=0,G19,'7'!H72)","v":0},{"$f":"H19","v":0},{"$f":"'7'!J72","v":0},{"$f":"'7'!K72","v":0},{"$f":"'7'!L72","v":0},{"$f":"'7'!M72","v":0},{"$f":"'7'!N72","v":0}]
[null,null," - kredyty obrotowe",{"$f":"'3_Zał_F_TISE'!G10","v":0}]
[null,null,"  kredyty, pożyczki krótkoterminowe ",{"$f":"D20","v":0},{"$f":"IFERROR(IF(R3=0,D21,(IF(E105-E8>0,E105-E8,0))),0)","v":0},{"$f":"IFERROR(IF(S3=0,E21,(IF(F105-F8>0,F105-F8,0))),0)","v":0},{"$f":"IFERROR(IF(T3=0,F21,(IF(G105-G8>0,G105-G8,0))),0)","v":0},{"$f":"IFERROR(IF(U3=0,G21,(IF(H105-H8>0,H105-H8,0))),0)","v":0},{"$f":"IFERROR(IF(I105-I8>0,I105-I8,0),0)","v":0},0,0,0,0,0]
[null,null,"Pozostałe zobowiązania",{"$f":"'3_Zał_F_TISE'!G11","v":0},{"$f":"'7'!E36","v":0},{"$f":"'7'!F36","v":0},{"$f":"'7'!G36","v":0},{"$f":"'7'!H36","v":0},{"$f":"H22","v":0},{"$f":"'7'!J36","v":0},{"$f":"'7'!K36","v":0},{"$f":"'7'!L36","v":0},{"$f":"'7'!M36","v":0},{"$f":"'7'!N36","v":0}]
[null,null,"Inne pasywa krótkoterm",{"$f":"'3_Zał_F_TISE'!G12","v":0},{"$f":"'7'!E37","v":0},{"$f":"'7'!F37","v":0},{"$f":"'7'!G37","v":0},{"$f":"'7'!H37","v":0},{"$f":"H23","v":0},{"$f":"'7'!J37","v":0},{"$f":"'7'!K37","v":0},{"$f":"'7'!L37","v":0},{"$f":"'7'!M37","v":0},{"$f":"'7'!N37","v":0}]
[null,null,"Inne pasywa długoterm",{"$f":"'3_Zał_F_TISE'!G13","v":0},{"$f":"'7'!E38","v":0},{"$f":"'7'!F38","v":0},{"$f":"'7'!G38","v":0},{"$f":"'7'!H38","v":0},{"$f":"H24","v":0},{"$f":"'7'!J38","v":0},{"$f":"'7'!K38","v":0},{"$f":"'7'!L38","v":0},{"$f":"'7'!M38","v":0},{"$f":"'7'!N38","v":0}]
[null,null,"Razem Pasywa",{"$f":"D15+D16+D17+D22+D23+D24","v":0},0,0,0,0,0,0,0,0,0,0]
[null,null,"Razem Pasywa/p/",{"$f":"D15+D16+D19+D21+D22+D23+D24","v":0},{"$f":"E15+E16+E18+E22+E23+E24","v":0},0,0,0,0,0,0,0,0,0]
[null,null,"różnica  A-P",{"$f":"D12-D26","v":0},0,0,0,0,0,0,0,0,0,0]
[null,null,"rzis",{"$f":"D2","v":2013},"Kwartał 1","Kwartał 2","Kwartał 3","Kwartał 4",2014,2015,2016,2017,2018,2019]
[null,null,"I. Przychody ogółem (II+III+IV+V), z tego",{"$f":"'3_Zał_F_TISE'!K5","v":0},{"$f":"'1_wniosek'!E188","v":0},{"$f":"'1_wniosek'!F188","v":0},{"$f":"'1_wniosek'!G188","v":0},{"$f":"'1_wniosek'!H188","v":0},{"$f":"SUM(E29:H29)","v":0},{"$f":"'1_wniosek'!J188","v":0},{"$f":"'1_wniosek'!K188","v":0},{"$f":"'1_wniosek'!L188","v":0},{"$f":"'1_wniosek'!M188","v":0},{"$f":"'1_wniosek'!N188","v":0}]
[null,null,"II. Przychody  z działalności gospodarczej , ze sprzedaży produktów, usług i towarów ogółem, z tego:",{"$f":"'3_Zał_F_TISE'!K6","v":0},{"$f":"'1_wniosek'!E189","v":0},{"$f":"'1_wniosek'!F189","v":0},{"$f":"'1_wniosek'!G189","v":0},{"$f":"'1_wniosek'!H189","v":0},{"$f":"SUM(E30:H30)","v":0},{"$f":"'1_wniosek'!J189","v":0},{"$f":"'1_wniosek'!K189","v":0},{"$f":"'1_wniosek'!L189","v":0},{"$f":"'1_wniosek'!M189","v":0},{"$f":"'1_wniosek'!N189","v":0}]
[null,null,"III. Pozostałe przychody  operacyjne ",{"$f":"'3_Zał_F_TISE'!K7","v":0},{"$f":"'1_wniosek'!E192","v":0},{"$f":"'1_wniosek'!F192","v":0},{"$f":"'1_wniosek'!G192","v":0},{"$f":"'1_wniosek'!H192","v":0},0,{"$f":"'1_wniosek'!J192","v":0},{"$f":"'1_wniosek'!K192","v":0},{"$f":"'1_wniosek'!L192","v":0},{"$f":"'1_wniosek'!M192","v":0},{"$f":"'1_wniosek'!N192","v":0}]
[null,null,"IV. Przychody finansowe",{"$f":"'3_Zał_F_TISE'!K8","v":0},{"$f":"'1_wniosek'!E193","v":0},{"$f":"'1_wniosek'!F193","v":0},{"$f":"'1_wniosek'!G193","v":0},{"$f":"'1_wniosek'!H193","v":0},0,{"$f":"'1_wniosek'!J193","v":0},{"$f":"'1_wniosek'!K193","v":0},{"$f":"'1_wniosek'!L193","v":0},{"$f":"'1_wniosek'!M193","v":0},{"$f":"'1_wniosek'!N193","v":0}]
[null,null," V. Przychody z działalności  statutowej",{"$f":"'3_Zał_F_TISE'!K9","v":0},{"$f":"'1_wniosek'!E194","v":0},{"$f":"'1_wniosek'!F194","v":0},{"$f":"'1_wniosek'!G194","v":0},{"$f":"'1_wniosek'!H194","v":0},0,{"$f":"'1_wniosek'!J194","v":0},{"$f":"'1_wniosek'!K194","v":0},{"$f":"'1_wniosek'!L194","v":0},{"$f":"'1_wniosek'!M194","v":0},{"$f":"'1_wniosek'!N194","v":0}]
[null,null,"VI. Koszty działalności  gospodarczej, w tym",{"$f":"'3_Zał_F_TISE'!K10","v":0},{"$f":"SUM(E35:E40)","v":0},{"$f":"SUM(F35:F40)","v":0},{"$f":"SUM(G35:G40)","v":0},{"$f":"SUM(H35:H40)","v":0},0,{"$f":"SUM(J35:J40)","v":0},{"$f":"SUM(K35:K40)","v":0},{"$f":"SUM(L35:L40)","v":0},{"$f":"SUM(M35:M40)","v":0},{"$f":"SUM(N35:N40)","v":0}]
[null,null,"amortyzacja",{"$f":"'3_Zał_F_TISE'!K11","v":0},{"$f":"'1_wniosek'!E198+'1_wniosek'!E199","v":0},{"$f":"'1_wniosek'!F198+'1_wniosek'!F199","v":0},{"$f":"'1_wniosek'!G198+'1_wniosek'!G199","v":0},{"$f":"'1_wniosek'!H198+'1_wniosek'!H199","v":0},0,{"$f":"'1_wniosek'!J198+'1_wniosek'!J199","v":0},{"$f":"'1_wniosek'!K198+'1_wniosek'!K199","v":0},{"$f":"'1_wniosek'!L198+'1_wniosek'!L199","v":0},{"$f":"'1_wniosek'!M198+'1_wniosek'!M199","v":0},{"$f":"'1_wniosek'!N198+'1_wniosek'!N199","v":0}]
[null,null," koszty eksploatacyjne - np. czynsz,zużycie materiałów i energii, transport ,podatki , opłaty, inne",{"$f":"'3_Zał_F_TISE'!K12","v":0},{"$f":"'1_wniosek'!E200+'1_wniosek'!E134+'1_wniosek'!E148","v":0},{"$f":"'1_wniosek'!F200+'1_wniosek'!F134+'1_wniosek'!F148","v":0},{"$f":"'1_wniosek'!G200+'1_wniosek'!G134+'1_wniosek'!G148","v":0},{"$f":"'1_wniosek'!H200+'1_wniosek'!H134+'1_wniosek'!H148","v":0},0,{"$f":"'1_wniosek'!J200+'1_wniosek'!J134+'1_wniosek'!J148","v":0},{"$f":"'1_wniosek'!K200+'1_wniosek'!K134+'1_wniosek'!K148","v":0},{"$f":"'1_wniosek'!L200+'1_wniosek'!L134+'1_wniosek'!L148","v":0},{"$f":"'1_wniosek'!M200+'1_wniosek'!M134+'1_wniosek'!M148","v":0},{"$f":"'1_wniosek'!N200+'1_wniosek'!N134+'1_wniosek'!N148","v":0}]
[null,null,"wynagrodzenia z narzutami",{"$f":"'3_Zał_F_TISE'!K13","v":0},{"$f":"'1_wniosek'!E201+'1_wniosek'!E135+'1_wniosek'!E149","v":0},{"$f":"'1_wniosek'!F201+'1_wniosek'!F135+'1_wniosek'!F149","v":0},{"$f":"'1_wniosek'!G201+'1_wniosek'!G135+'1_wniosek'!G149","v":0},{"$f":"'1_wniosek'!H201+'1_wniosek'!H135+'1_wniosek'!H149","v":0},0,{"$f":"'1_wniosek'!J201+'1_wniosek'!J135+'1_wniosek'!J149","v":0},{"$f":"'1_wniosek'!K201+'1_wniosek'!K135+'1_wniosek'!K149","v":0},{"$f":"'1_wniosek'!L201+'1_wniosek'!L135+'1_wniosek'!L149","v":0},{"$f":"'1_wniosek'!M201+'1_wniosek'!M135+'1_wniosek'!M149","v":0},{"$f":"'1_wniosek'!N201+'1_wniosek'!N135+'1_wniosek'!N149","v":0}]
[null,null,"koszt sprzedanych towarów , materiałów , usług",{"$f":"'3_Zał_F_TISE'!K14","v":0},{"$f":"'1_wniosek'!E202","v":0},{"$f":"'1_wniosek'!F202","v":0},{"$f":"'1_wniosek'!G202","v":0},{"$f":"'1_wniosek'!H202","v":0},0,{"$f":"'1_wniosek'!J202","v":0},{"$f":"'1_wniosek'!K202","v":0},{"$f":"'1_wniosek'!L202","v":0},{"$f":"'1_wniosek'!M202","v":0},{"$f":"'1_wniosek'!N202","v":0}]
[null,null,"Pozostałe koszty operacyjne ",{"$f":"'3_Zał_F_TISE'!K15","v":0},{"$f":"'1_wniosek'!E206","v":0},{"$f":"'1_wniosek'!F206","v":0},{"$f":"'1_wniosek'!G206","v":0},{"$f":"'1_wniosek'!H206","v":0},0,{"$f":"'1_wniosek'!J206","v":0},{"$f":"'1_wniosek'!K206","v":0},{"$f":"'1_wniosek'!L206","v":0},{"$f":"'1_wniosek'!M206","v":0},{"$f":"'1_wniosek'!N206","v":0}]
[null,null,"Koszty finansowe",{"$f":"'3_Zał_F_TISE'!K16","v":0},{"$f":"'1_wniosek'!E205+'1_wniosek'!E204","v":0},{"$f":"'1_wniosek'!F205+'1_wniosek'!F204","v":0},{"$f":"'1_wniosek'!G205+'1_wniosek'!G204","v":0},{"$f":"'1_wniosek'!H205+'1_wniosek'!H204","v":0},0,{"$f":"'1_wniosek'!J205+'1_wniosek'!J204","v":0},{"$f":"'1_wniosek'!K205+'1_wniosek'!K204","v":0},{"$f":"'1_wniosek'!L205+'1_wniosek'!L204","v":0},{"$f":"'1_wniosek'!M205+'1_wniosek'!M204","v":0},{"$f":"'1_wniosek'!N205+'1_wniosek'!N204","v":0}]
[null,null,"VII. Koszty realizacji zadań statutowych",{"$f":"'3_Zał_F_TISE'!K17","v":0},{"$f":"'1_wniosek'!E207","v":0},{"$f":"'1_wniosek'!F207","v":0},{"$f":"'1_wniosek'!G207","v":0},{"$f":"'1_wniosek'!H207","v":0},0,{"$f":"'1_wniosek'!J207","v":0},{"$f":"'1_wniosek'!K207","v":0},{"$f":"'1_wniosek'!L207","v":0},{"$f":"'1_wniosek'!M207","v":0},{"$f":"'1_wniosek'!N207","v":0}]
[null,null,"Podatek dochodowy",{"$f":"'3_Zał_F_TISE'!K19","v":0},{"$f":"IF((E29-E34-E39-E40-E41)>0,(E29-E34-E39-E40-E41)*19%,0)","v":0},0,0,0,0,0,0,0,0,0]
[null,null,"Wynik netto",{"$f":"'3_Zał_F_TISE'!K20","v":0},{"$f":"E29-E34-E41-E42","v":0},0,0,0,0,0,0,0,0,0]
[]
[null,null,{"$f":"#REF!","v":{"$error":"#REF!"}},{"$f":"#REF!","v":{"$error":"#REF!"}},{"$f":"#REF!","v":{"$error":"#REF!"}},{"$f":"#REF!","v":{"$error":"#REF!"}},{"$f":"#REF!","v":{"$error":"#REF!"}},{"$f":"#REF!","v":{"$error":"#REF!"}},{"$f":"#REF!","v":{"$error":"#REF!"}},{"$f":"#REF!","v":{"$error":"#REF!"}},{"$f":"#REF!","v":{"$error":"#REF!"}},{"$f":"#REF!","v":{"$error":"#REF!"}},{"$f":"#REF!","v":{"$error":"#REF!"}},{"$f":"#REF!","v":{"$error":"#REF!"}}]
[null,"1.","Suma przepływów pienięznych dla Właściela ",{"$f":"#REF!","v":{"$error":"#REF!"}},{"$f":"#REF!","v":{"$error":"#REF!"}},{"$f":"#REF!","v":{"$error":"#REF!"}},{"$f":"#REF!","v":{"$error":"#REF!"}},{"$f":"#REF!","v":{"$error":"#REF!"}},{"$f":"#REF!","v":{"$error":"#REF!"}},{"$f":"#REF!","v":{"$error":"#REF!"}},{"$f":"#REF!","v":{"$error":"#REF!"}},{"$f":"#REF!","v":{"$error":"#REF!"}},{"$f":"#REF!","v":{"$error":"#REF!"}},{"$f":"#REF!","v":{"$error":"#REF!"}},{"$f":"IF((E120+F120+G120+H120+I120+J120+K120+L120+M120+N120)=0,\"tak\",\"nie\")","v":{"$error":"#REF!"}}]
[null,"2.","Wskaźnik  EBITDA/Obsługa długu",{"$f":"#REF!","v":{"$error":"#REF!"}},{"$f":"#REF!","v":{"$error":"#REF!"}},{"$f":"#REF!","v":{"$error":"#REF!"}},{"$f":"#REF!","v":{"$error":"#REF!"}},{"$f":"#REF!","v":{"$error":"#REF!"}},{"$f":"#REF!","v":{"$error":"#REF!"}},{"$f":"#REF!","v":{"$error":"#REF!"}},{"$f":"#REF!","v":{"$error":"#REF!"}},{"$f":"#REF!","v":{"$error":"#REF!"}},{"$f":"#REF!","v":{"$error":"#REF!"}},{"$f":"#REF!","v":{"$error":"#REF!"}}]
[null,"3.","Wskaźnik  zadłużenia",{"$f":"#REF!","v":{"$error":"#REF!"}},{"$f":"#REF!","v":{"$error":"#REF!"}},{"$f":"#REF!","v":{"$error":"#REF!"}},{"$f":"#REF!","v":{"$error":"#REF!"}},{"$f":"#REF!","v":{"$error":"#REF!"}},{"$f":"#REF!","v":{"$error":"#REF!"}},{"$f":"#REF!","v":{"$error":"#REF!"}},{"$f":"#REF!","v":{"$error":"#REF!"}},{"$f":"#REF!","v":{"$error":"#REF!"}},{"$f":"#REF!","v":{"$error":"#REF!"}},{"$f":"#REF!","v":{"$error":"#REF!"}}]
[null,"4. ","Wskaźnik rentowności sprzedaży",{"$f":"#REF!","v":{"$error":"#REF!"}},{"$f":"#REF!","v":{"$error":"#REF!"}},{"$f":"#REF!","v":{"$error":"#REF!"}},{"$f":"#REF!","v":{"$error":"#REF!"}},{"$f":"#REF!","v":{"$error":"#REF!"}},{"$f":"#REF!","v":{"$error":"#REF!"}},{"$f":"#REF!","v":{"$error":"#REF!"}},{"$f":"#REF!","v":{"$error":"#REF!"}},{"$f":"#REF!","v":{"$error":"#REF!"}},{"$f":"#REF!","v":{"$error":"#REF!"}},{"$f":"#REF!","v":{"$error":"#REF!"}}]
[null,"5. ","Wskaźnik pokrycia aktywów trwałych  kapitałem stałym",{"$f":"#REF!","v":{"$error":"#REF!"}},{"$f":"#REF!","v":{"$error":"#REF!"}},{"$f":"#REF!","v":{"$error":"#REF!"}},{"$f":"#REF!","v":{"$error":"#REF!"}},{"$f":"#REF!","v":{"$error":"#REF!"}},{"$f":"#REF!","v":{"$error":"#REF!"}},{"$f":"#REF!","v":{"$error":"#REF!"}},{"$f":"#REF!","v":{"$error":"#REF!"}},{"$f":"#REF!","v":{"$error":"#REF!"}},{"$f":"#REF!","v":{"$error":"#REF!"}},{"$f":"#REF!","v":{"$error":"#REF!"}}]
[]
[null,"Tabela 2 Kalkulacja przepływów pieniężnych z całej  działalności Wnioskodawcy"]
[null,"Przepływy pieniężne z działalności  całejw tys. zł.",null,null,{"$f":"#REF!","v":{"$error":"#REF!"}},{"$f":"#REF!","v":{"$error":"#REF!"}},{"$f":"#REF!","v":{"$error":"#REF!"}},{"$f":"#REF!","v":{"$error":"#REF!"}},{"$f":"#REF!","v":{"$error":"#REF!"}},{"$f":"#REF!","v":{"$error":"#REF!"}},{"$f":"#REF!","v":{"$error":"#REF!"}},{"$f":"#REF!","v":{"$error":"#REF!"}},{"$f":"#REF!","v":{"$error":"#REF!"}},{"$f":"#REF!","v":{"$error":"#REF!"}}]
[null,"-","Nakłady inwestycyjne",null,{"$f":"'7'!E56","v":0},{"$f":"'7'!F56","v":0},{"$f":"'7'!G56","v":0},{"$f":"'7'!H56","v":0},{"$f":"'7'!I56","v":0},{"$f":"'7'!J56","v":0},{"$f":"'7'!K56","v":0},{"$f":"'7'!L56","v":0},{"$f":"'7'!M56","v":0},{"$f":"'7'!N56","v":0}]
[null,"+","Przychody",null,{"$f":"'7'!E57","v":0},{"$f":"'7'!F57","v":0},{"$f":"'7'!G57","v":0},{"$f":"'7'!H57","v":0},{"$f":"'7'!I57","v":0},{"$f":"'7'!J57","v":0},{"$f":"'7'!K57","v":0},{"$f":"'7'!L57","v":0},{"$f":"'7'!M57","v":0},{"$f":"'7'!N57","v":0}]
[null,"-","Koszty działalności operacyjnej / w tym również amortyzacja/",null,{"$f":"'7'!E58","v":0},{"$f":"'7'!F58","v":0},{"$f":"'7'!G58","v":0},{"$f":"'7'!H58","v":0},{"$f":"'7'!I58","v":0},{"$f":"'7'!J58","v":0},{"$f":"'7'!K58","v":0},{"$f":"'7'!L58","v":0},{"$f":"'7'!M58","v":0},{"$f":"'7'!N58","v":0}]
[null,"-","Koszty finansowe",null,{"$f":"'7'!E59","v":0},{"$f":"'7'!F59","v":0},{"$f":"'7'!G59","v":0},{"$f":"'7'!H59","v":0},{"$f":"'7'!I59","v":0},{"$f":"'7'!J59","v":0},{"$f":"'7'!K59","v":0},{"$f":"'7'!L59","v":0},{"$f":"'7'!M59","v":0},{"$f":"'7'!N59","v":0}]
[null,"-","Podatek dochodowy",null,{"$f":"'7'!E60","v":0},{"$f":"'7'!F60","v":0},{"$f":"'7'!G60","v":0},{"$f":"'7'!H60","v":0},{"$f":"'7'!I60","v":0},{"$f":"'7'!J60","v":0},{"$f":"'7'!K60","v":0},{"$f":"'7'!L60","v":0},{"$f":"'7'!M60","v":0},{"$f":"'7'!N60","v":0}]
[null,"+","Amortyzacja",null,{"$f":"'7'!E61","v":0},{"$f":"'7'!F61","v":0},{"$f":"'7'!G61","v":0},{"$f":"'7'!H61","v":0},{"$f":"'7'!I61","v":0},{"$f":"'7'!J61","v":0},{"$f":"'7'!K61","v":0},{"$f":"'7'!L61","v":0},{"$f":"'7'!M61","v":0},{"$f":"'7'!N61","v":0}]
[null,"\"-/+\"","Zmiany kapitału obrotowego",null,{"$f":"'7'!E62","v":0},{"$f":"'7'!F62","v":0},{"$f":"'7'!G62","v":0},{"$f":"'7'!H62","v":0},{"$f":"'7'!I62","v":0},{"$f":"'7'!J62","v":0},{"$f":"'7'!K62","v":0},{"$f":"'7'!L62","v":0},{"$f":"'7'!M62","v":0},{"$f":"'7'!N62","v":0}]
[null,"+","Zaciągnięcia pożyczki",null,{"$f":"'7'!E63","v":0},{"$f":"'7'!F63","v":0},{"$f":"'7'!G63","v":0},{"$f":"'7'!H63","v":0},{"$f":"'7'!I63","v":0},{"$f":"'7'!J63","v":0},{"$f":"'7'!K63","v":0},{"$f":"'7'!L63","v":0},{"$f":"'7'!M63","v":0},{"$f":"'7'!N63","v":0}]
[null,"-","Spłata pożyczki",null,{"$f":"'7'!E64","v":0},{"$f":"'7'!F64","v":0},{"$f":"'7'!G64","v":0},{"$f":"'7'!H64","v":0},{"$f":"'7'!I64","v":0},{"$f":"'7'!J64","v":0},{"$f":"'7'!K64","v":0},{"$f":"'7'!L64","v":0},{"$f":"'7'!M64","v":0},{"$f":"'7'!N64","v":0}]
[null,"=","Przepływy pieniężne z przedsięwzięcia   (FCFEI)",null,{"$f":"'7'!E65","v":0},{"$f":"'7'!F65","v":0},{"$f":"'7'!G65","v":0},{"$f":"'7'!H65","v":0},{"$f":"'7'!I65","v":0},{"$f":"'7'!J65","v":0},{"$f":"'7'!K65","v":0},{"$f":"'7'!L65","v":0},{"$f":"'7'!M65","v":0},{"$f":"'7'!N65","v":0}]
[]
[]
[]
[]
[]
[]
[]
[]
[]
[]
[]
[]
[]
[]
[]
[]
[]
[]
[]
[]
[]
[]
[]
[]
[null,"1.","Suma przepływów pienięznych dla Właściela "]
[null,"2.","Wskaźnik  EBITDA/Obsługa długu"]
[null,"3.","Wskaźnik  zadłużenia"]
[null,"4. ","Wskaźnik rentowności sprzedaży"]
[null,"5. ","Wskaźnik pokrycia aktywów stałych  kapitałem trwałym"]
[]
[]
[]
[]
[]
[]
[]
[]
[]
[]
[]
[null,null,null,{"$f":"D11-D25","v":0},{"$f":"-E9","v":0},0,0,0,0,0,0,0,0,0]
[null,null,"różnica A- P",{"$f":"E12-E26","v":0},{"$f":"E11-E25","v":0},0,0,0,0,0,0,0,0,0]
[null,null,"sr pie sp",{"$f":"D8","v":0}]
[null,null,"śr pie  sk",null,{"$f":"D106+'7'!E65+'5_projekcje'!E20-'5_projekcje'!D20+'5_projekcje'!D7-'5_projekcje'!E7+'5_projekcje'!D10-'5_projekcje'!E10","v":0},{"$f":"E106+'7'!F65+'5_projekcje'!F20-'5_projekcje'!E20+'5_projekcje'!E7-'5_projekcje'!F7+'5_projekcje'!E10-'5_projekcje'!F10","v":0}]
[null,null,"zm apbiez",null,{"$f":"D7-E7+D10-E10+E20-D20+E22-D22+E23-D23","v":0}]
[]
[null,"Wskaźniki",null,2012,"1 kw","2 kw","3 kw","4 kw","razem  1 rok","2 rok","3 rok","4 rok","5 rok","5 rok"]
[null,"1.","Suma przepływów pienięznych dla Właściela ",null,{"$f":"'7'!E65","v":0},{"$f":"'7'!F65","v":0},{"$f":"'7'!G65","v":0},{"$f":"'7'!H65","v":0},{"$f":"'7'!I65","v":0},{"$f":"'7'!J65","v":0},{"$f":"'7'!K65","v":0},{"$f":"'7'!L65","v":0},{"$f":"'7'!M65","v":0},{"$f":"'7'!N65","v":0}]
[null,"2.","Wskaźnik  EBITDA/Obsługa długu",{"$f":"IFERROR((D43+D42+D40+D35)/'7'!D64,2)","v":2},{"$f":"IFERROR((E43+E42+E40+E35)/'7'!E64,2)","v":2},{"$f":"IFERROR((F43+F42+F40+F35)/'7'!F64,2)","v":2},{"$f":"IFERROR((G43+G42+G40+G35)/'7'!G64,2)","v":2},{"$f":"IFERROR((H43+H42+H40+H35)/'7'!H64,2)","v":2},{"$f":"IFERROR((I43+I42+I40+I35)/'7'!I64,2)","v":2},{"$f":"IFERROR((J43+J42+J40+J35)/'7'!J64,2)","v":2},{"$f":"IFERROR((K43+K42+K40+K35)/'7'!K64,2)","v":2},{"$f":"IFERROR((L43+L42+L40+L35)/'7'!L64,2)","v":2},{"$f":"IFERROR((M43+M42+M40+M35)/'7'!M64,2)","v":2},{"$f":"IFERROR((N43+N42+N40+N35)/'7'!N64,2)","v":2}]
[null,"3.","Wskaźnik  zadłużenia",null,{"$f":"(E16+E21+E22)/E26","v":{"$error":"#DIV/0!"}},{"$error":"#DIV/0!"},{"$error":"#DIV/0!"},{"$error":"#DIV/0!"},{"$error":"#DIV/0!"},{"$error":"#DIV/0!"},{"$error":"#DIV/0!"},{"$error":"#DIV/0!"},{"$error":"#DIV/0!"},{"$error":"#DIV/0!"}]
[null,"4. ","Wskaźnik rentowności sprzedaży",{"$f":"D43/D29","v":{"$error":"#DIV/0!"}},{"$error":"#DIV/0!"},{"$error":"#DIV/0!"},{"$error":"#DIV/0!"},{"$error":"#DIV/0!"},{"$error":"#DIV/0!"},{"$error":"#DIV/0!"},{"$error":"#DIV/0!"},{"$error":"#DIV/0!"},{"$error":"#DIV/0!"},{"$error":"#DIV/0!"}]
[null,"5. ","Wskaźnik pokrycia aktywów stałych  kapitałem trwałym",{"$f":"(D15+D16+D24)/D3","v":{"$error":"#DIV/0!"}},{"$error":"#DIV/0!"},{"$error":"#DIV/0!"},{"$error":"#DIV/0!"},{"$error":"#DIV/0!"},{"$error":"#DIV/0!"},{"$error":"#DIV/0!"},{"$error":"#DIV/0!"},{"$error":"#DIV/0!"},{"$error":"#DIV/0!"},{"$error":"#DIV/0!"}]
[null,null,"kontrola śr pienięznych",null,null,{"$f":"F8-E8","v":0},0,0,0,0,0,0,0,0]
[null,null,"różnica suma przepływów  - kontrola śr pien",null,null,{"$f":"F111-F116","v":0},0,0,0,0,0,0,0,0]
[]
[]
[null,null,"Suma przepływów pienięznych dla Właściela ",null,{"$f":"IF(R7=2,0,(IF(#REF!<0,-1,0)))","v":{"$error":"#REF!"}},{"$f":"IF(S7=2,0,(IF(#REF!<0,-1,0)))","v":{"$error":"#REF!"}},{"$f":"IF(T7=2,0,(IF(#REF!<0,-1,0)))","v":{"$error":"#REF!"}},{"$f":"IF(U7=2,0,(IF(#REF!<0,-1,0)))","v":{"$error":"#REF!"}},{"$f":"IF(#REF!<0,-1,0)","v":{"$error":"#REF!"}},{"$f":"IF(#REF!<0,-1,0)","v":{"$error":"#REF!"}},{"$f":"IF(#REF!<0,-1,0)","v":{"$error":"#REF!"}},{"$f":"IF(#REF!<0,-1,0)","v":{"$error":"#REF!"}},{"$f":"IF(#REF!<0,-1,0)","v":{"$error":"#REF!"}},{"$f":"IF(#REF!<0,-1,0)","v":{"$error":"#REF!"}}]
[null,null,"Wskaźnik  EBITDA/Obsługa długu",null,{"$f":"IF(#REF!>1.3,1,0)","v":{"$error":"#REF!"}},{"$f":"IF(#REF!>1.3,1,0)","v":{"$error":"#REF!"}},{"$f":"IF(#REF!>1.3,1,0)","v":{"$error":"#REF!"}},{"$f":"IF(#REF!>1.3,1,0)","v":{"$error":"#REF!"}},{"$f":"IF(#REF!>1.3,1,0)","v":{"$error":"#REF!"}},{"$f":"IF(#REF!>1.3,1,0)","v":{"$error":"#REF!"}},{"$f":"IF(#REF!>1.3,1,0)","v":{"$error":"#REF!"}},{"$f":"IF(#REF!>1.3,1,0)","v":{"$error":"#REF!"}},{"$f":"IF(#REF!>1.3,1,0)","v":{"$error":"#REF!"}},{"$f":"IF(#REF!>1.3,1,0)","v":{"$error":"#REF!"}},{"$f":"SUM(E121:N121)","v":{"$error":"#REF!"}}]
[null,null,"Wskaźnik  zadłużenia",null,{"$f":"IF(#REF!<0.7,1,0)","v":{"$error":"#REF!"}},{"$f":"IF(#REF!<0.7,1,0)","v":{"$error":"#REF!"}},{"$f":"IF(#REF!<0.7,1,0)","v":{"$error":"#REF!"}},{"$f":"IF(#REF!<0.7,1,0)","v":{"$error":"#REF!"}},{"$f":"IF(#REF!<0.7,1,0)","v":{"$error":"#REF!"}},{"$f":"IF(#REF!<0.7,1,0)","v":{"$error":"#REF!"}},{"$f":"IF(#REF!<0.7,1,0)","v":{"$error":"#REF!"}},{"$f":"IF(#REF!<0.7,1,0)","v":{"$error":"#REF!"}},{"$f":"IF(#REF!<0.7,1,0)","v":{"$error":"#REF!"}},{"$f":"IF(#REF!<0.7,1,0)","v":{"$error":"#REF!"}},{"$error":"#REF!"}]
[null,null,"Wskaźnik rentowności sprzedaży",null,{"$f":"IF(#REF!>0,1,0)","v":{"$error":"#REF!"}},{"$f":"IF(#REF!>0,1,0)","v":{"$error":"#REF!"}},{"$f":"IF(#REF!>0,1,0)","v":{"$error":"#REF!"}},{"$f":"IF(#REF!>0,1,0)","v":{"$error":"#REF!"}},{"$f":"IF(#REF!>0,1,0)","v":{"$error":"#REF!"}},{"$f":"IF(#REF!>0,1,0)","v":{"$error":"#REF!"}},{"$f":"IF(#REF!>0,1,0)","v":{"$error":"#REF!"}},{"$f":"IF(#REF!>0,1,0)","v":{"$error":"#REF!"}},{"$f":"IF(#REF!>0,1,0)","v":{"$error":"#REF!"}},{"$f":"IF(#REF!>0,1,0)","v":{"$error":"#REF!"}},{"$error":"#REF!"}]
[null,null,"Wskaźnik pokrycia aktywów stałych  kapitałem trwałym",null,{"$f":"IF(#REF!>1,1,0)","v":{"$error":"#REF!"}},{"$f":"IF(#REF!>1,1,0)","v":{"$error":"#REF!"}},{"$f":"IF(#REF!>1,1,0)","v":{"$error":"#REF!"}},{"$f":"IF(#REF!>1,1,0)","v":{"$error":"#REF!"}},{"$f":"IF(#REF!>1,1,0)","v":{"$error":"#REF!"}},{"$f":"IF(#REF!>1,1,0)","v":{"$error":"#REF!"}},{"$f":"IF(#REF!>1,1,0)","v":{"$error":"#REF!"}},{"$f":"IF(#REF!>1,1,0)","v":{"$error":"#REF!"}},{"$f":"IF(#REF!>1,1,0)","v":{"$error":"#REF!"}},{"$f":"IF(#REF!>1,1,0)","v":{"$error":"#REF!"}},{"$error":"#REF!"}]
[null,null,"pokrycie wydatków w źródłach finansowania",null,{"$f":"'5_projekcje'!E130","v":1},{"$f":"'5_projekcje'!F130","v":1},{"$f":"'5_projekcje'!G130","v":1},{"$f":"'5_projekcje'!H130","v":1},{"$f":"'5_projekcje'!I130","v":1},{"$f":"'5_projekcje'!J130","v":1},{"$f":"'5_projekcje'!K130","v":1},{"$f":"'5_projekcje'!L130","v":1},{"$f":"'5_projekcje'!M130","v":1},{"$f":"'5_projekcje'!N130","v":1},{"$f":"SUM(E125:N125)","v":10}]
[null,null,null,null,{"$f":"IF(R7=2,1,E125)","v":1},1,1,1,1,1,1,1,1,1,{"$f":"SUM(E126:N126)","v":10},null,"pokrycie inwestycji w źródłach"]
[null,null,"z wniosku",null,null,null,null,null,null,null,null,null,null,null,{"$f":"IF((E126+F126+G126+H126+I126+J126+K126+L126+M126+N126)=10,\"tak\",\"nie\")","v":"tak"}]
[null,null,"środki własne wnioskodawcy po wydatkach w danym okresie na przedsięwzięcie",null,{"$f":"'5_projekcje'!E9","v":0},{"$f":"'5_projekcje'!F9","v":0},{"$f":"'5_projekcje'!G9","v":0},{"$f":"'5_projekcje'!H9","v":0},{"$f":"'5_projekcje'!I9","v":0},{"$f":"'5_projekcje'!J9","v":0},{"$f":"'5_projekcje'!K9","v":0},{"$f":"'5_projekcje'!L9","v":0},{"$f":"'5_projekcje'!M9","v":0},{"$f":"'5_projekcje'!N9","v":0}]
[null,null,"\"Inne\" żródła finansowania  niezbędne do uzyskania",null,{"$f":"'5_projekcje'!E21","v":0},{"$f":"'5_projekcje'!F21","v":0},{"$f":"'5_projekcje'!G21","v":0},{"$f":"'5_projekcje'!H21","v":0},{"$f":"'5_projekcje'!I21","v":0},{"$f":"'5_projekcje'!J21","v":0},{"$f":"'5_projekcje'!K21","v":0},{"$f":"'5_projekcje'!L21","v":0},{"$f":"'5_projekcje'!M21","v":0},{"$f":"'5_projekcje'!N21","v":0}]
[null,null,null,null,{"$f":"IF(E132>=0,1,0)","v":1},1,1,1,1,1,1,1,1,1]
[null,null,"Różnica :żródła finansowania -wydatki i koszty   - w każdym okresie",null,{"$f":"E133-'1_wniosek'!E154","v":0},{"$f":"F133-'1_wniosek'!F154","v":0},{"$f":"G133-'1_wniosek'!G154","v":0},{"$f":"H133-'1_wniosek'!H154","v":0},{"$f":"I133-'1_wniosek'!I154","v":0},{"$f":"J133-'1_wniosek'!J154","v":0},{"$f":"K133-'1_wniosek'!K154","v":0},{"$f":"L133-'1_wniosek'!L154","v":0},{"$f":"M133-'1_wniosek'!M154","v":0},{"$f":"N133-'1_wniosek'!N154","v":0}]
[null,null,"Różnica :żródła finansowania -wydatki i koszty   - skumulowana",null,{"$f":"E131","v":0},{"$f":"E132+F131","v":0},0,0,0,0,0,0,0,0]
[null,null,"Roboczy_Źródła finansowania przedsięwzięcia  razem/ wartość wypłacanych środków w okresie/, z tego",null,{"$f":"'1_wniosek'!E161+'1_wniosek'!E160+'1_wniosek'!E162","v":0},{"$f":"'1_wniosek'!F161+'1_wniosek'!F160+'1_wniosek'!F162","v":0},{"$f":"'1_wniosek'!G161+'1_wniosek'!G160+'1_wniosek'!G162","v":0},{"$f":"'1_wniosek'!H161+'1_wniosek'!H160+'1_wniosek'!H162","v":0},{"$f":"'1_wniosek'!I161+'1_wniosek'!I160+'1_wniosek'!I162","v":0},{"$f":"'1_wniosek'!J161+'1_wniosek'!J160+'1_wniosek'!J162","v":0},{"$f":"'1_wniosek'!K161+'1_wniosek'!K160+'1_wniosek'!K162","v":0},{"$f":"'1_wniosek'!L161+'1_wniosek'!L160+'1_wniosek'!L162","v":0},{"$f":"'1_wniosek'!M161+'1_wniosek'!M160+'1_wniosek'!M162","v":0},{"$f":"'1_wniosek'!N161+'1_wniosek'!N160+'1_wniosek'!N162","v":0},null,{"$f":"SUM(I133:N133)","v":0}]

{"sheet":"10","index":15,"n_rows":0,"n_cols":0,"rows_kept":0,"cut":false,"hidden":true,"merged":[]}